TRANS. No,Service Area Categorisation,Service Division Categorisation,Responsible Unit,Unit Code,Expenses Type,Expenses Sub Type,Exp Code,Narrative,Amount,Invoice Date,Cap/Rev,Supplier Name
1,Central Services,SupS Chief Execs,Local Involvement Network,A01039,Third Party Payments          ,Private Contractors           ,EH10,Contract Payments                       ,"10,787.08",01/11/2013,R,MERTON VOLUNTARY SERV COUNCIL 
2,Central Services,SupS Chief Execs,Local Involvement Network,A01039,Third Party Payments          ,Private Contractors           ,EH10,Contract Payments                       ,"1,380.00",31/10/2013,R,VOICEABILITY                  
3,Central Services,SupS Chief Execs,Local Involvement Network,A01039,Third Party Payments          ,Private Contractors           ,EH10,Contract Payments                       ,"10,787.08",03/12/2013,R,MERTON VOLUNTARY SERV COUNCIL 
4,Central Services,SupS Chief Execs,Local Involvement Network,A01039,Third Party Payments          ,Private Contractors           ,EH10,Contract Payments                       ,576,30/11/2013,R,VOICEABILITY                  
5,Cultural Env Reg&Plan Services,Comm Safety (Crime Reduction),Crime and Strategy Team,A01100,Third Party Payments          ,Private Contractors           ,EH02,Miscellaneous Hired Services            ,"6,168.25",24/11/2013,R,GLOBAL MSC SECURITY LTD       
6,Cultural Env Reg&Plan Services,Comm Safety (Crime Reduction),Crime and Strategy Team,A01100,Third Party Payments          ,Private Contractors           ,EH02,Miscellaneous Hired Services            ,"8,200.00",11/12/2013,R,MERTON AND SUTTON MEDIATION   
7,Cultural Env Reg&Plan Services,Comm Safety (Crime Reduction),Crime and Strategy Team,A01100,Third Party Payments          ,Private Contractors           ,EH02,Miscellaneous Hired Services            ,"6,168.25",11/12/2013,R,GLOBAL MSC SECURITY LTD       
8,Cultural Env Reg&Plan Services,Comm Safety (Crime Reduction),CCTV,A01200,Supplies & Services           ,Equip Furniture/Materials     ,DA01,Equipment - R & M                       ,"10,346.53",11/12/2013,R,EUROVIA INFRASTRUCTURE LTD    
9,Cultural Env Reg&Plan Services,Comm Safety (Crime Reduction),CCTV,A01200,Supplies & Services           ,Services                      ,DF57,Consulting Engineers Fees               ,"1,678.14",28/04/2013,R,GOODWILL ASSOCIATES LIMITED   
10,Cultural Env Reg&Plan Services,Comm Safety (Crime Reduction),CCTV,A01200,Supplies & Services           ,Services                      ,DF57,Consulting Engineers Fees               ,941.32,25/11/2013,R,GOODWILL ASSOCIATES LIMITED   
11,Cultural Env Reg&Plan Services,Comm Safety (Crime Reduction),CCTV,A01200,Supplies & Services           ,Services                      ,DF57,Consulting Engineers Fees               ,"1,141.82",28/06/2013,R,GOODWILL ASSOCIATES LIMITED   
12,Cultural Env Reg&Plan Services,Comm Safety (Crime Reduction),CCTV,A01200,Supplies & Services           ,Services                      ,DF57,Consulting Engineers Fees               ,"1,021.82",11/12/2013,R,GOODWILL ASSOCIATES LIMITED   
13,Adult Social Care,Substance Abuse (Addictions),Retention in Drug Treatmt Srvs,A01303,Third Party Payments          ,Private Contractors           ,EH02,Miscellaneous Hired Services            ,"2,700.00",09/11/2013,R,WENDYKEN CONSULTING LTD       
14,Adult Social Care,Substance Abuse (Addictions),Retention in Drug Treatmt Srvs,A01303,Third Party Payments          ,Private Contractors           ,EH02,Miscellaneous Hired Services            ,"3,000.00",25/11/2013,R,WENDYKEN CONSULTING LTD       
15,Adult Social Care,Substance Abuse (Addictions),Retention in Drug Treatmt Srvs,A01303,Third Party Payments          ,Private Contractors           ,EH02,Miscellaneous Hired Services            ,"3,000.00",22/11/2013,R,WENDYKEN CONSULTING LTD       
16,Central Services,SupS Chief Execs,NON-STATUTORY MARKETING & COMM,A02019,Supplies & Services           ,Services                      ,DF02,Misc Advertising/Publicity              ,537.5,16/12/2013,R,JCDECAUX UNITED KINGDOM       
17,Central Services,SupS Chief Execs,NON-STATUTORY MARKETING & COMM,A02019,Supplies & Services           ,Services                      ,DF02,Misc Advertising/Publicity              ,537.5,26/11/2013,R,JCDECAUX UNITED KINGDOM       
18,Central Services,SupS Chief Execs,NON-STATUTORY MARKETING & COMM,A02019,Supplies & Services           ,Services                      ,DF02,Misc Advertising/Publicity              ,537.5,25/11/2013,R,JCDECAUX UNITED KINGDOM       
19,Central Services,SupS Chief Execs,NON-STATUTORY MARKETING & COMM,A02019,Supplies & Services           ,Services                      ,DF35,Graphic Design                          ,797.5,28/11/2013,R,DOMINO 4 LIMITED              
20,Central Services,SupS Chief Execs,NON-STATUTORY MARKETING & COMM,A02019,Supplies & Services           ,Services                      ,DF35,Graphic Design                          ,"4,230.00",11/12/2013,R,THE BIG IDEA (MARK BUCKINGHAM)
21,Central Services,SupS Chief Execs,NON-STATUTORY MARKETING & COMM,A02019,Supplies & Services           ,Grants and Subscriptions      ,DJ04,Subscriptions                           ,562.5,01/11/2013,R,PANACEA SOFTWARE LTD          
22,Central Services,SupS Chief Execs,NON-STATUTORY MARKETING & COMM,A02019,Supplies & Services           ,Grants and Subscriptions      ,DJ04,Subscriptions                           ,600,29/11/2013,R,FLAME LIMITED                 
23,Central Services,SupS Chief Execs,Democratic Services,A02023,Supplies & Services           ,Equip Furniture/Materials     ,DA09,Equip-Purchases                         ,685,27/11/2013,R,R G JONES SOUND ENGINEER      
24,Central Services,SupS Chief Execs,Press and Public Relations.,A02026,Supplies & Services           ,Prntng Stnry Gen Off Exp      ,DE20,Council Magazine                        ,"3,892.00",15/11/2013,R,LONDON LETTERBOX MARKETING    
25,Central Services,SupS Chief Execs,Press and Public Relations.,A02026,Supplies & Services           ,Expenses                      ,DH21,Christma Lights                         ,"1,132.00",13/11/2013,R,MILLWARD FORESTRY             
26,CS -Oth Operating Inc & Expend,T/A Corporate Services,Prtng Jobs - Ext Agncy,A03041,Supplies & Services           ,Prntng Stnry Gen Off Exp      ,DE01,External Printing                       ,"2,465.00",10/12/2013,R,LIMETREE OFFSET LTD           
27,CS -Oth Operating Inc & Expend,T/A Corporate Services,Prtng Jobs - Ext Agncy,A03041,Supplies & Services           ,Prntng Stnry Gen Off Exp      ,DE01,External Printing                       ,934,29/11/2013,R,CLIFFE ENTERPRISE             
28,CS -Oth Operating Inc & Expend,T/A Corporate Services,Prtng Jobs - Ext Agncy,A03041,Supplies & Services           ,Prntng Stnry Gen Off Exp      ,DE01,External Printing                       ,795,19/12/2013,R,RECOGNITION EXPRESS           
29,CS -Oth Operating Inc & Expend,T/A Corporate Services,Prtng Jobs - Ext Agncy,A03041,Supplies & Services           ,Prntng Stnry Gen Off Exp      ,DE01,External Printing                       ,"1,830.00",19/12/2013,R,RECOGNITION EXPRESS           
30,CS -Oth Operating Inc & Expend,T/A Corporate Services,Prtng Jobs - Ext Agncy,A03041,Supplies & Services           ,Prntng Stnry Gen Off Exp      ,DE01,External Printing                       ,757,09/12/2013,R,IMPRESS PRINT SERVICES LTD    
31,CS -Oth Operating Inc & Expend,T/A Corporate Services,PrintUnit-HighVolPhtcopying,A03042,Supplies & Services           ,Prntng Stnry Gen Off Exp      ,DE03,Stationery                              ,620,26/11/2013,R,TOMPLA UK LTD                 
32,CS -Oth Operating Inc & Expend,T/A Corporate Services,PrintUnit-HighVolPhtcopying,A03042,Third Party Payments          ,Private Contractors           ,EH02,Miscellaneous Hired Services            ,774.81,02/12/2013,R,OCE (UK) LTD                  
33,CS -Oth Operating Inc & Expend,T/A Corporate Services,PrintUnit-HighVolPhtcopying,A03042,Third Party Payments          ,Private Contractors           ,EH02,Miscellaneous Hired Services            ,"6,000.00",02/12/2013,R,OCE (UK) LTD                  
34,Central Services,SupS Comm and Member Services,COMMUNITY ENGAGAMENT,A04057,Supplies & Services           ,Services                      ,DF32,Customer Survey                         ,"43,000.00",12/12/2013,R,TNS UK LTD                    
35,Central Services,SupS Best Value,Merton Link,A04070,Supplies & Services           ,Comms and Computing           ,DG15,Network Maintenance                     ,936.92,02/12/2013,R,NORTHGATE INFORMATION SOLUTION
36,Central Services,Grants - Voluntary Groups,VOLUNTARY SECTOR COORDINATION,A04082,Supplies & Services           ,Grants and Subscriptions      ,DJ01,Grants                                  ,"12,000.00",25/11/2013,R,MERTON VOLUNTARY SERV COUNCIL 
37,Central Services,SupS Comm and Member Services,COMMERICIAL SERVICES,A04085,Employees                     ,Direct Employee Expenses      ,AA17,Agency Staff & Casual Paymts            ,"3,390.00",04/12/2013,R,REDACTED
38,Central Services,SupS Comm and Member Services,COMMERICIAL SERVICES,A04085,Employees                     ,Direct Employee Expenses      ,AA17,Agency Staff & Casual Paymts            ,"3,390.00",20/11/2013,R,REDACTED
39,Central Services,SupS Comm and Member Services,COMMERICIAL SERVICES,A04085,Employees                     ,Direct Employee Expenses      ,AA17,Agency Staff & Casual Paymts            ,"3,390.00",06/11/2013,R,REDACTED
40,Central Services,Registn Birth/Death/Marriage,Reg of B. Deaths & Ms,B06143,Supplies & Services           ,Grants and Subscriptions      ,DJ04,Subscriptions                           ,575,13/12/2013,R,OFFICE OF THE IMMIGRATION     
41,Central Services,SupS Health & Safety,Learning and Development,B06146,Employees                     ,Indirect Employee Expenses    ,AB56,Internal Training Costs                 ,"5,181.00",17/12/2013,R,CYLIX LIMITED                 
42,Central Services,SupS Health & Safety,Learning and Development,B06146,Employees                     ,Indirect Employee Expenses    ,AB57,EXTERNAL TRAINING COSTS                 ,890,26/11/2013,R,MAYBO                         
43,Central Services,SupS Health & Safety,Learning and Development,B06146,Employees                     ,Indirect Employee Expenses    ,AB57,EXTERNAL TRAINING COSTS                 ,575,18/11/2013,R,LONDON SCHOOL OF FIRST AID    
44,Central Services,SupS Health & Safety,Learning and Development,B06146,Employees                     ,Indirect Employee Expenses    ,AB57,EXTERNAL TRAINING COSTS                 ,650,18/11/2013,R,LONDON SCHOOL OF FIRST AID    
45,Central Services,SupS Health & Safety,Learning and Development,B06146,Employees                     ,Indirect Employee Expenses    ,AB57,EXTERNAL TRAINING COSTS                 ,"1,200.00",18/12/2013,R,KRUGER ASSOCIATES             
46,Central Services,SupS Health & Safety,Learning and Development,B06146,Employees                     ,Indirect Employee Expenses    ,AB57,EXTERNAL TRAINING COSTS                 ,"1,200.00",09/10/2013,R,KRUGER ASSOCIATES             
47,Central Services,SupS Health & Safety,Learning and Development,B06146,Employees                     ,Indirect Employee Expenses    ,AB57,EXTERNAL TRAINING COSTS                 ,575,13/12/2013,R,LONDON SCHOOL OF FIRST AID    
48,Central Services,SupS Health & Safety,Learning and Development,B06146,Employees                     ,Indirect Employee Expenses    ,AB57,EXTERNAL TRAINING COSTS                 ,890,27/11/2013,R,MAYBO                         
49,Central Services,SupS Health & Safety,Learning and Development,B06146,Employees                     ,Indirect Employee Expenses    ,AB57,EXTERNAL TRAINING COSTS                 ,890,03/12/2013,R,MAYBO                         
50,Central Services,SupS Health & Safety,Learning and Development,B06146,Employees                     ,Indirect Employee Expenses    ,AB57,EXTERNAL TRAINING COSTS                 ,725,21/02/2013,R,CIPFA BUSINESS LTD            
51,Central Services,SupS Health & Safety,Learning and Development,B06146,Employees                     ,Indirect Employee Expenses    ,AB57,EXTERNAL TRAINING COSTS                 ,605,18/11/2013,R,LONDON SCHOOL OF FIRST AID    
52,Central Services,SupS Health & Safety,Learning and Development,B06146,Employees                     ,Indirect Employee Expenses    ,AB57,EXTERNAL TRAINING COSTS                 ,750,10/11/2013,R,PM SOCIAL CARE LTD            
53,Central Services,SupS Health & Safety,Learning and Development,B06146,Employees                     ,Indirect Employee Expenses    ,AB57,EXTERNAL TRAINING COSTS                 ,"1,900.00",30/09/2013,R,LABC                          
54,Central Services,SupS Health & Safety,Learning and Development,B06146,Employees                     ,Indirect Employee Expenses    ,AB57,EXTERNAL TRAINING COSTS                 ,890,04/12/2013,R,MAYBO                         
55,Central Services,SupS Health & Safety,Learning and Development,B06146,Premises Related Expenditure  ,Rents                         ,BC03,Room/Venue hire                         ,750,10/11/2013,R,HOLIDAY INN                   
58,Central Services,SupS Health & Safety,Strategic Personnel Management,B06151,Supplies & Services           ,Services                      ,DF03,Consultants                             ,"2,595.00",11/09/2013,R,SOLACE ENTERPRISE LIMITED     
120,,,Laptops for Other Staff                 ,CC018EB,Vehicles Plant Equipment and Machinery,,D3,,"3,637.68",15/11/2013,C,SPECIALIST COMPUTER CENT. PLC 
121,,,Laptops for Other Staff                 ,CC018EB,Vehicles Plant Equipment and Machinery,,D3,,747,04/12/2013,C,VIGLEN LIMITED                
122,,,Merton Dementia Hub                     ,CC021AA,New Construction Conversion and Renovation,,B2,,"1,560.00",13/09/2013,C,SITE ANALYICAL SERVICES LTD   
123,,,Merton Dementia Hub                     ,CC021AA,New Construction Conversion and Renovation,,B4,,"68,917.61",06/12/2013,C,MILLANE CONTRACT SERVICES LTD 
124,,,Disabled Facilities Grant DCLG          ,CE004RA,Other Capital Expenditure,,E1,,"10,489.00",10/12/2013,C,TLC STAIRLIFTS                
125,,,Disabled Facilities Grant DCLG          ,CE004RA,Other Capital Expenditure,,E1,,571.1,10/12/2013,C,SUTTON STAYING PUT            
126,,,Disabled Facilities Grant DCLG          ,CE004RA,Other Capital Expenditure,,E1,,"8,938.00",10/12/2013,C,DREW PARTNERSHIP LTD.         
127,,,Disabled Facilities Grant DCLG          ,CE004RA,Other Capital Expenditure,,E1,,"1,722.37",18/12/2013,C,STAYING FIRST                 
128,,,Disabled Facilities Grant DCLG          ,CE004RA,Other Capital Expenditure,,E1,,726.9,10/12/2013,C,R E SHELLEY                   
129,,,Disabled Facilities Grant DCLG          ,CE004RA,Other Capital Expenditure,,E1,,"8,137.00",05/12/2013,C,V MAC CONSTRUCTION LTD        
130,,,Disabled Facilities Grant DCLG          ,CE004RA,Other Capital Expenditure,,E1,,"4,820.00",10/12/2013,C,DREW PARTNERSHIP LTD.         
131,,,Disabled Facilities Grant DCLG          ,CE004RA,Other Capital Expenditure,,E1,,"1,646.92",13/12/2013,C,STAYING FIRST                 
132,,,Disabled Facilities Grant DCLG          ,CE004RA,Other Capital Expenditure,,E1,,"5,794.00",13/12/2013,C,TBS ADAPTATIONS LTD           
133,,,Disabled Facilities Grant DCLG          ,CE004RA,Other Capital Expenditure,,E1,,880.72,31/12/2013,C,STAYING FIRST                 
134,,,Disabled Facilities Grant DCLG          ,CE004RA,Other Capital Expenditure,,E1,,"2,189.70",10/12/2013,C,R E SHELLEY                   
135,,,Disabled Facilities Grant DCLG          ,CE004RA,Other Capital Expenditure,,E1,,"20,961.24",31/12/2013,C,AMWELL CONSTRUCTION           
136,,,Disabled Facilities Grant DCLG          ,CE004RA,Other Capital Expenditure,,E1,,"9,665.40",31/12/2013,C,ATRIUM DESIGN & INSTALLATION  
137,,,Disabled Facilities Grant DCLG          ,CE004RA,Other Capital Expenditure,,E1,,"1,212.25",10/12/2013,C,SUTTON STAYING PUT            
138,,,Disabled Facilities Grant DCLG          ,CE004RA,Other Capital Expenditure,,E1,,647.47,10/12/2013,C,SUTTON STAYING PUT            
139,,,Disabled Facilities Grant DCLG          ,CE004RA,Other Capital Expenditure,,E1,,"9,330.00",10/12/2013,C,NONDRIP                       
140,,,Disabled Facilities Grant DCLG          ,CE004RA,Other Capital Expenditure,,E1,,"11,231.95",10/12/2013,C,F G KEEN LIMITED              
141,,,Disabled Facilities Grant DCLG          ,CE004RA,Other Capital Expenditure,,E1,,"3,560.69",31/12/2013,C,STAYING FIRST                 
142,,,Disabled Facilities Grant DCLG          ,CE004RA,Other Capital Expenditure,,E1,,"8,553.63",13/12/2013,C,TBS ADAPTATIONS LTD           
143,,,Disabled Facilities Grant DCLG          ,CE004RA,Other Capital Expenditure,,E1,,751.16,10/12/2013,C,R E SHELLEY                   
144,,,Disabled Facilities Grant DCLG          ,CE004RA,Other Capital Expenditure,,E1,,"9,733.05",10/12/2013,C,F G KEEN LIMITED              
145,,,Small Repairs Grant                     ,CE005RA,Other Capital Expenditure,,E1,,"1,290.00",13/12/2013,C,KINGSBRIDGE LOCAL LIMITED     
146,,,Small Repairs Grant                     ,CE005RA,Other Capital Expenditure,,E1,,"6,473.00",13/12/2013,C,TBS ADAPTATIONS LTD           
147,,,Colliers Wd- Regeneration Fund          ,CE006FB,Other Capital Expenditure,,E4,,"5,000.00",15/08/2013,C,GORT SCOTT LTD                
148,,,Mitcham - Outer London Fund             ,CE006FC,New Construction Conversion and Renovation,,B3,,"1,500.00",30/11/2013,C,STUDIO WEAVE LTD              
149,,,Mitcham - Outer London Fund             ,CE006FC,New Construction Conversion and Renovation,,B3,,"1,000.00",30/11/2013,C,STUDIO WEAVE LTD              
150,,,Mitcham - Outer London Fund             ,CE006FC,New Construction Conversion and Renovation,,B4,,813,26/11/2013,C,SURREY BLINDS & AWNINGS LLP   
151,,,B488 Landscape Dundonald Rec G          ,CE016CA,New Construction Conversion and Renovation,,B4,,"7,516.00",12/12/2013,C,REDACTED
152,,,Joseph Hood Playground (B524)           ,CE025CA,New Construction Conversion and Renovation,,B4,,844,27/11/2013,C,TAYLOR BUILDING COMPANY LTD   
153,,,Joseph Hood Playground (B524)           ,CE025CA,New Construction Conversion and Renovation,,B4,,874,04/12/2013,C,TAYLOR BUILDING COMPANY LTD   
154,,,Joseph Hood Playground (B524)           ,CE025CA,New Construction Conversion and Renovation,,B4,,810,27/11/2013,C,TAYLOR BUILDING COMPANY LTD   
155,,,Repairs to Footways                     ,CE029FA,New Construction Conversion and Renovation,,B4,,"50,000.00",27/11/2013,C,FM CONWAY LTD                 
156,,,Repairs to Footways                     ,CE029FA,New Construction Conversion and Renovation,,B4,,"3,870.92",27/11/2013,C,FM CONWAY LTD                 
157,,,Repairs to Footways                     ,CE029FA,New Construction Conversion and Renovation,,B4,,567.67,16/12/2013,C,FM CONWAY LTD                 
158,,,River Wandle Footbridge                 ,CE036FA,New Construction Conversion and Renovation,,B1,,"5,111.00",22/11/2013,C,HYDER CONSULTING (UK) LTD     
159,,,Garth Rd Workshop                       ,CE041AA,New Construction Conversion and Renovation,,B4,,"10,146.00",02/08/2013,C,FARNRISE CONSTRUCTION LTD     
160,,,Garth Rd Workshop                       ,CE041AA,New Construction Conversion and Renovation,,B4,,"1,887.94",02/08/2013,C,FARNRISE CONSTRUCTION LTD     
161,,,Climate Change Initiatives              ,CE052MA,New Construction Conversion and Renovation,,B2,,"6,735.96",03/11/2013,C,MPM                           
162,,,Improve markings & road signs           ,CE066EA,Vehicles Plant Equipment and Machinery,,D3,,"1,791.25",27/11/2013,C,TEASDALE GROUP LTD            
163,,,Improve markings & road signs           ,CE066EA,Vehicles Plant Equipment and Machinery,,D3,,"2,201.78",27/11/2013,C,TEASDALE GROUP LTD            
164,,,Street scene enhancements               ,CE066FE,New Construction Conversion and Renovation,,B2,,"4,980.00",20/12/2013,C,MVA CONSULTANCY
165,,,Street scene enhancements               ,CE066FE,New Construction Conversion and Renovation,,B4,,"1,952.00",15/11/2013,C,PRECIA MOLEN                  
166,,,Street Lighting Replacement Pr          ,CE068FA,New Construction Conversion and Renovation,,B4,,"2,735.69",29/11/2013,C,MAY GURNEY LTD T/A CARTLEDGE  
167,,,Street Lighting Replacement Pr          ,CE068FA,New Construction Conversion and Renovation,,B4,,734.04,14/12/2013,C,FM CONWAY LTD                 
168,,,Street Lighting Replacement Pr          ,CE068FA,New Construction Conversion and Renovation,,B6,,642,28/11/2013,C,UK POWER NETWORKS (OPERATIONS)
169,,,Street Lighting Replacement Pr          ,CE068FA,New Construction Conversion and Renovation,,B6,,642,10/12/2013,C,UK POWER NETWORKS (OPERATIONS)
170,,,Street Lighting Replacement Pr          ,CE068FA,New Construction Conversion and Renovation,,B6,,642,28/11/2013,C,UK POWER NETWORKS (OPERATIONS)
171,,,Traffic surveys & Safety Measu          ,CE075FA,Other Capital Expenditure,,E4,,"1,100.00",24/10/2013,C,TMS CONSULTANCY               
172,,,Alley Gating Scheme - Fly Tip           ,CE087FA,Other Capital Expenditure,,E1,,"4,093.20",17/12/2013,C,MELROSE AND GARDEN ALLEYGATORS
173,,,Strategic corridor Mitcham              ,CE104FB,New Construction Conversion and Renovation,,B1,,"3,490.00",12/12/2013,C,WEDDERBURN TRANSPORT PLANNING 
174,,,Strategic corridor Mitcham              ,CE104FB,New Construction Conversion and Renovation,,B2,,950,09/09/2013,C,A.G.A. GROUP                  
175,,,Kingston/Hartfield Rd StratCor          ,CE104FC,New Construction Conversion and Renovation,,B4,,746.98,29/11/2013,C,MAY GURNEY LTD T/A CARTLEDGE  
176,,,Kingston/Hartfield Rd StratCor          ,CE104FC,New Construction Conversion and Renovation,,B4,,"60,000.00",27/11/2013,C,FM CONWAY LTD                 
177,,,Accesibility Programme                  ,CE104FD,New Construction Conversion and Renovation,,B4,,"15,000.00",13/12/2013,C,FM CONWAY LTD                 
178,,,Accesibility Programme                  ,CE104FD,New Construction Conversion and Renovation,,B4,,505.54,19/12/2013,C,MAY GURNEY LTD T/A CARTLEDGE  
179,,,Casualty Reduction & Schools            ,CE104RA,New Construction Conversion and Renovation,,B4,,500,13/12/2013,C,FM CONWAY LTD                 
180,,,Casualty Reduction & Schools            ,CE104RA,New Construction Conversion and Renovation,,B4,,"22,000.00",13/12/2013,C,FM CONWAY LTD                 
181,,,School & Road Safety Campaigns          ,CE104RC,Other Capital Expenditure,,E4,,"4,805.00",24/09/2013,C,LIVING STREETS SERVICES LTD   
182,,,Cycle Improvements                      ,CE104RM,New Construction Conversion and Renovation,,B4,,"15,000.00",13/12/2013,C,FM CONWAY LTD                 
183,,,Tamworth Rec Interactive Water          ,CE110CD,New Construction Conversion and Renovation,,B4,,"5,713.00",29/11/2013,C,JUST METAL UK LTD             
184,,,Empty Homes Grant                       ,CE122RA,Other Capital Expenditure,,E1,,"5,139.41",10/12/2013,C,REDACTED
185,,,Empty Homes Grant                       ,CE122RA,Other Capital Expenditure,,E1,,"10,273.98",10/12/2013,C,REDACTED
186,,,Biking Borough Programme                ,CE128RA,Other Capital Expenditure,,E4,,"3,000.00",12/06/2013,C,PANDA HORSE                   
187,,,Improved parking- shop parades          ,CE132FA,New Construction Conversion and Renovation,,B5,,"9,636.00",18/12/2013,C,PARKEON LTD                   
188,,,Civic Centre Windows                    ,CF001AK,New Construction Conversion and Renovation,,B4,,895.52,29/11/2013,C,NETWORK BLINDS LIMITED        
189,,,Civic Centre Windows                    ,CF001AK,New Construction Conversion and Renovation,,B4,,"3,990.00",30/11/2013,C,EDE'S (U.K.) LTD              
190,,,Civic Centre Windows                    ,CF001AK,New Construction Conversion and Renovation,,B4,,"2,717.83",29/11/2013,C,NETWORK BLINDS LIMITED        
191,,,Civic Centre Windows                    ,CF001AK,New Construction Conversion and Renovation,,B4,,"243,167.70",02/12/2013,C,HAZLEMERE WINDOW CO LIMITED   
192,,,Invest to Save schemes-General          ,CF003SA,New Construction Conversion and Renovation,,B4,,"1,660.55",19/12/2013,C,MITIE TECHNICAL FACILITIES MGT
193,,,Invest to Save schemes-General          ,CF003SA,New Construction Conversion and Renovation,,B4,,"233,939.45",21/11/2013,C,MITIE TECHNICAL FACILITIES MGT
194,,,Raynes Park Sports Pavilion             ,CS003CA,New Construction Conversion and Renovation,,B4,,"27,400.00",22/11/2013,C,LENGUARD LIMITED              
195,,,St Mary's expansion                     ,CS008RA,New Construction Conversion and Renovation,,B1,,"9,027.18",31/10/2013,C,NPS PROPERTY CONSULTANTS LTD  
196,,,Pupil Growth - Unallocated              ,CS008SA,New Construction Conversion and Renovation,,B4,,"6,760.53",22/11/2013,C,THE MCAVOY GROUP              
197,,,Benedict expansion                      ,CS009AA,New Construction Conversion and Renovation,,B6,,"1,870.00",22/11/2013,C,BRITH SERVICES LIMITED        
198,,,Cranmer expansion                       ,CS010AA,New Construction Conversion and Renovation,,B4,,"333,778.65",09/12/2013,C,WILLMOTT DIXON CONSTRUCT'N LTD
199,,,Cranmer expansion                       ,CS010AA,New Construction Conversion and Renovation,,B4,,"52,939.37",13/11/2013,C,THOMAS SINDEN CONSTRUCTION LTD
200,,,Cranmer expansion                       ,CS010AA,New Construction Conversion and Renovation,,B4,,"41,537.33",06/12/2013,C,GEE CONSTRUCTION LTD          
201,,,Joseph Hood Permanent Expansn           ,CS012AA,New Construction Conversion and Renovation,,B1,,"9,912.00",20/11/2013,C,HAVERSTOCK ASSOCIATES LLP     
202,,,Joseph Hood Permanent Expansn           ,CS012AA,New Construction Conversion and Renovation,,B4,,"40,175.00",10/12/2013,C,GEE CONSTRUCTION LTD          
203,,,Garden PCP                              ,CS013AA,New Construction Conversion and Renovation,,B4,,"60,149.95",02/12/2013,C,R DURTNELL & SONS LTD         
204,,,Gorringe Park expansion                 ,CS018AB,New Construction Conversion and Renovation,,B4,,"88,650.00",01/12/2013,C,GEE CONSTRUCTION LTD          
205,,,Gorringe Park expansion                 ,CS018AB,New Construction Conversion and Renovation,,B4,,"24,120.00",10/12/2013,C,GEE CONSTRUCTION LTD          
206,,,Gorringe Park expansion                 ,CS018AB,New Construction Conversion and Renovation,,B4,,"40,102.44",20/09/2013,C,STAMFORD CONTRACTS LIMITED    
207,,,Hillcross School Expansion              ,CS020AC,New Construction Conversion and Renovation,,B1,,"2,925.00",29/11/2013,C,STACE LLP                     
208,,,Hillcross School Expansion              ,CS020AC,New Construction Conversion and Renovation,,B1,,"7,448.10",04/12/2013,C,CURL LA TOURELLE ARCHITECTS   
209,,,Hillcross School Expansion              ,CS020AC,New Construction Conversion and Renovation,,B1,,"1,925.00",29/11/2013,C,STACE LLP                     
210,,,Merton Abbey Temp Accomodation          ,CS022AC,New Construction Conversion and Renovation,,B2,,"2,817.50",29/11/2013,C,KEEGANS LIMITED               
211,,,Merton Abbey Temp Accomodation          ,CS022AC,New Construction Conversion and Renovation,,B4,,"24,807.43",28/11/2013,C,MANSELL CONSTRUCTION SERVICES 
212,,,Merton Abbey Temp Accomodation          ,CS022AC,New Construction Conversion and Renovation,,B4,,"1,944.41",28/11/2013,C,MANSELL CONSTRUCTION SERVICES 
213,,,Pelham School Expansion                 ,CS023AC,New Construction Conversion and Renovation,,B1,,"1,975.00",29/11/2013,C,STACE LLP                     
214,,,Pelham School Expansion                 ,CS023AC,New Construction Conversion and Renovation,,B1,,"6,500.00",29/11/2013,C,STACE LLP                     
215,,,Pelham School Expansion                 ,CS023AC,New Construction Conversion and Renovation,,B1,,"21,559.00",29/11/2013,C,HAVERSTOCK ASSOCIATES LLP     
216,,,Pelham School Expansion                 ,CS023AC,New Construction Conversion and Renovation,,B2,,"2,608.75",28/11/2013,C,RSK ENVIRONMENT LTD           
217,,,Dundonald expansion                     ,CS031AC,New Construction Conversion and Renovation,,B1,,"3,150.00",20/12/2013,C,AREA LANDSCAPE ARCHITECTS     
218,,,Dundonald expansion                     ,CS031AC,New Construction Conversion and Renovation,,B1,,"2,868.75",31/12/2013,C,SYNERGY CPC LLP               
219,,,Dundonald expansion                     ,CS031AC,New Construction Conversion and Renovation,,B1,,"23,086.00",28/11/2013,C,HAVERSTOCK ASSOCIATES LLP     
220,,,Dundonald expansion                     ,CS031AC,New Construction Conversion and Renovation,,B1,,"2,868.75",29/11/2013,C,SYNERGY CPC LLP               
221,,,Dundonald expansion                     ,CS031AC,New Construction Conversion and Renovation,,B1,,700,28/11/2013,C,EIGHT ASSOCIATES              
222,,,Dundonald expansion                     ,CS031AC,New Construction Conversion and Renovation,,B2,,"5,696.40",12/12/2013,C,RSK ENVIRONMENT LTD           
223,,,St Ann's Primary Phase                  ,CS032AA,New Construction Conversion and Renovation,,B4,,"17,782.95",21/10/2013,C,C FLETCHER SONS & CO LTD      
224,,,St Ann's Primary Phase                  ,CS032AA,New Construction Conversion and Renovation,,B4,,"9,025.46",18/12/2013,C,R DURTNELL & SONS LTD         
225,,,St Ann's Primary Phase                  ,CS032AA,New Construction Conversion and Renovation,,B4,,"14,371.08",04/12/2013,C,R DURTNELL & SONS LTD         
226,,,Poplar Permanent Expansion              ,CS034AB,New Construction Conversion and Renovation,,B1,,850,12/11/2013,C,PELLINGS LLP                  
227,,,Poplar Permanent Expansion              ,CS034AB,New Construction Conversion and Renovation,,B1,,"1,495.00",21/11/2013,C,PELLINGS LLP                  
228,,,Poplar Permanent Expansion              ,CS034AB,New Construction Conversion and Renovation,,B2,,"2,430.00",29/11/2013,C,KEEGANS LIMITED               
229,,,Poplar Permanent Expansion              ,CS034AB,New Construction Conversion and Renovation,,B2,,"1,100.00",29/11/2013,C,MLM MULTIDISCIPLINARY CONSULT.
230,,,Poplar Permanent Expansion              ,CS034AB,New Construction Conversion and Renovation,,B4,,"6,559.07",10/12/2013,C,THE MCAVOY GROUP              
231,,,Singlegate expansion                    ,CS049AA,New Construction Conversion and Renovation,,B1,,"55,891.00",29/11/2013,C,ATKINS LIMITED                
232,,,Wimbledon Park expansion                ,CS050AA,New Construction Conversion and Renovation,,B1,,"1,068.00",29/11/2013,C,SYNERGY CPC LLP               
233,,,Wimbledon Park expansion                ,CS050AA,New Construction Conversion and Renovation,,B1,,"1,068.00",31/12/2013,C,SYNERGY CPC LLP               
234,,,Wimbledon Park expansion                ,CS050AA,New Construction Conversion and Renovation,,B2,,"1,200.00",20/12/2013,C,MIDDLEMARCH ENVIRONMENTAL LTD 
235,,,Wimbledon Park expansion                ,CS050AA,New Construction Conversion and Renovation,,B2,,650,01/12/2013,C,GO DRAINAGE SERVICES LTD      
236,,,Wimbledon Park expansion                ,CS050AA,New Construction Conversion and Renovation,,B4,,"60,065.78",11/12/2013,C,GEE CONSTRUCTION LTD          
237,,,School kitchens/dining areas            ,CS076SA,New Construction Conversion and Renovation,,B4,,"1,901.46",09/12/2013,C,EXTRASPACE (NI) LTD           
238,,,Youth&Comm centres reprovision          ,CS083SA,New Construction Conversion and Renovation,,B4,,"53,934.35",18/11/2013,C,STP SOLUTIONS                 
239,,,Breaks-disabled children grant          ,CS085RA,New Construction Conversion and Renovation,,B4,,"1,290.00",11/11/2013,C,STP SOLUTIONS                 
240,,,Breaks-disabled children grant          ,CS085RA,New Construction Conversion and Renovation,,B4,,"5,565.00",01/08/2013,C,STP SOLUTIONS                 
241,,,Breaks-disabled children grant          ,CS085RA,New Construction Conversion and Renovation,,B4,,840,11/11/2013,C,STP SOLUTIONS                 
242,,,Breaks-disabled children grant          ,CS085RA,New Construction Conversion and Renovation,,B4,,"10,148.00",07/11/2013,C,PENUMBRA BLINDS & SOLAR CONTR.
243,,,Breaks-disabled children grant          ,CS085RA,New Construction Conversion and Renovation,,B4,,"1,350.00",01/08/2013,C,STP SOLUTIONS                 
244,,,Breaks-disabled children grant          ,CS085RA,New Construction Conversion and Renovation,,B4,,"2,060.00",01/08/2013,C,STP SOLUTIONS                 
245,,,Breaks-disabled children grant          ,CS085RA,New Construction Conversion and Renovation,,B4,,787,01/08/2013,C,STP SOLUTIONS                 
246,,,Wimb Chase-Dining Hall Roof             ,CS091AH,New Construction Conversion and Renovation,,B4,,"29,631.47",20/09/2013,C,STAMFORD CONTRACTS LIMITED    
247,,,Connect to N3 Netwrk NHS Spine          ,CT001EA,Vehicles Plant Equipment and Machinery,,D3,,"53,790.00",14/11/2013,C,NET-CTRL                      
248,,,Connect to N3 Netwrk NHS Spine          ,CT001EA,Vehicles Plant Equipment and Machinery,,D3,,"6,250.00",14/11/2013,C,NET-CTRL                      
249,,,Disaster recovery                       ,CT003EA,Vehicles Plant Equipment and Machinery,,D3,,"3,100.00",10/12/2013,C,TOTAL COMPUTER NETWORKS       
250,,,Disaster recovery                       ,CT003EA,Vehicles Plant Equipment and Machinery,,D3,,"9,555.75",14/11/2013,C,NET-CTRL                      
251,,,Disaster recovery                       ,CT003EA,Vehicles Plant Equipment and Machinery,,D3,,"3,056.75",14/11/2013,C,NET-CTRL                      
252,,,Disaster recovery                       ,CT003EA,Other Capital Expenditure,,E3,,"2,500.00",14/11/2013,C,NET-CTRL                      
253,,,IT Equipment                            ,CT006EA,Vehicles Plant Equipment and Machinery,,D3,,"2,167.00",28/10/2013,C,SYNETRIX LIMITED              
254,,,IT Equipment                            ,CT006EA,Vehicles Plant Equipment and Machinery,,D3,,"2,388.00",20/11/2013,C,ON365.CO.UK                   
255,,,IT Equipment                            ,CT006EA,Vehicles Plant Equipment and Machinery,,D3,,"3,360.00",20/11/2013,C,ON365.CO.UK                   
256,,,IT Equipment                            ,CT006EA,Vehicles Plant Equipment and Machinery,,D3,,"1,095.00",11/12/2013,C,SCALABLE COMMUNICATIONS PLC   
257,,,IT Equipment                            ,CT006EA,Vehicles Plant Equipment and Machinery,,D3,,"2,167.00",28/10/2013,C,SYNETRIX LIMITED              
258,,,IT Equipment                            ,CT006EA,Vehicles Plant Equipment and Machinery,,D3,,"1,967.80",02/12/2013,C,VIDEK LTD                     
259,,,IT Equipment                            ,CT006EA,Vehicles Plant Equipment and Machinery,,D3,,"1,371.69",06/12/2013,C,CISILION LTD                  
260,,,IT Equipment                            ,CT006EA,Vehicles Plant Equipment and Machinery,,D3,,"9,354.00",05/11/2013,C,SPECIALIST COMPUTER CENT. PLC 
261,,,IT Equipment                            ,CT006EA,Vehicles Plant Equipment and Machinery,,D3,,"2,167.00",28/10/2013,C,SYNETRIX LIMITED              
262,,,IT Equipment                            ,CT006EA,Vehicles Plant Equipment and Machinery,,D3,,"2,140.00",20/11/2013,C,ON365.CO.UK                   
263,,,IT Equipment                            ,CT006EA,Vehicles Plant Equipment and Machinery,,D3,,989.8,02/12/2013,C,VIDEK LTD                     
264,,,IT Equipment                            ,CT006EA,Vehicles Plant Equipment and Machinery,,D3,,"2,167.00",28/10/2013,C,SYNETRIX LIMITED              
265,,,IT Equipment                            ,CT006EA,Vehicles Plant Equipment and Machinery,,D3,,"5,076.12",06/12/2013,C,CISILION LTD                  
266,,,IT Equipment                            ,CT006EA,Vehicles Plant Equipment and Machinery,,D3,,"1,640.00",27/11/2013,C,SPECIALIST COMPUTER CENT. PLC 
267,,,IT Equipment                            ,CT006EA,Vehicles Plant Equipment and Machinery,,D3,,"3,318.00",06/12/2013,C,CISILION LTD                  
268,,,IT Equipment                            ,CT006EA,Vehicles Plant Equipment and Machinery,,D3,,"28,714.77",06/12/2013,C,CISILION LTD                  
269,,,IT Equipment                            ,CT006EA,Vehicles Plant Equipment and Machinery,,D3,,"3,573.80",02/12/2013,C,VIDEK LTD                     
270,,,IT Equipment                            ,CT006EA,Vehicles Plant Equipment and Machinery,,D3,,"4,780.41",13/12/2013,C,CISILION LTD                  
271,,,IT Equipment                            ,CT006EA,Vehicles Plant Equipment and Machinery,,D3,,"2,167.00",28/10/2013,C,SYNETRIX LIMITED              
272,Central Services,Council tax collection,Local Taxation Services,E02100,Supplies & Services           ,Services                      ,DF11,Counsel's Fees                          ,825,02/12/2013,R,WORLD OF 1DA                  
273,Central Services,Council tax collection,Local Taxation Services,E02100,Supplies & Services           ,Services                      ,DF11,Counsel's Fees                          ,920,26/11/2013,R,WELBECK LAW LLP               
274,Central Services,Council tax collection,Local Taxation Services,E02100,Supplies & Services           ,Services                      ,DF11,Counsel's Fees                          ,920,05/11/2013,R,WELBECK LAW LLP               
275,Central Services,SupS Corporate Finance,TRANSACTIONS,E02139,Supplies & Services           ,Comms and Computing           ,DG50,Other IT Expenditure                    ,"1,089.84",11/12/2013,R,LONDON BOROUGH OF SUTTON      
276,Central Services,SupS Payroll,Payroll,E02140,Third Party Payments          ,Private Contractors           ,EH10,Contract Payments                       ,"12,346.38",24/12/2013,R,LONDON BOROUGH OF SUTTON      
277,Central Services,SupS Payroll,Payroll,E02140,Third Party Payments          ,Private Contractors           ,EH10,Contract Payments                       ,"15,934.15",29/11/2013,R,LONDON BOROUGH OF SUTTON      
278,Central Services,SupS Payroll,Payroll,E02140,Third Party Payments          ,Private Contractors           ,EH10,Contract Payments                       ,"5,651.05",18/12/2013,R,LONDON BOROUGH OF SUTTON      
279,Central Services,SupS Facilities,Post Room,E02220,Supplies & Services           ,Equip Furniture/Materials     ,DA01,Equipment - R & M                       ,"1,607.87",01/11/2013,R,NEOPOST FINANCE LIMITED       
280,Central Services,SupS Facilities,Security Services,E02221,Employees                     ,Direct Employee Expenses      ,AA17,Agency Staff & Casual Paymts            ,"3,159.00",01/12/2013,R,SIGHT & SOUND                 
281,Central Services,SupS Facilities,Security Services,E02221,Employees                     ,Direct Employee Expenses      ,AA17,Agency Staff & Casual Paymts            ,"1,953.90",01/12/2013,R,SIGHT & SOUND                 
282,Central Services,SupS Facilities,Security Services,E02221,Employees                     ,Direct Employee Expenses      ,AA17,Agency Staff & Casual Paymts            ,"1,380.60",02/12/2013,R,SIGHT & SOUND                 
283,Central Services,SupS Facilities,Security Services,E02221,Employees                     ,Direct Employee Expenses      ,AA17,Agency Staff & Casual Paymts            ,748.8,01/12/2013,R,SIGHT & SOUND                 
284,Central Services,SupS Facilities,Security Services,E02221,Employees                     ,Direct Employee Expenses      ,AA17,Agency Staff & Casual Paymts            ,"2,059.20",01/12/2013,R,SIGHT & SOUND                 
285,Central Services,SupS Facilities,Security Services,E02221,Employees                     ,Direct Employee Expenses      ,AA17,Agency Staff & Casual Paymts            ,"1,006.20",02/12/2013,R,SIGHT & SOUND                 
286,Central Services,SupS Facilities,Civic Centre,E02222,Premises Related Expenditure  ,RepairsAlterations&MtceOfBldgs,BA29,BUILD MAINT MGT FEES                    ,"3,216.00",29/11/2013,R,FORBO FLOORING UK LTD         
287,Central Services,SupS Facilities,Civic Centre,E02222,Premises Related Expenditure  ,RepairsAlterations&MtceOfBldgs,BA29,BUILD MAINT MGT FEES                    ,"4,952.00",28/11/2013,R,MOY CONSTRUCTION CO LTD       
288,Central Services,SupS Facilities,Civic Centre,E02222,Premises Related Expenditure  ,RepairsAlterations&MtceOfBldgs,BA29,BUILD MAINT MGT FEES                    ,600,31/10/2013,R,PW INDUSTRIAL SVCE/S LTD      
289,Central Services,SupS Facilities,Civic Centre,E02222,Premises Related Expenditure  ,RepairsAlterations&MtceOfBldgs,BA29,BUILD MAINT MGT FEES                    ,513.46,18/12/2013,R,UNIQUE OFFICE SOLUTIONS LTD   
290,Central Services,SupS Facilities,Civic Centre,E02222,Premises Related Expenditure  ,RepairsAlterations&MtceOfBldgs,BA29,BUILD MAINT MGT FEES                    ,"2,150.00",31/10/2013,R,PW INDUSTRIAL SVCE/S LTD      
291,Central Services,SupS Facilities,Civic Centre,E02222,Premises Related Expenditure  ,RepairsAlterations&MtceOfBldgs,BA29,BUILD MAINT MGT FEES                    ,926.5,30/11/2013,R,EDE'S (U.K.) LTD              
292,Central Services,SupS Facilities,Civic Centre,E02222,Premises Related Expenditure  ,Cleaning and Domestic Supplies,BH01,Cleaning Materials                      ,504,29/11/2013,R,GREENHAM TRADING LTD          
293,Central Services,SupS Facilities,Civic Centre,E02222,Premises Related Expenditure  ,Cleaning and Domestic Supplies,BH03,Cleaning Services                       ,"1,511.31",01/12/2013,R,BIRKIN CLEANING SERVICES LTD  
294,Central Services,SupS Facilities,Civic Centre,E02222,Premises Related Expenditure  ,Cleaning and Domestic Supplies,BH03,Cleaning Services                       ,"3,035.93",01/12/2013,R,BIRKIN CLEANING SERVICES LTD  
295,Central Services,SupS Facilities,Civic Centre,E02222,Premises Related Expenditure  ,Cleaning and Domestic Supplies,BH03,Cleaning Services                       ,819.47,01/12/2013,R,BIRKIN CLEANING SERVICES LTD  
296,Central Services,SupS Facilities,Civic Centre,E02222,Premises Related Expenditure  ,Cleaning and Domestic Supplies,BH03,Cleaning Services                       ,"1,215.98",01/12/2013,R,BIRKIN CLEANING SERVICES LTD  
297,Central Services,SupS Facilities,Civic Centre,E02222,Premises Related Expenditure  ,Cleaning and Domestic Supplies,BH03,Cleaning Services                       ,"1,642.40",01/12/2013,R,BIRKIN CLEANING SERVICES LTD  
298,Central Services,SupS Facilities,Civic Centre,E02222,Premises Related Expenditure  ,Cleaning and Domestic Supplies,BH03,Cleaning Services                       ,"1,464.69",01/12/2013,R,BIRKIN CLEANING SERVICES LTD  
299,Central Services,SupS Facilities,Civic Centre,E02222,Premises Related Expenditure  ,Cleaning and Domestic Supplies,BH03,Cleaning Services                       ,"1,199.41",01/12/2013,R,BIRKIN CLEANING SERVICES LTD  
300,Central Services,SupS Facilities,Civic Centre,E02222,Premises Related Expenditure  ,Cleaning and Domestic Supplies,BH03,Cleaning Services                       ,"1,395.29",01/12/2013,R,BIRKIN CLEANING SERVICES LTD  
301,Central Services,SupS Facilities,Civic Centre,E02222,Premises Related Expenditure  ,Cleaning and Domestic Supplies,BH03,Cleaning Services                       ,"6,473.18",01/12/2013,R,BIRKIN CLEANING SERVICES LTD  
302,Central Services,SupS Facilities,Civic Centre,E02222,Third Party Payments          ,Private Contractors           ,EH10,Contract Payments                       ,"3,536.32",22/11/2013,R,ISS COLLECTIONS LTD           
303,Central Services,SupS Facilities,Facilities,E02231,Employees                     ,Direct Employee Expenses      ,AA17,Agency Staff & Casual Paymts            ,"1,215.20",06/11/2013,R,THE OYSTER PARTNERSHIP        
304,Central Services,SupS Facilities,Facilities,E02231,Employees                     ,Direct Employee Expenses      ,AA17,Agency Staff & Casual Paymts            ,"1,215.20",04/12/2013,R,THE OYSTER PARTNERSHIP        
305,Central Services,SupS Facilities,Facilities,E02231,Employees                     ,Direct Employee Expenses      ,AA17,Agency Staff & Casual Paymts            ,"1,215.20",27/11/2013,R,THE OYSTER PARTNERSHIP        
306,Central Services,SupS Facilities,Facilities,E02231,Employees                     ,Direct Employee Expenses      ,AA17,Agency Staff & Casual Paymts            ,"1,215.20",11/12/2013,R,THE OYSTER PARTNERSHIP        
307,Central Services,SupS Facilities,Facilities,E02231,Employees                     ,Direct Employee Expenses      ,AA17,Agency Staff & Casual Paymts            ,"1,215.20",20/11/2013,R,THE OYSTER PARTNERSHIP        
308,Central Services,SupS Facilities,Facilities,E02231,Employees                     ,Direct Employee Expenses      ,AA17,Agency Staff & Casual Paymts            ,"1,215.20",30/10/2013,R,THE OYSTER PARTNERSHIP        
309,Central Services,SupS Facilities,Facilities,E02231,Employees                     ,Direct Employee Expenses      ,AA17,Agency Staff & Casual Paymts            ,"1,215.20",13/11/2013,R,THE OYSTER PARTNERSHIP        
310,Central Services,SupS Facilities,Facilities,E02231,Premises Related Expenditure  ,RepairsAlterations&MtceOfBldgs,BA02,ENERGY CONSERVATION                     ,"1,917.00",01/11/2013,R,BERGEN ENERGI                 
311,Central Services,SupS Facilities,Facilities,E02231,Premises Related Expenditure  ,RepairsAlterations&MtceOfBldgs,BA02,ENERGY CONSERVATION                     ,"4,655.00",29/11/2013,R,ARCHITECTURAL METAL FIXING SER
312,Central Services,SupS Facilities,Facilities,E02231,Premises Related Expenditure  ,RepairsAlterations&MtceOfBldgs,BA02,ENERGY CONSERVATION                     ,"1,090.00",03/12/2013,R,SYSTEMS LINK                  
313,Central Services,SupS Facilities,Facilities,E02231,Premises Related Expenditure  ,RepairsAlterations&MtceOfBldgs,BA02,ENERGY CONSERVATION                     ,"1,917.00",02/12/2013,R,BERGEN ENERGI                 
314,Central Services,SupS Facilities,Facilities,E02231,Premises Related Expenditure  ,RepairsAlterations&MtceOfBldgs,BA29,Build Maint Mgt Fees                    ,"13,500.00",17/10/2013,R,CIPFA BUSINESS LTD            
315,Central Services,SupS Facilities,Facilities,E02231,Premises Related Expenditure  ,RepairsAlterations&MtceOfBldgs,BA29,Build Maint Mgt Fees                    ,666.66,22/11/2013,R,FRONTLINE DATA LIMITED        
316,Central Services,SupS Facilities,Facilities,E02231,Premises Related Expenditure  ,RepairsAlterations&MtceOfBldgs,BA84,Asbestos                                ,"1,400.00",29/10/2013,R,LUCION ENVIRONMENTAL LTD      
317,Central Services,SupS Facilities,Facilities,E02231,Premises Related Expenditure  ,RepairsAlterations&MtceOfBldgs,BA90,Water Hygiene                           ,725,30/09/2013,R,HYDRO-X WATER TREATMENT LTD   
318,Central Services,SupS Facilities,Facilities,E02231,Premises Related Expenditure  ,RepairsAlterations&MtceOfBldgs,BA90,Water Hygiene                           ,579,30/09/2013,R,HYDRO-X WATER TREATMENT LTD   
319,Central Services,SupS Facilities,Facilities,E02231,Premises Related Expenditure  ,RepairsAlterations&MtceOfBldgs,BA90,Water Hygiene                           ,577,30/09/2013,R,HYDRO-X WATER TREATMENT LTD   
320,Central Services,SupS Facilities,Corporate Services Buildings,E02240,Premises Related Expenditure  ,RepairsAlterations&MtceOfBldgs,BA01,DDM - General Building                  ,"3,315.00",27/11/2013,R,KCM CATERING EQUIPMENT LTD    
321,Central Services,SupS Facilities,Corporate Services Buildings,E02240,Premises Related Expenditure  ,RepairsAlterations&MtceOfBldgs,BA03,DDM - Mechanical                        ,"4,118.70",26/11/2013,R,COFELY LIMITED                
322,Central Services,SupS Facilities,Corporate Services Buildings,E02240,Premises Related Expenditure  ,RepairsAlterations&MtceOfBldgs,BA05,DDM - Electrical                        ,"2,584.04",29/07/2013,R,FIRST CHOICE FACILITIES PLC   
323,Central Services,SupS Facilities,Corporate Services Buildings,E02240,Premises Related Expenditure  ,Energy Costs                  ,BB02,Electricity                             ,"16,576.14",05/12/2013,R,SCOTTISHPOWER                 
324,Central Services,SupS Facilities,Corporate Services Buildings,E02240,Premises Related Expenditure  ,Energy Costs                  ,BB02,Electricity                             ,"1,299.61",01/11/2013,R,EDF                           
325,Central Services,SupS Facilities,Corporate Services Buildings,E02240,Premises Related Expenditure  ,Energy Costs                  ,BB03,Gas (incl. Butane)                      ,596.77,09/12/2013,R,GAZPROM MARKETING&TRADING LTD 
326,Central Services,SupS Facilities,Corporate Services Buildings,E02240,Premises Related Expenditure  ,Energy Costs                  ,BB03,Gas (incl. Butane)                      ,"5,736.07",12/11/2013,R,GAZPROM MARKETING&TRADING LTD 
327,Central Services,SupS Facilities,Corporate Services Buildings,E02240,Premises Related Expenditure  ,Energy Costs                  ,BB03,Gas (incl. Butane)                      ,"8,093.19",09/12/2013,R,GAZPROM MARKETING&TRADING LTD 
328,Central Services,SupS Facilities,Corporate Services Buildings,E02240,Premises Related Expenditure  ,Water Services                ,BE01,Use of Water (Metered)                  ,"1,429.29",29/11/2013,R,SUTTON AND EAST SURREY WATER  
329,Cultural Env Reg&Plan Services,Parks & Open Spaces,E & R Buildings,E02344,Premises Related Expenditure  ,RepairsAlterations&MtceOfBldgs,BA01,DDM - General Building                  ,527.07,21/10/2013,R,COFELY LIMITED                
330,Cultural Env Reg&Plan Services,Parks & Open Spaces,E & R Buildings,E02344,Premises Related Expenditure  ,RepairsAlterations&MtceOfBldgs,BA03,DDM - Mechanical                        ,572.3,26/11/2013,R,COFELY LIMITED                
331,Adult Social Care,PS u65 Day Care,C & H Buildings,E02345,Premises Related Expenditure  ,RepairsAlterations&MtceOfBldgs,BA03,DDM - Mechanical                        ,516,15/11/2013,R,COFELY LIMITED                
332,Cultural Env Reg&Plan Services,Parks & Open Spaces,Leisure Buildings,E02350,Premises Related Expenditure  ,RepairsAlterations&MtceOfBldgs,BA03,DDM - Mechanical                        ,671.82,26/11/2013,R,COFELY LIMITED                
333,Central Services,SupS DOF,Director of Corporate Services,E04060,Employees                     ,Indirect Employee Expenses    ,AB57,External Training Costs                 ,590,16/10/2013,R,CIPFA                         
334,Central Services,SupS DOF,Director of Corporate Services,E04060,Supplies & Services           ,Services                      ,DF11,Counsel's Fees                          ,"4,370.65",29/11/2013,R,WRAGGE & CO LLP               
335,Central Services,SupS DOF,Director of Corporate Services,E04060,Supplies & Services           ,Services                      ,DF11,Counsel's Fees                          ,"3,000.00",25/11/2013,R,REDACTED
336,Central Services,SupS DOF,AD RESOURCES,E04061,Supplies & Services           ,Services                      ,DF03,CONSULTANTS                             ,"6,900.00",09/12/2013,R,PUBLIC SECTOR CONSULTANTS     
337,Central Services,SupS Audit and Fraud,Internal Audit&Service Review,E05101,Supplies & Services           ,Services                      ,DF58,Audit fee                               ,"4,500.00",19/10/2013,R,BAKER TILLY                   
338,Central Services,SupS Audit and Fraud,Internal Audit&Service Review,E05101,Supplies & Services           ,Services                      ,DF58,Audit fee                               ,"4,650.00",15/12/2013,R,BAKER TILLY                   
339,Central Services,SupS Audit and Fraud,Internal Audit&Service Review,E05101,Supplies & Services           ,Services                      ,DF58,Audit fee                               ,"9,300.00",23/11/2013,R,BAKER TILLY                   
340,Central Services,GENERATED ACCOUNT,Parking Cash Collect'n Contrct,E06225,Third Party Payments          ,Private Contractors           ,EH02,Miscellaneous Hired Services            ,"1,400.00",29/11/2013,R,BANKING AUTOMATION LTD        
341,Central Services,GENERATED ACCOUNT,Establishments' Cash Collect'n,E06226,Third Party Payments          ,Private Contractors           ,EH02,Miscellaneous Hired Services            ,"3,371.38",15/11/2013,R,LOOMIS UK LTD                 
342,Central Services,GENERATED ACCOUNT,Establishments' Cash Collect'n,E06226,Third Party Payments          ,Private Contractors           ,EH02,Miscellaneous Hired Services            ,"3,299.66",16/09/2013,R,LOOMIS UK LTD                 
343,Central Services,GENERATED ACCOUNT,Establishments' Cash Collect'n,E06226,Third Party Payments          ,Private Contractors           ,EH02,Miscellaneous Hired Services            ,"3,371.38",15/10/2013,R,LOOMIS UK LTD                 
344,Central Services,SupS DOF,Service Accountancy,E06227,Supplies & Services           ,Grants and Subscriptions      ,DJ04,Subscriptions                           ,"2,000.00",30/07/2013,R,CIPFA BUSINESS LTD            
345,Central Services,SupS Legal,AD CORPORATE GOVERNANCE,E10279,Supplies & Services           ,Prntng Stnry Gen Off Exp      ,DE03,Stationery                              ,"7,283.77",23/10/2013,R,FINANCIAL DATA MANAGEMENT PLC 
346,Central Services,SupS Legal,Legal Services,E10282,Supplies & Services           ,Services                      ,DF11,Counsel's fees                          ,"1,690.00",06/09/2013,R,REDACTED
347,Central Services,SupS Legal,Legal Services,E10282,Supplies & Services           ,Services                      ,DF28,Court Fees                              ,"2,985.00",16/12/2013,R,REDACTED
348,Central Services,SupS Legal,Legal Services,E10282,Supplies & Services           ,Services                      ,DF28,Court Fees                              ,"3,320.00",16/12/2013,R,REDACTED
349,Central Services,SupS Legal,Legal Services,E10282,Supplies & Services           ,Services                      ,DF28,Court Fees                              ,"3,400.00",16/12/2013,R,REDACTED
350,Central Services,SupS Legal,Legal Services,E10282,Supplies & Services           ,Services                      ,DF28,Court Fees                              ,"3,535.00",16/12/2013,R,REDACTED
351,Central Services,SupS Legal,Legal Services,E10282,Supplies & Services           ,Services                      ,DF28,Court Fees                              ,"26,730.00",16/12/2013,R,REDACTED
352,Central Services,SupS Legal,Legal Services,E10282,Supplies & Services           ,Services                      ,DF28,Court Fees                              ,"2,600.00",16/12/2013,R,REDACTED
353,Central Services,SupS Legal,Legal Services,E10282,Supplies & Services           ,Services                      ,DF28,Court Fees                              ,"3,420.00",16/12/2013,R,REDACTED
354,Central Services,SupS Legal,Legal Services,E10282,Supplies & Services           ,Services                      ,DF28,Court Fees                              ,"3,495.00",16/12/2013,R,REDACTED
355,Central Services,Registration of electors,Electoral Registration,E10285,Supplies & Services           ,Comms and Computing           ,DG04,Postage - General                       ,"2,304.90",25/11/2013,R,ROYAL MAIL GROUP LTD          
356,Central Services,Registration of electors,Electoral Registration,E10285,Supplies & Services           ,Comms and Computing           ,DG04,Postage - General                       ,"1,304.10",09/12/2013,R,ROYAL MAIL GROUP LTD          
357,Central Services,SupS Legal,Shared Legal Service,E10288,Supplies & Services           ,Services                      ,DF09,Miscellaneous Fees                      ,784.58,30/11/2013,R,WINCANTON RECORDS MANAGEMENT  
358,Central Services,SupS Legal,Shared Legal Service,E10288,Supplies & Services           ,Comms and Computing           ,DG04,Postage - General                       ,500,28/11/2013,R,NEOPOST FINANCE LIMITED       
359,Central Services,SupS Legal,Shared Legal Service,E10288,Supplies & Services           ,Comms and Computing           ,DG04,Postage - General                       ,500,28/11/2013,R,NEOPOST FINANCE LIMITED       
360,Central Services,SupS Legal,Shared Legal Service,E10288,Supplies & Services           ,Comms and Computing           ,DG04,Postage - General                       ,"1,500.00",11/11/2013,R,DX NETWORK SERVICES LTD       
361,Central Services,SupS Legal,Richmond Legal,E10289,Supplies & Services           ,Services                      ,DF11,Counsel's Fees                          ,"3,300.00",16/12/2013,R,REDACTED
362,Central Services,SupS Legal,Richmond Legal,E10289,Supplies & Services           ,Services                      ,DF11,Counsel's Fees                          ,"1,800.00",08/11/2013,R,REDACTED
363,Central Services,SupS Legal,Richmond Legal,E10289,Supplies & Services           ,Services                      ,DF11,Counsel's Fees                          ,"2,500.00",11/12/2013,R,REDACTED
364,Central Services,SupS Legal,Richmond Legal,E10289,Supplies & Services           ,Services                      ,DF11,Counsel's Fees                          ,500,29/11/2013,R,REDACTED
365,Central Services,SupS Legal,Richmond Legal,E10289,Supplies & Services           ,Services                      ,DF11,Counsel's Fees                          ,850,14/11/2013,R,REDACTED
366,Central Services,SupS Legal,Richmond Legal,E10289,Supplies & Services           ,Services                      ,DF11,Counsel's Fees                          ,"2,250.00",05/11/2013,R,REDACTED
367,Central Services,SupS Legal,Richmond Legal,E10289,Supplies & Services           ,Services                      ,DF11,Counsel's Fees                          ,"1,275.00",08/11/2013,R,REDACTED
368,Central Services,SupS Legal,Richmond Legal,E10289,Supplies & Services           ,Services                      ,DF11,Counsel's Fees                          ,750,20/11/2013,R,REDACTED
369,Central Services,SupS Legal,Richmond Legal,E10289,Supplies & Services           ,Services                      ,DF11,Counsel's Fees                          ,"1,275.00",21/11/2013,R,REDACTED
370,Central Services,SupS Legal,Richmond Legal,E10289,Supplies & Services           ,Services                      ,DF95,Services from Provider                  ,"2,874.80",31/10/2013,R,SHARPE PRITCHARD SOLICITORS   
371,Central Services,SupS Legal,4 Borough Legal Service                 ,E10290,Supplies & Services           ,Services                      ,DF03,Consultants                             ,"25,914.98",11/11/2013,R,LEXIS NEXIS                   
372,Central Services,SupS Legal,4 Borough Legal Service                 ,E10290,Supplies & Services           ,Services                      ,DF95,Services from Provider                  ,"1,973.00",26/11/2013,R,REDACTED
373,Central Services,SupS Legal,4 Borough Legal Service                 ,E10290,Supplies & Services           ,Services                      ,DF95,Services from Provider                  ,"3,188.00",30/09/2013,R,BROWNJACOBSON                 
374,Central Services,SupS Legal,4 Borough Legal Service                 ,E10290,Supplies & Services           ,Services                      ,DF95,Services from Provider                  ,"1,915.00",26/09/2013,R,BROWNJACOBSON                 
375,Central Services,SupS Legal,4 Borough Legal Service                 ,E10290,Supplies & Services           ,Comms and Computing           ,DG02,Software Licences                       ,687.48,08/11/2013,R,MARQUEST LIMITED              
376,Central Services,SupS Legal,4 Borough Legal Service                 ,E10290,Supplies & Services           ,Comms and Computing           ,DG02,Software Licences                       ,"1,619.64",08/11/2013,R,MARQUEST LIMITED              
377,Central Services,SupS Legal,4 Borough Legal Service                 ,E10290,Supplies & Services           ,Comms and Computing           ,DG02,Software Licences                       ,"1,619.64",08/11/2013,R,MARQUEST LIMITED              
378,K&S Shared Legal                        ,SupS Legal,K&S Shared Legal                        ,E10291,Supplies & Services           ,Equip Furniture/Materials     ,DA80,Books                                   ,"31,490.00",21/11/2013,R,LEXIS NEXIS                   
379,K&S Shared Legal                        ,SupS Legal,K&S Shared Legal                        ,E10291,Supplies & Services           ,Services                      ,DF11,Counsel's Fees                          ,500,28/11/2013,R,REDACTED
380,Sutton Legal                            ,SupS Legal,Sutton Legal                            ,E10293,Supplies & Services           ,Services                      ,DF14,Doctors and Other Fees                  ,"1,716.00",11/11/2013,R,REDACTED
381,Sutton Legal                            ,SupS Legal,Sutton Legal                            ,E10293,Supplies & Services           ,Services                      ,DF95,Services from Provider                  ,785.71,01/10/2013,R,SYMBOL FAMILY SUPPORT SERVICES
382,Sutton Legal                            ,SupS Legal,Sutton Legal                            ,E10293,Supplies & Services           ,Services                      ,DF95,Services from Provider                  ,"1,100.00",14/10/2013,R,SYMBOL FAMILY SUPPORT SERVICES
383,Sutton Legal                            ,SupS Legal,Sutton Legal                            ,E10293,Supplies & Services           ,Services                      ,DF95,Services from Provider                  ,"1,414.29",05/11/2013,R,SYMBOL FAMILY SUPPORT SERVICES
384,Sutton Legal                            ,SupS Legal,Sutton Legal                            ,E10293,Supplies & Services           ,Services                      ,DF95,Services from Provider                  ,"1,157.14",25/11/2013,R,SYMBOL FAMILY SUPPORT SERVICES
385,Sutton Legal                            ,SupS Legal,Sutton Legal                            ,E10293,Supplies & Services           ,Services                      ,DF95,Services from Provider                  ,"1,100.00",19/11/2013,R,SYMBOL FAMILY SUPPORT SERVICES
386,Sutton Legal                            ,SupS Legal,Sutton Legal                            ,E10293,Supplies & Services           ,Services                      ,DF95,Services from Provider                  ,785.71,28/10/2013,R,SYMBOL FAMILY SUPPORT SERVICES
387,Sutton Legal                            ,SupS Legal,Sutton Legal                            ,E10293,Supplies & Services           ,Services                      ,DF95,Services from Provider                  ,"1,100.00",21/10/2013,R,SYMBOL FAMILY SUPPORT SERVICES
388,Sutton Legal                            ,SupS Legal,Sutton Legal                            ,E10293,Supplies & Services           ,Services                      ,DF95,Services from Provider                  ,"1,100.00",07/10/2013,R,SYMBOL FAMILY SUPPORT SERVICES
389,Sutton Legal                            ,SupS Legal,Sutton Legal                            ,E10293,Supplies & Services           ,Services                      ,DF95,Services from Provider                  ,"1,100.00",12/11/2013,R,SYMBOL FAMILY SUPPORT SERVICES
390,Central Services,SupS Payroll,Coroners Courts,E11300,Third Party Payments          ,Joint Authorities             ,EC11,SW Inner London Coroners Crt C          ,"62,975.00",14/10/2013,R,CITY OF WESTMINSTER           
391,Central Services,SupS IT,AD Business Improvement,E14358,Employees                     ,Direct Employee Expenses      ,AA17,Agency Staff & Casual Paymts            ,"11,400.00",30/11/2013,R,PENNA PLC                     
392,Central Services,SupS IT,BI IT Projects,E14360,Supplies & Services           ,Services                      ,DF03,Consultants                             ,"5,250.00",18/11/2013,R,PRACTICUS                     
393,Central Services,SupS IT,BI IT Projects,E14360,Supplies & Services           ,Services                      ,DF03,Consultants                             ,"18,750.00",26/11/2013,R,NORTHGATE  INFORMATION SOLUT. 
394,Central Services,SupS IT,BI IT Projects,E14360,Supplies & Services           ,Services                      ,DF03,Consultants                             ,"6,000.00",28/10/2013,R,PRACTICUS                     
395,Central Services,SupS IT,BI IT Projects,E14360,Supplies & Services           ,Services                      ,DF03,Consultants                             ,"3,000.00",09/12/2013,R,PRACTICUS                     
396,Central Services,SupS IT,AD I&T,E14363,Employees                     ,Direct Employee Expenses      ,AA17,Agency Staff & Casual Paymts            ,"1,875.00",12/11/2013,R,DGH RECRUITMENT LTD           
397,Central Services,SupS IT,AD I&T,E14363,Employees                     ,Direct Employee Expenses      ,AA17,Agency Staff & Casual Paymts            ,"1,875.00",12/11/2013,R,DGH RECRUITMENT LTD           
398,Central Services,SupS IT,AD I&T,E14363,Employees                     ,Direct Employee Expenses      ,AA17,Agency Staff & Casual Paymts            ,"1,875.00",26/11/2013,R,DGH RECRUITMENT LTD           
399,Central Services,SupS IT,AD I&T,E14363,Employees                     ,Direct Employee Expenses      ,AA17,Agency Staff & Casual Paymts            ,"6,750.00",22/11/2013,R,DGH RECRUITMENT LTD           
400,Central Services,SupS IT,AD I&T,E14363,Employees                     ,Direct Employee Expenses      ,AA17,Agency Staff & Casual Paymts            ,"1,875.00",26/11/2013,R,DGH RECRUITMENT LTD           
401,Central Services,SupS IT,AD I&T,E14363,Employees                     ,Direct Employee Expenses      ,AA17,Agency Staff & Casual Paymts            ,"1,875.00",03/12/2013,R,DGH RECRUITMENT LTD           
402,Central Services,SupS IT,AD I&T,E14363,Employees                     ,Direct Employee Expenses      ,AA17,Agency Staff & Casual Paymts            ,"1,875.00",03/12/2013,R,DGH RECRUITMENT LTD           
403,Central Services,SupS IT,AD I&T,E14363,Employees                     ,Direct Employee Expenses      ,AA17,Agency Staff & Casual Paymts            ,"12,000.00",26/11/2013,R,GATENBY SANDERSON             
404,Central Services,SupS IT,Systems & Projects,E14366,Supplies & Services           ,Services                      ,DF03,Consultants                             ,"1,237.50",29/11/2013,R,ASHTON CONSULTING (UK) LTD    
405,Central Services,SupS IT,Operations & Telecomms,E14367,Employees                     ,Direct Employee Expenses      ,AA17,Agency Staff & Casual Paymts            ,"5,130.00",05/11/2013,R,REDACTED
406,Central Services,SupS IT,Operations & Telecomms,E14367,Supplies & Services           ,Comms and Computing           ,DG15,Network Maintenance                     ,612.35,14/11/2013,R,NET-CTRL                      
407,Central Services,SupS IT,Operations & Telecomms,E14367,Supplies & Services           ,Comms and Computing           ,DG15,Network Maintenance                     ,519.25,14/11/2013,R,NET-CTRL                      
408,Central Services,SupS IT,Operations & Telecomms,E14367,Supplies & Services           ,Comms and Computing           ,DG15,Network Maintenance                     ,"1,495.00",14/11/2013,R,NET-CTRL                      
409,Central Services,SupS IT,Operations & Telecomms,E14367,Supplies & Services           ,Comms and Computing           ,DG15,Network Maintenance                     ,"1,615.95",14/11/2013,R,NET-CTRL                      
410,Central Services,SupS IT,Operations & Telecomms,E14367,Supplies & Services           ,Comms and Computing           ,DG15,Network Maintenance                     ,"1,935.75",14/11/2013,R,NET-CTRL                      
411,Central Services,SupS IT,Operations & Telecomms,E14367,Supplies & Services           ,Comms and Computing           ,DG54,Corporate Telephones                    ,"5,550.00",28/10/2013,R,SYNETRIX LIMITED              
412,Central Services,SupS IT,Operations & Telecomms,E14367,Supplies & Services           ,Comms and Computing           ,DG54,Corporate Telephones                    ,"4,269.00",28/10/2013,R,SYNETRIX LIMITED              
413,Central Services,SupS IT,Operations & Telecomms,E14367,Supplies & Services           ,Comms and Computing           ,DG54,Corporate Telephones                    ,-725,17/12/2013,R,EVERYTHING EVERYWHERE         
414,Central Services,SupS IT,Operations & Telecomms,E14367,Supplies & Services           ,Comms and Computing           ,DG54,Corporate Telephones                    ,"9,912.34",04/12/2013,R,T MOBILE (UK)                 
415,Central Services,SupS IT,Operations & Telecomms,E14367,Supplies & Services           ,Comms and Computing           ,DG54,Corporate Telephones                    ,"1,066.68",29/11/2013,R,O2 (UK) LIMITED               
416,Central Services,SupS IT,Operations & Telecomms,E14367,Supplies & Services           ,Comms and Computing           ,DG54,Corporate Telephones                    ,"4,785.48",02/12/2013,R,BRITISH TELECOMMUNICATIONS PLC
417,Central Services,SupS IT,Operations & Telecomms,E14367,Supplies & Services           ,Comms and Computing           ,DG54,Corporate Telephones                    ,"4,269.00",28/10/2013,R,SYNETRIX LIMITED              
418,Central Services,SupS IT,Operations & Telecomms,E14367,Supplies & Services           ,Comms and Computing           ,DG54,Corporate Telephones                    ,"6,415.00",28/10/2013,R,SYNETRIX LIMITED              
419,Central Services,SupS IT,Operations & Telecomms,E14367,Supplies & Services           ,Comms and Computing           ,DG54,Corporate Telephones                    ,-625,17/12/2013,R,EVERYTHING EVERYWHERE         
420,Central Services,SupS IT,Operations & Telecomms,E14367,Supplies & Services           ,Comms and Computing           ,DG54,Corporate Telephones                    ,"6,914.00",28/10/2013,R,SYNETRIX LIMITED              
421,Central Services,SupS IT,Distributed Services,E14368,Supplies & Services           ,Comms and Computing           ,DG16,Distributed & Network Purchase          ,660,14/11/2013,R,SPECIALIST COMPUTER CENT. PLC 
422,Central Services,SupS IT,Distributed Services,E14368,Supplies & Services           ,Comms and Computing           ,DG63,Software Licences - Data                ,"6,787.69",21/11/2013,R,CIVICA UK LIMITED             
423,Central Services,SupS IT,Distributed Services,E14368,Supplies & Services           ,Comms and Computing           ,DG63,Software Licences - Data                ,"3,168.00",19/11/2013,R,NETWORLD UK                   
424,Central Services,SupS IT,Distributed Services,E14368,Supplies & Services           ,Comms and Computing           ,DG63,Software Licences - Data                ,"5,220.00",19/11/2013,R,NETWORLD UK                   
425,Central Services,SupS IT,Distributed Services,E14368,Supplies & Services           ,Comms and Computing           ,DG63,Software Licences - Data                ,"3,800.00",14/11/2013,R,BARRON MCCANN PAYMENTS LTD    
426,Central Services,SupS IT,Distributed Services,E14368,Supplies & Services           ,Comms and Computing           ,DG63,Software Licences - Data                ,"4,032.00",19/11/2013,R,NETWORLD UK                   
427,Central Services,SupS IT,Distributed Services,E14368,Supplies & Services           ,Comms and Computing           ,DG65,Application Licences                    ,"1,795.00",14/11/2013,R,NET-CTRL                      
428,Central Services,SupS IT,Distributed Services,E14368,Supplies & Services           ,Comms and Computing           ,DG65,Application Licences                    ,"7,511.50",14/11/2013,R,NET-CTRL                      
429,Central Services,SupS IT,Distributed Services,E14368,Supplies & Services           ,Comms and Computing           ,DG65,Application Licences                    ,"9,030.70",14/11/2013,R,NET-CTRL                      
430,Central Services,SupS IT,Corp Saving-IT Consolidation,E14370,Premises Related Expenditure  ,RepairsAlterations&MtceOfBldgs,BA01,DDM - General Building                  ,"4,081.25",20/12/2013,R,SALTASH ENTERPRISES LTD       
431,Central Services,SupS IT,Corp Saving-IT Consolidation,E14370,Premises Related Expenditure  ,RepairsAlterations&MtceOfBldgs,BA01,DDM - General Building                  ,"10,264.60",12/11/2013,R,SALTASH ENTERPRISES LTD       
432,Central Services,SupS IT,Corp Saving-IT Consolidation,E14370,Premises Related Expenditure  ,RepairsAlterations&MtceOfBldgs,BA01,DDM - General Building                  ,"20,930.00",20/12/2013,R,SALTASH ENTERPRISES LTD       
433,Central Services,SupS IT,Corp Saving-IT Consolidation,E14370,Premises Related Expenditure  ,RepairsAlterations&MtceOfBldgs,BA01,DDM - General Building                  ,"15,662.50",20/12/2013,R,SALTASH ENTERPRISES LTD       
434,Central Services,SupS IT,Corp Saving-IT Consolidation,E14370,Premises Related Expenditure  ,RepairsAlterations&MtceOfBldgs,BA01,DDM - General Building                  ,"3,980.00",09/12/2013,R,COBSEN-DAVIES ROOFING (LOND)LT
435,Central Services,SupS IT,Corp Saving-IT Consolidation,E14370,Premises Related Expenditure  ,RepairsAlterations&MtceOfBldgs,BA01,DDM - General Building                  ,"25,152.00",20/12/2013,R,SALTASH ENTERPRISES LTD       
436,Central Services,SupS IT,Corp Saving-IT Consolidation,E14370,Premises Related Expenditure  ,RepairsAlterations&MtceOfBldgs,BA01,DDM - General Building                  ,"6,037.50",12/11/2013,R,SALTASH ENTERPRISES LTD       
437,Central Services,SupS IT,Corp Saving-IT Consolidation,E14370,Premises Related Expenditure  ,RepairsAlterations&MtceOfBldgs,BA01,DDM - General Building                  ,"1,825.00",12/11/2013,R,SALTASH ENTERPRISES LTD       
438,Central Services,SupS IT,Corp Saving-IT Consolidation,E14370,Premises Related Expenditure  ,RepairsAlterations&MtceOfBldgs,BA01,DDM - General Building                  ,"19,649.19",20/12/2013,R,SALTASH ENTERPRISES LTD       
439,Central Services,SupS IT,Corp Saving-IT Consolidation,E14370,Premises Related Expenditure  ,RepairsAlterations&MtceOfBldgs,BA01,DDM - General Building                  ,"11,250.00",12/11/2013,R,SALTASH ENTERPRISES LTD       
440,Central Services,SupS IT,Corp Saving-IT Consolidation,E14370,Premises Related Expenditure  ,RepairsAlterations&MtceOfBldgs,BA03,DDM - Mechanical                        ,"2,943.43",15/11/2013,R,COFELY LIMITED                
441,Central Services,SupS IT,No longer used,E14371,Employees                     ,Direct Employee Expenses      ,AA17,Agency Staff & Casual Paymts            ,"2,995.00",21/11/2013,R,REDACTED
442,Central Services,SupS IT,No longer used,E14371,Employees                     ,Direct Employee Expenses      ,AA17,Agency Staff & Casual Paymts            ,"2,995.00",29/11/2013,R,REDACTED
443,Central Services,SupS IT,No longer used,E14371,Supplies & Services           ,Services                      ,DF03,Consultants                             ,"10,700.00",02/12/2013,R,V4 SERVICES LIMITED           
444,Central Services,SupS IT,Business Systems - Deptl Supt,E14377,Supplies & Services           ,Comms and Computing           ,DG15,Network Maintenance                     ,"2,052.00",06/12/2013,R,CISILION LTD                  
445,Highways & Transport Services,Repair prin/oth rds not split,Walk Sheets,G00127,Third Party Payments          ,Private Contractors           ,EH56,Carriageway/Fway Maint                  ,733.6,27/11/2013,R,FM CONWAY LTD                 
446,Highways & Transport Services,Repair prin/oth rds not split,Walk Sheets,G00127,Third Party Payments          ,Private Contractors           ,EH56,Carriageway/Fway Maint                  ,"1,977.98",16/12/2013,R,FM CONWAY LTD                 
447,Highways & Transport Services,Repair prin/oth rds not split,Walk Sheets,G00127,Third Party Payments          ,Private Contractors           ,EH56,Carriageway/Fway Maint                  ,"15,000.00",16/12/2013,R,FM CONWAY LTD                 
448,Highways & Transport Services,Repair prin/oth rds not split,Walk Sheets,G00127,Third Party Payments          ,Private Contractors           ,EH56,Carriageway/Fway Maint                  ,"3,614.07",07/12/2013,R,FM CONWAY LTD                 
449,Highways & Transport Services,Repair prin/oth rds not split,Walk Sheets,G00127,Third Party Payments          ,Private Contractors           ,EH56,Carriageway/Fway Maint                  ,734.71,27/11/2013,R,FM CONWAY LTD                 
450,Highways & Transport Services,Repair prin/oth rds not split,Walk Sheets,G00127,Third Party Payments          ,Private Contractors           ,EH56,Carriageway/Fway Maint                  ,"2,939.04",14/12/2013,R,FM CONWAY LTD                 
451,Highways & Transport Services,Repair prin/oth rds not split,Walk Sheets,G00127,Third Party Payments          ,Private Contractors           ,EH56,Carriageway/Fway Maint                  ,"3,005.60",14/12/2013,R,FM CONWAY LTD                 
452,Highways & Transport Services,Repair prin/oth rds not split,Walk Sheets,G00127,Third Party Payments          ,Private Contractors           ,EH56,Carriageway/Fway Maint                  ,"9,807.16",27/11/2013,R,FM CONWAY LTD                 
453,Highways & Transport Services,Saf mtc prin/oth rds not split,Traffic Signs.,G00160,Third Party Payments          ,Private Contractors           ,EH01,Miscellaneous Agency Services           ,642,10/12/2013,R,UK POWER NETWORKS (OPERATIONS)
454,Highways & Transport Services,TRAF & HWYS CAPITAL PROJECTS,TRAF & HWYS CAPITAL PROJECTS,G00210,Supplies & Services           ,Services                      ,DF05,Surveys (General)                       ,"23,321.35",20/12/2013,R,HIGHWAY SURVEYORS             
455,Highways & Transport Services,TRAF & HWYS CAPITAL PROJECTS,TRAF & HWYS CAPITAL PROJECTS,G00210,Supplies & Services           ,Services                      ,DF05,Surveys (General)                       ,"7,500.00",12/11/2013,R,REDACTED
456,Highways & Transport Services,TRAF & HWYS CAPITAL PROJECTS,TRAF & HWYS CAPITAL PROJECTS,G00210,Supplies & Services           ,Services                      ,DF05,Surveys (General)                       ,"4,284.00",17/12/2013,R,JACOBS UK LIMITED             
457,Highways & Transport Services,Transport Plg/Policy/Strategy,CPZ implementation & Consultat,G00211,Supplies & Services           ,Services                      ,DF02,Misc Advertising/Publicity              ,"1,091.70",30/11/2013,R,NEWSQUEST (LONDON)LTD         
458,Highways & Transport Services,Transport Plg/Policy/Strategy,CPZ implementation & Consultat,G00211,Third Party Payments          ,Private Contractors           ,EH56,Carriageway/Fway Maint                  ,"5,291.83",27/11/2013,R,FM CONWAY LTD                 
459,Highways & Transport Services,Street Lighting.,Street Lighting .,G00260,Premises Related Expenditure  ,Energy Costs                  ,BB02,Electricity                             ,"46,771.24",03/12/2013,R,SCOTTISHPOWER                 
460,Highways & Transport Services,Street Lighting.,Street Lighting .,G00260,Third Party Payments          ,Private Contractors           ,EH01,Miscellaneous Agency Services           ,805.56,19/12/2013,R,MAY GURNEY LTD T/A CARTLEDGE  
461,Highways & Transport Services,Street Lighting.,Street Lighting .,G00260,Third Party Payments          ,Private Contractors           ,EH01,Miscellaneous Agency Services           ,849,19/12/2013,R,MAY GURNEY LTD T/A CARTLEDGE  
462,Highways & Transport Services,Street Lighting.,Street Lighting .,G00260,Third Party Payments          ,Private Contractors           ,EH01,Miscellaneous Agency Services           ,979.65,29/11/2013,R,MAY GURNEY LTD T/A CARTLEDGE  
463,Highways & Transport Services,Street Lighting.,Street Lighting .,G00260,Third Party Payments          ,Private Contractors           ,EH01,Miscellaneous Agency Services           ,879.49,19/12/2013,R,MAY GURNEY LTD T/A CARTLEDGE  
464,Highways & Transport Services,Street Lighting.,Street Lighting .,G00260,Third Party Payments          ,Private Contractors           ,EH01,Miscellaneous Agency Services           ,620.85,19/12/2013,R,MAY GURNEY LTD T/A CARTLEDGE  
465,Highways & Transport Services,Street Lighting.,Street Lighting .,G00260,Third Party Payments          ,Private Contractors           ,EH01,Miscellaneous Agency Services           ,"13,947.98",29/11/2013,R,MAY GURNEY LTD T/A CARTLEDGE  
466,Highways & Transport Services,Street Lighting.,Street Lighting .,G00260,Third Party Payments          ,Private Contractors           ,EH01,Miscellaneous Agency Services           ,"1,605.00",22/11/2013,R,UK POWER NETWORKS (OPERATIONS)
467,Highways & Transport Services,Street Lighting.,Street Lighting .,G00260,Third Party Payments          ,Private Contractors           ,EH01,Miscellaneous Agency Services           ,"3,310.16",29/11/2013,R,MAY GURNEY LTD T/A CARTLEDGE  
468,Highways & Transport Services,Street Lighting.,Street Lighting .,G00260,Third Party Payments          ,Private Contractors           ,EH01,Miscellaneous Agency Services           ,659,10/12/2013,R,UK POWER NETWORKS (OPERATIONS)
469,Highways & Transport Services,Street Lighting.,Street Lighting .,G00260,Third Party Payments          ,Private Contractors           ,EH01,Miscellaneous Agency Services           ,"3,897.35",19/12/2013,R,MAY GURNEY LTD T/A CARTLEDGE  
470,Highways & Transport Services,Off-street parking,Coombe Lane,G00292,Premises Related Expenditure  ,Rents                         ,BC01,Miscellaneous Rents                     ,"9,562.50",21/11/2013,R,CAPITA SYMONDS LTD            
471,Highways & Transport Services,Off-street parking,York Close CP,G00298,Premises Related Expenditure  ,Rents                         ,BC01,Miscellaneous Rents                     ,"36,552.60",04/12/2013,R,TRANSPORT TRADING LTD PROP A/C
472,Highways & Transport Services,Off-street parking,St. Georges Car Park EAST,G00300,Premises Related Expenditure  ,Rents                         ,BC01,Miscellaneous Rents                     ,824.39,18/11/2013,R,LLOYDS BANK SF NOMINEES LTD   
473,Highways & Transport Services,Off-street parking,St. Georges Car Park WEST M/S,G00302,Premises Related Expenditure  ,Energy Costs                  ,BB02,Electricity                             ,"1,248.29",02/12/2013,R,SCOTTISHPOWER                 
474,Highways & Transport Services,Off-street parking,St. Georges Car Park WEST M/S,G00302,Premises Related Expenditure  ,Rents                         ,BC01,Miscellaneous Rents                     ,"4,663.10",21/11/2013,R,SACKVILLE SPF IV (GP) NO 1 LTD
475,Highways & Transport Services,Off-street parking,Peel Hse C P - Upper,G00303,Premises Related Expenditure  ,Rents                         ,BC01,Miscellaneous Rents                     ,"3,000.00",04/12/2013,R,TRANSPORT TRADING LTD PROP A/C
476,Highways & Transport Services,Off-street parking,"St. Mks Rd, Multi Sty",G00308,Premises Related Expenditure  ,Energy Costs                  ,BB02,Electricity                             ,"2,195.93",31/10/2013,R,EDF ENERGY 1 LIMITED          
477,Highways & Transport Services,On-street parking,On Street Parking.,G00311,Premises Related Expenditure  ,RepairsAlterations&MtceOfBldgs,BA06,Repairs & Maintenance General           ,"1,312.04",27/11/2013,R,TEASDALE GROUP LTD            
478,Highways & Transport Services,On-street parking,On Street Parking.,G00311,Premises Related Expenditure  ,RepairsAlterations&MtceOfBldgs,BA06,Repairs & Maintenance General           ,800.17,27/11/2013,R,FM CONWAY LTD                 
479,Highways & Transport Services,Parking Enforcement not split,Civil Enforcement Officers,G00330,Premises Related Expenditure  ,Rents                         ,BC01,Miscellaneous Rents                     ,"4,377.50",11/12/2013,R,WOODCOCK BROTHERS (WIMBLEDON) 
480,Highways & Transport Services,Parking Enforcement not split,Civil Enforcement Officers,G00330,Supplies & Services           ,Equip Furniture/Materials     ,DA09,Equip-Purchases                         ,877.5,03/12/2013,R,QUARTIX                       
481,Highways & Transport Services,Parking Enforcement not split,Operational Running Costs,G00331,Supplies & Services           ,Equip Furniture/Materials     ,DA09,Equip-Purchases                         ,"1,456.44",04/12/2013,R,PARKEON LTD                   
482,Highways & Transport Services,Repair prin/oth rds not split,Flood Risk Management,G00350,Supplies & Services           ,Services                      ,DF03,Consultants                             ,"3,448.66",12/12/2013,R,URS INFRASTRUCTURE & ENV UK LT
483,Highways & Transport Services,Repair prin/oth rds not split,Flood Risk Management,G00350,Third Party Payments          ,Private Contractors           ,EH56,Carriageway/Fway Maint                  ,"40,000.00",07/12/2013,R,FM CONWAY LTD                 
484,Highways & Transport Services,Hwys/Rds (struct) not split,Footpath Crossings.,G00390,Third Party Payments          ,Private Contractors           ,EH56,Carriageway/Fway Maint                  ,"5,501.47",27/11/2013,R,FM CONWAY LTD                 
485,Highways & Transport Services,Hwys/Rds (struct) not split,Footpath Crossings.,G00390,Third Party Payments          ,Private Contractors           ,EH56,Carriageway/Fway Maint                  ,"3,280.32",16/12/2013,R,FM CONWAY LTD                 
486,Cultural Env Reg&Plan Services,Street Clean - Not highways,Street Cleansing (Inc. Gully),G00492,Employees                     ,Direct Employee Expenses      ,AA17,Agency Staff & Casual Paymts            ,"8,147.16",15/10/2013,R,REDACTED
487,Cultural Env Reg&Plan Services,Street Clean - Not highways,Street Cleansing (Inc. Gully),G00492,Employees                     ,Indirect Employee Expenses    ,AB57,External Training Costs                 ,"1,224.00",23/10/2013,R,PRACTICAL HEALTH & SAFETY SER.
488,Cultural Env Reg&Plan Services,Street Clean - Not highways,Street Cleansing (Inc. Gully),G00492,Supplies & Services           ,Equip Furniture/Materials     ,DA01,Equipment - R & M                       ,882.8,29/11/2013,R,N A BROWN LTD                 
489,Cultural Env Reg&Plan Services,Street Clean - Not highways,Street Cleansing (Inc. Gully),G00492,Supplies & Services           ,Equip Furniture/Materials     ,DA08,Tools-Purchase                          ,"2,665.74",20/11/2013,R,BELL BRUSH                    
490,Cultural Env Reg&Plan Services,Street Clean - Not highways,Street Cleansing (Inc. Gully),G00492,Supplies & Services           ,Equip Furniture/Materials     ,DA31,Waste Sacks & Bags                      ,"1,647.00",01/11/2013,R,CROMWELL POLYTHENE            
491,Cultural Env Reg&Plan Services,Street Clean - Not highways,Street Cleansing (Inc. Gully),G00492,Supplies & Services           ,Equip Furniture/Materials     ,DA31,Waste Sacks & Bags                      ,"-1,061.89",19/11/2013,R,CROMWELL POLYTHENE            
492,Cultural Env Reg&Plan Services,Street Clean - Not highways,Street Cleansing (Inc. Gully),G00492,Supplies & Services           ,Equip Furniture/Materials     ,DA31,Waste Sacks & Bags                      ,"1,061.89",01/11/2013,R,CROMWELL POLYTHENE            
493,Cultural Env Reg&Plan Services,Street Clean - Not highways,Street Cleansing (Inc. Gully),G00492,Supplies & Services           ,Clothing Unfrms Laundry       ,DC02,Clothing & Uniforms                     ,"1,120.25",25/11/2013,R,SAFETY MANAGEMENT             
494,Cultural Env Reg&Plan Services,Street Clean - Not highways,Street Cleansing (Inc. Gully),G00492,Supplies & Services           ,Clothing Unfrms Laundry       ,DC02,Clothing & Uniforms                     ,"4,000.00",20/11/2013,R,SAFETY MANAGEMENT             
495,Cultural Env Reg&Plan Services,Street Clean - Not highways,Street Cleansing (Inc. Gully),G00492,Supplies & Services           ,Services                      ,DF03,Consultants                             ,"1,359.00",06/09/2013,R,THE LONDON ORTHOTIC CONSULT CO
496,Cultural Env Reg&Plan Services,Waste Disposal (not separated),Waste Disposal .,G00550,Third Party Payments          ,Private Contractors           ,EH01,Dog Bin Disposal - Biffa                ,518.57,06/12/2013,R,BIFFA WASTE SERVICES LTD      
497,Cultural Env Reg&Plan Services,Waste Disposal (not separated),Waste Disposal .,G00550,Third Party Payments          ,Private Contractors           ,EH04,C1 Viridor SLWP Landfill Contract       ,"469,820.91",29/11/2013,R,KINGSTON CORPORATION          
498,Cultural Env Reg&Plan Services,Waste Disposal (not separated),Waste Disposal .,G00550,Third Party Payments          ,Private Contractors           ,EH04,C1 Viridor SLWP Landfill Contract       ,"359,296.76",29/10/2013,R,KINGSTON CORPORATION          
499,Cultural Env Reg&Plan Services,Waste Disposal (not separated),Waste Disposal .,G00550,Third Party Payments          ,Private Contractors           ,EH10,SLWP C1 HAULAGE DRY RECYCLABLES         ,"32,085.18",29/11/2013,R,KINGSTON CORPORATION          
500,Cultural Env Reg&Plan Services,Waste Disposal (not separated),Waste Disposal .,G00550,Third Party Payments          ,Private Contractors           ,EH10,SLWP C1 HAULAGE DRY RECYCLABLES         ,"21,132.29",29/10/2013,R,KINGSTON CORPORATION          
501,Cultural Env Reg&Plan Services,Waste Disposal (not separated),Waste Disposal .,G00550,Third Party Payments          ,Private Contractors           ,EH10,SLWP C1 HAULAGE DRY RECYCLABLES         ,"14,216.45",29/10/2013,R,KINGSTON CORPORATION          
502,Cultural Env Reg&Plan Services,Waste Disposal (not separated),Waste Disposal .,G00550,Third Party Payments          ,Private Contractors           ,EH66,Clinical Waste Disposal                 ,803.74,30/11/2013,R,S.GRUNDON (WASTE) LTD.        
503,Cultural Env Reg&Plan Services,Waste Disposal (not separated),Waste Disposal .,G00550,Third Party Payments          ,Private Contractors           ,EH91,Disposal of Asbestos                    ,"1,178.34",05/11/2013,R,CITY OF LONDON CORPORATION    
504,Cultural Env Reg&Plan Services,Waste Disposal (not separated),Waste Disposal .,G00550,Third Party Payments          ,Private Contractors           ,EH91,Disposal of Asbestos                    ,"1,500.00",05/11/2013,R,CITY OF LONDON CORPORATION    
505,Cultural Env Reg&Plan Services,Waste Disposal (not separated),Waste Disposal .,G00550,Third Party Payments          ,Private Contractors           ,EH96,GULLY DISPOSAL                          ,"3,362.66",30/11/2013,R,CORY ENVIRONMENTAL LIMITED    
506,Cultural Env Reg&Plan Services,Civic Amenity Sites,Garth Road Site,G00580,Supplies & Services           ,Services                      ,DF09,Miscellaneous Fees                      ,"2,635.50",24/11/2013,R,MATT UK                       
507,Cultural Env Reg&Plan Services,Civic Amenity Sites,SLWP (Garth Rd Site)                    ,G00581,Transport Related Expenditure ,Direct Transport Costs        ,CA01,Petrol Derv & Oil                       ,"2,032.20",21/11/2013,R,HALL FUELS                    
508,Cultural Env Reg&Plan Services,Public Health,Dog Control.,G00620,Third Party Payments          ,Private Contractors           ,EH02,Miscellaneous Hired Services            ,"3,728.00",06/11/2013,R,NOAH'S ARK ENVIRONMENTAL SERV.
509,Cultural Env Reg&Plan Services,Public Health,Dog Control.,G00620,Third Party Payments          ,Private Contractors           ,EH02,Miscellaneous Hired Services            ,"1,676.81",29/11/2013,R,NOAH'S ARK ENVIRONMENTAL SERV.
510,Cultural Env Reg&Plan Services,Recycling (Collection),Recycling Activities,G00640,Supplies & Services           ,Equip Furniture/Materials     ,DA04,Materials                               ,"2,540.07",27/09/2013,R,LONDON LETTERBOX MARKETING    
511,Cultural Env Reg&Plan Services,Recycling (Collection),Recycling Activities,G00640,Supplies & Services           ,Equip Furniture/Materials     ,DA31,Waste Sacks & Bags                      ,"1,103.40",18/09/2013,R,SPHERE PROFFESSIONAL          
512,Cultural Env Reg&Plan Services,Recycling (Collection),Recycling Activities,G00640,Supplies & Services           ,Equip Furniture/Materials     ,DA31,Waste Sacks & Bags                      ,"1,897.79",18/09/2013,R,SPHERE PROFFESSIONAL          
513,Cultural Env Reg&Plan Services,Recycling (Collection),Recycling Activities,G00640,Supplies & Services           ,Equip Furniture/Materials     ,DA31,Waste Sacks & Bags                      ,"1,897.79",25/09/2013,R,SPHERE PROFFESSIONAL          
514,Cultural Env Reg&Plan Services,Recycling (Collection),Recycling Activities,G00640,Supplies & Services           ,Equip Furniture/Materials     ,DA31,Waste Sacks & Bags                      ,"13,108.16",25/09/2013,R,SPHERE PROFFESSIONAL          
515,Cultural Env Reg&Plan Services,Recycling (Collection),Recycling Activities,G00640,Supplies & Services           ,Equip Furniture/Materials     ,DA31,Waste Sacks & Bags                      ,"13,108.16",20/09/2013,R,SPHERE PROFFESSIONAL          
516,Cultural Env Reg&Plan Services,Recycling (Collection),Recycling Activities,G00640,Supplies & Services           ,Equip Furniture/Materials     ,DA31,Waste Sacks & Bags                      ,"1,112.50",11/11/2013,R,SMARTSTREETS                  
517,Cultural Env Reg&Plan Services,Recycling (Collection),Recycling Activities,G00640,Supplies & Services           ,Equip Furniture/Materials     ,DA31,Waste Sacks & Bags                      ,"1,897.79",20/09/2013,R,SPHERE PROFFESSIONAL          
518,Cultural Env Reg&Plan Services,Recycling (Collection),Recycling Activities,G00640,Supplies & Services           ,Equip Furniture/Materials     ,DA31,Waste Sacks & Bags                      ,"27,936.96",29/09/2013,R,SPHERE PROFFESSIONAL          
519,Cultural Env Reg&Plan Services,Recycling (Collection),Recycling Activities,G00640,Supplies & Services           ,Equip Furniture/Materials     ,DA31,Waste Sacks & Bags                      ,507.01,17/09/2013,R,SPHERE PROFFESSIONAL          
520,Cultural Env Reg&Plan Services,Recycling (Collection),Recycling Activities,G00640,Supplies & Services           ,Equip Furniture/Materials     ,DA31,Waste Sacks & Bags                      ,"1,897.79",17/09/2013,R,SPHERE PROFFESSIONAL          
521,Cultural Env Reg&Plan Services,Recycling (Collection),Recycling Activities,G00640,Supplies & Services           ,Equip Furniture/Materials     ,DA31,Waste Sacks & Bags                      ,"1,897.79",29/09/2013,R,SPHERE PROFFESSIONAL          
522,Cultural Env Reg&Plan Services,Recycling (Collection),Recycling Activities,G00640,Third Party Payments          ,Private Contractors           ,EH03,C3 DRY RECYCLING GATE FEE               ,"46,198.71",29/11/2013,R,KINGSTON CORPORATION          
523,Cultural Env Reg&Plan Services,Recycling (Collection),Recycling Activities,G00640,Third Party Payments          ,Private Contractors           ,EH10,SLWP C1 EFW HAULAGE                     ,"7,257.07",29/10/2013,R,KINGSTON CORPORATION          
524,Cultural Env Reg&Plan Services,Recycling (Collection),Recycling Activities,G00640,Third Party Payments          ,Private Contractors           ,EH18,C3 FOOD WASTE GATE FEE                  ,"17,961.44",29/11/2013,R,KINGSTON CORPORATION          
525,Cultural Env Reg&Plan Services,Recycling (Collection),Recycling Activities,G00640,Third Party Payments          ,Private Contractors           ,EH19,C1 EFW ACCEPTANCE & BULK                ,"2,246.75",29/10/2013,R,KINGSTON CORPORATION          
526,Cultural Env Reg&Plan Services,Recycling (Collection),Recycling Activities,G00640,Third Party Payments          ,Private Contractors           ,EH61,Green Waste Disposal                    ,"7,271.84",30/11/2013,R,VIRIDOR WASTE KENT LTD        
527,Cultural Env Reg&Plan Services,Recycling (Collection),Recycling Activities,G00640,Third Party Payments          ,Private Contractors           ,EH90,ADDITIONAL EFW UNDER SUFFOLK SCHEME     ,"157,480.71",29/10/2013,R,KINGSTON CORPORATION          
528,Cultural Env Reg&Plan Services,Recycling (Collection),Recycling Activities,G00640,Third Party Payments          ,Private Contractors           ,EH94,C1 DRY RECYCLING ACCEPTANCE & BULK      ,"7,370.33",29/10/2013,R,KINGSTON CORPORATION          
529,Cultural Env Reg&Plan Services,Recycling (Collection),Recycling Activities,G00640,Third Party Payments          ,Private Contractors           ,EH94,C1 DRY RECYCLING ACCEPTANCE & BULK      ,"6,694.08",29/11/2013,R,KINGSTON CORPORATION          
530,Cultural Env Reg&Plan Services,Recycling (Collection),BARROW AND BINS REPLACEMENT,G00641,Supplies & Services           ,Equip Furniture/Materials     ,DA32,FLATS RECYCLING SACKS                   ,"-1,888.85",19/11/2013,R,CROMWELL POLYTHENE            
531,Cultural Env Reg&Plan Services,Recycling (Collection),BARROW AND BINS REPLACEMENT,G00641,Supplies & Services           ,Equip Furniture/Materials     ,DA32,FLATS RECYCLING SACKS                   ,"1,888.85",01/11/2013,R,CROMWELL POLYTHENE            
532,Cultural Env Reg&Plan Services,Recycling (Collection),BARROW AND BINS REPLACEMENT,G00641,Supplies & Services           ,Equip Furniture/Materials     ,DA32,FLATS RECYCLING SACKS                   ,"2,653.75",01/11/2013,R,CROMWELL POLYTHENE            
533,Cultural Env Reg&Plan Services,Recycling (Collection),Food Waste Service,G00648,Supplies & Services           ,Equip Furniture/Materials     ,DA31,Waste Sacks & Bags                      ,"19,010.53",21/11/2013,R,SPHERE PROFFESSIONAL          
534,Cultural Env Reg&Plan Services,Recycling (Collection),WCSS Recycl Encourgmnt&Incentv          ,G00650,Supplies & Services           ,Services                      ,DF35,Graphic Design                          ,"1,700.00",11/12/2013,R,STUDIO ELEVEN LTD             
535,Cultural Env Reg&Plan Services,Household Waste Collection,Refuse Collection (Operations),G00661,Employees                     ,Indirect Employee Expenses    ,AB57,External Training Costs                 ,"1,400.00",14/10/2013,R,ROSPA ENTERPRISES LTD         
536,Cultural Env Reg&Plan Services,Household Waste Collection,Refuse Collection (Operations),G00661,Employees                     ,Indirect Employee Expenses    ,AB57,External Training Costs                 ,"2,232.50",23/10/2013,R,PRACTICAL HEALTH & SAFETY SER.
537,Cultural Env Reg&Plan Services,Household Waste Collection,Refuse Collection (Operations),G00661,Transport Related Expenditure ,Direct Transport Costs        ,CA52,Reps Vehicles Ins Claims                ,"1,500.00",02/12/2013,R,S.E.T.S SERVICES              
538,Cultural Env Reg&Plan Services,Household Waste Collection,Refuse Collection (Operations),G00661,Supplies & Services           ,Equip Furniture/Materials     ,DA08,Tools-Purchase                          ,"1,043.00",11/12/2013,R,BELL BRUSH                    
539,Cultural Env Reg&Plan Services,Household Waste Collection,Refuse Collection (Operations),G00661,Supplies & Services           ,Equip Furniture/Materials     ,DA32,Wheeled Bins                            ,"1,600.00",18/11/2013,R,UK CONTAINER MAINTENANCE LTD  
540,Cultural Env Reg&Plan Services,Household Waste Collection,Refuse Collection (Operations),G00661,Supplies & Services           ,Equip Furniture/Materials     ,DA32,Wheeled Bins                            ,"1,120.00",29/11/2013,R,UK CONTAINER MAINTENANCE LTD  
541,Cultural Env Reg&Plan Services,Household Waste Collection,Refuse Collection (Operations),G00661,Supplies & Services           ,Clothing Unfrms Laundry       ,DC02,Clothing & Uniforms                     ,517.5,20/11/2013,R,SAFETY MANAGEMENT             
542,Cultural Env Reg&Plan Services,Household Waste Collection,Refuse Collection (Operations),G00661,Supplies & Services           ,Clothing Unfrms Laundry       ,DC02,Clothing & Uniforms                     ,"3,939.18",20/11/2013,R,SAFETY MANAGEMENT             
543,Cultural Env Reg&Plan Services,Trade Waste Collection,Commercial Waste,G00663,Supplies & Services           ,Equip Furniture/Materials     ,DA31,Waste Sacks & Bags                      ,"1,621.05",21/11/2013,R,CROMWELL POLYTHENE            
544,Cultural Env Reg&Plan Services,Street Clean - Not highways,Waste Enforcement,G00680,Supplies & Services           ,Services                      ,DF30,Activities Programme                    ,"1,050.00",24/10/2013,R,DANGEROUS THEATRE COMPANY     
545,Cultural Env Reg&Plan Services,Street Clean - Not highways,Waste Enforcement,G00680,Supplies & Services           ,Services                      ,DF30,Activities Programme                    ,"1,440.00",24/10/2013,R,DANGEROUS THEATRE COMPANY     
546,Cultural Env Reg&Plan Services,Street Clean - Not highways,Waste Enforcement,G00680,Supplies & Services           ,Services                      ,DF30,Activities Programme                    ,700,10/12/2013,R,DANGEROUS THEATRE COMPANY     
547,Cultural Env Reg&Plan Services,Inspect/Enforce (Consumer P),Trading Standards,G00690,Employees                     ,Direct Employee Expenses      ,AA17,Agency Staff & Casual Paymts            ,"1,178.50",29/11/2013,R,REDACTED
548,Cultural Env Reg&Plan Services,Inspect/Enforce (Consumer P),Trading Standards,G00690,Employees                     ,Direct Employee Expenses      ,AA17,Agency Staff & Casual Paymts            ,"2,872.90",22/11/2013,R,REDACTED
549,Cultural Env Reg&Plan Services,Inspect/Enforce (Consumer P),Trading Standards,G00690,Employees                     ,Direct Employee Expenses      ,AA17,Agency Staff & Casual Paymts            ,"5,219.80",22/11/2013,R,REDACTED
550,Cultural Env Reg&Plan Services,Food Safety,Health & Safety,G00697,Third Party Payments          ,Private Contractors           ,EH02,Miscellaneous Hired Services            ,750,05/11/2013,R,MERTON AND SUTTON MEDIATION   
551,Cultural Env Reg&Plan Services,Pest Control,Pest Control,G00724,Supplies & Services           ,Equip Furniture/Materials     ,DA04,Materials                               ,705.96,03/12/2013,R,KILLGERM CHEMICALS LIMITED    
552,Cultural Env Reg&Plan Services,Housing Standards,AIR QUALITY GRANT (DEFRA) MB,G00732,Supplies & Services           ,Services                      ,DF03,Consultants                             ,"1,940.00",30/11/2013,R,HYDROCK CONSULTANTS LTD       
553,Cultural Env Reg&Plan Services,Mgt & Support (Env),Waste Management,G00900,Premises Related Expenditure  ,Water Services                ,BE01,Use of Water (Metered)                  ,859.5,29/11/2013,R,SUTTON AND EAST SURREY WATER  
554,Central Services,Grants - Voluntary Groups,Vestry Hall,G19290,Employees                     ,Direct Employee Expenses      ,AA17,Agency Staff & Casual Paymts            ,"4,611.35",10/12/2013,R,REDACTED
555,Central Services,Grants - Voluntary Groups,Vestry Hall,G19290,Premises Related Expenditure  ,Cleaning and Domestic Supplies,BH03,Cleaning Services                       ,"1,357.76",01/12/2013,R,BIRKIN CLEANING SERVICES LTD  
556,CS -Oth Operating Inc & Expend,Extraordinary Items & PY Adj.,326 London Road,G40312,Premises Related Expenditure  ,RepairsAlterations&MtceOfBldgs,BA01,DDM - GENERAL BUILDING                  ,"3,103.00",20/12/2013,R,SALTASH ENTERPRISES LTD       
557,Cultural Env Reg&Plan Services,DC Advice Apps & Reg not split,Development Control,H01130,Supplies & Services           ,Services                      ,DF02,Misc Advertising/Publicity              ,614.88,23/11/2013,R,NEWSQUEST (LONDON)LTD         
558,Cultural Env Reg&Plan Services,DC Advice Apps & Reg not split,Development Control,H01130,Supplies & Services           ,Services                      ,DF03,Consultants                             ,"1,950.00",20/11/2013,R,VALUATION OFFICE AGENCY       
559,Cultural Env Reg&Plan Services,DC Advice Apps & Reg not split,Development Control,H01130,Supplies & Services           ,Services                      ,DF11,Counsel's fees                          ,573,07/10/2013,R,REDACTED
560,Cultural Env Reg&Plan Services,DC Advice Apps & Reg not split,Development Control,H01130,Supplies & Services           ,Comms and Computing           ,DG09,Computer Purchases - Misc               ,"3,000.00",24/12/2013,R,NORTHGATE INFORMATION SOLUTION
561,Cultural Env Reg&Plan Services,DC Advice Apps & Reg not split,Development Control,H01130,Supplies & Services           ,Comms and Computing           ,DG09,Computer Purchases - Misc               ,"3,000.00",29/11/2013,R,NORTHGATE INFORMATION SOLUTION
562,Cultural Env Reg&Plan Services,DC Advice Apps & Reg not split,Development Control,H01130,Customer and client receipts  ,Fees                          ,RB03,Miscellaneous Fees S                    ,990,31/12/2013,R,PHILLIPS PLANNING SERVICES LTD
563,Cultural Env Reg&Plan Services,DC Advice Apps & Reg not split,Development Control,H01130,Customer and client receipts  ,Fees                          ,RB56,Application Fees X                      ,960,12/12/2013,R,ELEVEN 10 LIMITED             
564,Cultural Env Reg&Plan Services,DC Advice Apps & Reg not split,Development Control,H01130,Customer and client receipts  ,Fees                          ,RB56,Application Fees X                      ,980,24/12/2013,R,AH & R SERVICES               
565,Cultural Env Reg&Plan Services,Planning Policy not split,Spatial Policy,H01173,Third Party Payments          ,Private Contractors           ,EH10,Contract Payments                       ,"1,680.00",02/12/2013,R,REDACTED
566,Cultural Env Reg&Plan Services,Planning Policy not split,REGENERATION & INVESTMENT,H01174,Supplies & Services           ,Services                      ,DF35,Graphic Design                          ,"2,371.00",02/12/2013,R,BURROWS COMMUNICATIONS LTD    
567,CS -Oth Operating Inc & Expend,Extraordinary Items & PY Adj.,MILES RD GENERATOR,H01203,Premises Related Expenditure  ,Rents                         ,BC01,Miscellaneous Rents                     ,"4,717.27",04/12/2013,R,W & R BUXTON LTD PENSION FUND 
568,CS -Oth Operating Inc & Expend,Extraordinary Items & PY Adj.,MILES RD GENERATOR,H01203,Premises Related Expenditure  ,Rents                         ,BC01,Miscellaneous Rents                     ,"8,000.00",04/12/2013,R,W & R BUXTON LTD PENSION FUND 
569,CS -Oth Operating Inc & Expend,Extraordinary Items & PY Adj.,MILES RD GENERATOR,H01203,Third Party Payments          ,Private Contractors           ,EH02,Miscellaneous Hired Services            ,"7,500.00",03/12/2013,R,MERTON CHAMBER OF COMMERCE    
570,Cultural Env Reg&Plan Services,Economic Dev (Not separated),GO GREEN PLUS (S106),H01225,Supplies & Services           ,Grants and Subscriptions      ,DJ54,Contributions                           ,"2,566.87",30/11/2013,R,MERTON CHAMBER OF COMMERCE    
571,Cultural Env Reg&Plan Services,Economic Dev (Not separated),GO GREEN PLUS (S106),H01225,Supplies & Services           ,Grants and Subscriptions      ,DJ54,Contributions                           ,"2,566.87",23/12/2013,R,MERTON CHAMBER OF COMMERCE    
572,Cultural Env Reg&Plan Services,Economic Dev (Not separated),Mitcham Means Business,H01230,Supplies & Services           ,Grants and Subscriptions      ,DJ01,Grants                                  ,500,28/11/2013,R,MERTON VOLUNTARY SERV COUNCIL 
573,Cultural Env Reg&Plan Services,Economic Dev (Not separated),Mitcham Means Business,H01230,Third Party Payments          ,Private Contractors           ,EH10,Contract Payments                       ,675.5,27/11/2013,R,THE REINDEER HIRE COMPANY     
574,CS -Oth Operating Inc & Expend,T/A Vehicle Maintenance etc,Transport-Contract Hire,J01374,Transport Related Expenditure ,Direct Transport Costs        ,CA01,Petrol Derv & Oil                       ,"39,184.58",20/11/2013,R,HARVEST ENERGY LIMITED        
575,CS -Oth Operating Inc & Expend,T/A Vehicle Maintenance etc,Transport-Contract Hire,J01374,Transport Related Expenditure ,Direct Transport Costs        ,CA01,Petrol Derv & Oil                       ,"38,532.80",06/12/2013,R,HARVEST ENERGY LIMITED        
576,CS -Oth Operating Inc & Expend,T/A Vehicle Maintenance etc,Transport-Contract Hire,J01374,Transport Related Expenditure ,Direct Transport Costs        ,CA02,Tyres                                   ,"1,720.00",20/11/2013,R,MORDEN TYRE SERVICES LTD      
577,CS -Oth Operating Inc & Expend,T/A Vehicle Maintenance etc,Transport-Contract Hire,J01374,Transport Related Expenditure ,Direct Transport Costs        ,CA02,Tyres                                   ,"1,420.00",03/12/2013,R,MORDEN TYRE SERVICES LTD      
578,CS -Oth Operating Inc & Expend,T/A Vehicle Maintenance etc,Transport-Contract Hire,J01374,Transport Related Expenditure ,Direct Transport Costs        ,CA02,Tyres                                   ,"1,895.00",22/11/2013,R,MORDEN TYRE SERVICES LTD      
579,CS -Oth Operating Inc & Expend,T/A Vehicle Maintenance etc,Transport-Contract Hire,J01374,Transport Related Expenditure ,Direct Transport Costs        ,CA02,Tyres                                   ,"1,324.00",02/12/2013,R,MORDEN TYRE SERVICES LTD      
580,CS -Oth Operating Inc & Expend,T/A Vehicle Maintenance etc,Transport-Contract Hire,J01374,Transport Related Expenditure ,Direct Transport Costs        ,CA02,Tyres                                   ,720,25/11/2013,R,MORDEN TYRE SERVICES LTD      
581,CS -Oth Operating Inc & Expend,T/A Vehicle Maintenance etc,Transport-Contract Hire,J01374,Transport Related Expenditure ,Direct Transport Costs        ,CA02,Tyres                                   ,"1,640.00",06/12/2013,R,MORDEN TYRE SERVICES LTD      
582,CS -Oth Operating Inc & Expend,T/A Vehicle Maintenance etc,Transport-Contract Hire,J01374,Transport Related Expenditure ,Direct Transport Costs        ,CA02,Tyres                                   ,660,02/12/2013,R,MORDEN TYRE SERVICES LTD      
583,CS -Oth Operating Inc & Expend,T/A Vehicle Maintenance etc,Transport-Contract Hire,J01374,Transport Related Expenditure ,Direct Transport Costs        ,CA02,Tyres                                   ,940,10/12/2013,R,MORDEN TYRE SERVICES LTD      
584,CS -Oth Operating Inc & Expend,T/A Vehicle Maintenance etc,Transport-Contract Hire,J01374,Transport Related Expenditure ,Direct Transport Costs        ,CA02,Tyres                                   ,800,19/12/2013,R,MORDEN TYRE SERVICES LTD      
585,CS -Oth Operating Inc & Expend,T/A Vehicle Maintenance etc,Transport-Contract Hire,J01374,Transport Related Expenditure ,Direct Transport Costs        ,CA55,Specialist Maint. (Off Site)            ,597.03,29/11/2013,R,KINGSLEY COMM COMPONENTS LTD  
586,CS -Oth Operating Inc & Expend,T/A Vehicle Maintenance etc,Transport-Contract Hire,J01374,Transport Related Expenditure ,Direct Transport Costs        ,CA55,Specialist Maint. (Off Site)            ,597.03,29/11/2013,R,KINGSLEY COMM COMPONENTS LTD  
587,CS -Oth Operating Inc & Expend,T/A Vehicle Maintenance etc,Transport-Contract Hire,J01374,Transport Related Expenditure ,Direct Transport Costs        ,CA55,Specialist Maint. (Off Site)            ,"1,385.69",17/12/2013,R,IVECO RETAIL LTD              
588,CS -Oth Operating Inc & Expend,T/A Vehicle Maintenance etc,Transport-Contract Hire,J01374,Transport Related Expenditure ,Direct Transport Costs        ,CA55,Specialist Maint. (Off Site)            ,597.03,29/11/2013,R,KINGSLEY COMM COMPONENTS LTD  
589,CS -Oth Operating Inc & Expend,T/A Vehicle Maintenance etc,Transport-Contract Hire,J01374,Transport Related Expenditure ,Direct Transport Costs        ,CA55,Specialist Maint. (Off Site)            ,597.03,29/11/2013,R,KINGSLEY COMM COMPONENTS LTD  
590,CS -Oth Operating Inc & Expend,T/A Vehicle Maintenance etc,Transport-Contract Hire,J01374,Transport Related Expenditure ,Direct Transport Costs        ,CA56,Specialist Maint. (On Site)             ,"1,157.94",12/12/2013,R,R.J.H.WELDING                 
591,CS -Oth Operating Inc & Expend,T/A Vehicle Maintenance etc,Transport-Contract Hire,J01374,Transport Related Expenditure ,Direct Transport Costs        ,CA56,Specialist Maint. (On Site)             ,656.05,12/12/2013,R,R.J.H.WELDING                 
592,CS -Oth Operating Inc & Expend,T/A Vehicle Maintenance etc,Transport-Contract Hire,J01374,Transport Related Expenditure ,Direct Transport Costs        ,CA56,Specialist Maint. (On Site)             ,506.25,12/12/2013,R,R.J.H.WELDING                 
593,CS -Oth Operating Inc & Expend,T/A Vehicle Maintenance etc,Transport-Contract Hire,J01374,Transport Related Expenditure ,Direct Transport Costs        ,CA56,Specialist Maint. (On Site)             ,"1,643.45",22/11/2013,R,GEESINK NORBA                 
594,CS -Oth Operating Inc & Expend,T/A Vehicle Maintenance etc,Transport-Contract Hire,J01374,Transport Related Expenditure ,Direct Transport Costs        ,CA56,Specialist Maint. (On Site)             ,"1,782.50",11/12/2013,R,R.J.H.WELDING                 
595,CS -Oth Operating Inc & Expend,T/A Vehicle Maintenance etc,Transport-Contract Hire,J01374,Transport Related Expenditure ,Direct Transport Costs        ,CA56,Specialist Maint. (On Site)             ,562.5,11/12/2013,R,R.J.H.WELDING                 
596,CS -Oth Operating Inc & Expend,T/A Vehicle Maintenance etc,Transport-Contract Hire,J01374,Transport Related Expenditure ,Direct Transport Costs        ,CA56,Specialist Maint. (On Site)             ,"1,245.00",11/12/2013,R,R.J.H.WELDING                 
597,CS -Oth Operating Inc & Expend,T/A Vehicle Maintenance etc,Transport-Contract Hire,J01374,Transport Related Expenditure ,Direct Transport Costs        ,CA56,Specialist Maint. (On Site)             ,999.51,11/12/2013,R,R.J.H.WELDING                 
598,CS -Oth Operating Inc & Expend,T/A Vehicle Maintenance etc,Transport-Contract Hire,J01374,Transport Related Expenditure ,Direct Transport Costs        ,CA56,Specialist Maint. (On Site)             ,977.5,12/12/2013,R,R.J.H.WELDING                 
599,CS -Oth Operating Inc & Expend,T/A Vehicle Maintenance etc,Transport-Contract Hire,J01374,Transport Related Expenditure ,Direct Transport Costs        ,CA72,Vehicle Parts                           ,757,21/11/2013,R,VISION TECHNIQUES             
600,CS -Oth Operating Inc & Expend,T/A Vehicle Maintenance etc,Transport-Contract Hire,J01374,Transport Related Expenditure ,Direct Transport Costs        ,CA72,Vehicle Parts                           ,"1,548.97",21/11/2013,R,GEESINK NORBA                 
601,CS -Oth Operating Inc & Expend,T/A Vehicle Maintenance etc,Transport-Contract Hire,J01374,Transport Related Expenditure ,Direct Transport Costs        ,CA72,Vehicle Parts                           ,"2,060.00",27/11/2013,R,CBOC LUBRICANTS               
602,CS -Oth Operating Inc & Expend,T/A Vehicle Maintenance etc,Transport-Contract Hire,J01374,Transport Related Expenditure ,Direct Transport Costs        ,CA72,Vehicle Parts                           ,581.59,25/11/2013,R,COMMERCIAL & PLANT LTD        
603,CS -Oth Operating Inc & Expend,T/A Vehicle Maintenance etc,Transport-Contract Hire,J01374,Transport Related Expenditure ,Direct Transport Costs        ,CA72,Vehicle Parts                           ,553.5,10/12/2013,R,CBOC LUBRICANTS               
604,CS -Oth Operating Inc & Expend,T/A Vehicle Maintenance etc,Transport-Contract Hire,J01374,Transport Related Expenditure ,Direct Transport Costs        ,CA72,Vehicle Parts                           ,"1,359.11",18/11/2013,R,DENNIS EAGLE LIMITED          
605,CS -Oth Operating Inc & Expend,T/A Vehicle Maintenance etc,Transport-Contract Hire,J01374,Transport Related Expenditure ,Direct Transport Costs        ,CA72,Vehicle Parts                           ,"1,166.87",28/11/2013,R,DENNIS EAGLE LIMITED          
606,CS -Oth Operating Inc & Expend,T/A Vehicle Maintenance etc,Transport-Contract Hire,J01374,Transport Related Expenditure ,Direct Transport Costs        ,CA72,Vehicle Parts                           ,620.17,18/11/2013,R,GEESINK NORBA                 
607,CS -Oth Operating Inc & Expend,T/A Vehicle Maintenance etc,Transport-Contract Hire,J01374,Transport Related Expenditure ,Direct Transport Costs        ,CA72,Vehicle Parts                           ,801.19,04/12/2013,R,GEESINK NORBA                 
608,CS -Oth Operating Inc & Expend,T/A Vehicle Maintenance etc,Transport-Contract Hire,J01374,Transport Related Expenditure ,Contract Hire and Op Leasing  ,CC53,Plant Hire for MRCS                     ,510,12/12/2013,R,GVS HIRE LTD                  
609,CS -Oth Operating Inc & Expend,T/A Vehicle Maintenance etc,Transport-Contract Hire,J01374,Transport Related Expenditure ,Contract Hire and Op Leasing  ,CC53,Plant Hire for MRCS                     ,"1,155.00",30/11/2013,R,B&T PLANT HIRE LTD            
610,CS -Oth Operating Inc & Expend,T/A Vehicle Maintenance etc,Transport-Contract Hire,J01374,Transport Related Expenditure ,Contract Hire and Op Leasing  ,CC53,Plant Hire for MRCS                     ,693,30/11/2013,R,REDACTED
611,CS -Oth Operating Inc & Expend,T/A Vehicle Maintenance etc,Transport-Contract Hire,J01374,Transport Related Expenditure ,Contract Hire and Op Leasing  ,CC53,Plant Hire for MRCS                     ,850,20/11/2013,R,FIVEWAYS MUNICIPAL VEHICLE HIR
612,CS -Oth Operating Inc & Expend,T/A Vehicle Maintenance etc,Transport-Contract Hire,J01374,Transport Related Expenditure ,Contract Hire and Op Leasing  ,CC53,Plant Hire for MRCS                     ,"1,764.00",30/11/2013,R,GVS HIRE LTD                  
613,CS -Oth Operating Inc & Expend,T/A Vehicle Maintenance etc,Transport-Contract Hire,J01374,Transport Related Expenditure ,Contract Hire and Op Leasing  ,CC56,Plant Hire for Leisure                  ,"1,755.00",30/11/2013,R,REDACTED
614,CS -Oth Operating Inc & Expend,T/A Vehicle Maintenance etc,Transport-Contract Hire,J01374,Transport Related Expenditure ,Contract Hire and Op Leasing  ,CC57,Pland Hire for Housing                  ,940,30/11/2013,R,REDACTED
615,CS -Oth Operating Inc & Expend,T/A Vehicle Maintenance etc,Transport-Contract Hire,J01374,Transport Related Expenditure ,Contract Hire and Op Leasing  ,CC59,HIRING TRANSPORT OPERATIONS             ,"2,238.32",30/11/2013,R,REDACTED
616,CS -Oth Operating Inc & Expend,T/A Vehicle Maintenance etc,Transport-Contract Hire,J01374,Transport Related Expenditure ,Contract Hire and Op Leasing  ,CC59,HIRING TRANSPORT OPERATIONS             ,"1,386.00",29/11/2013,R,BURNT TREE VEHICLE RENTAL     
617,CS -Oth Operating Inc & Expend,T/A Vehicle Maintenance etc,Transport-Contract Hire,J01374,Transport Related Expenditure ,Contract Hire and Op Leasing  ,CC59,HIRING TRANSPORT OPERATIONS             ,"1,386.00",29/11/2013,R,BURNT TREE VEHICLE RENTAL     
618,CS -Oth Operating Inc & Expend,T/A Vehicle Maintenance etc,Transport-Contract Hire,J01374,Transport Related Expenditure ,Contract Hire and Op Leasing  ,CC59,HIRING TRANSPORT OPERATIONS             ,"1,386.00",29/11/2013,R,BURNT TREE VEHICLE RENTAL     
619,CS -Oth Operating Inc & Expend,T/A Vehicle Maintenance etc,Transport-Contract Hire,J01374,Transport Related Expenditure ,Contract Hire and Op Leasing  ,CC64,HIRING TRANSPORT SEN CABS               ,"1,424.00",30/11/2013,R,GALPINS SERVICE               
620,CS -Oth Operating Inc & Expend,T/A Vehicle Maintenance etc,Transport-Contract Hire,J01374,Transport Related Expenditure ,Contract Hire and Op Leasing  ,CC64,HIRING TRANSPORT SEN CABS               ,991,30/11/2013,R,NVCAR HIRE LTD                
621,CS -Oth Operating Inc & Expend,T/A Vehicle Maintenance etc,Transport-Contract Hire,J01374,Transport Related Expenditure ,Contract Hire and Op Leasing  ,CC64,HIRING TRANSPORT SEN CABS               ,"1,320.00",30/11/2013,R,SILVERBURN FINANCE (UK) LTD   
622,CS -Oth Operating Inc & Expend,T/A Vehicle Maintenance etc,Transport-Contract Hire,J01374,Transport Related Expenditure ,Contract Hire and Op Leasing  ,CC64,HIRING TRANSPORT SEN CABS               ,"2,856.00",30/11/2013,R,BARCLAYS ASSET & SALES FINANCE
623,CS -Oth Operating Inc & Expend,T/A Vehicle Maintenance etc,Transport-Contract Hire,J01374,Transport Related Expenditure ,Contract Hire and Op Leasing  ,CC64,HIRING TRANSPORT SEN CABS               ,792,30/11/2013,R,NVCAR HIRE LTD                
624,CS -Oth Operating Inc & Expend,T/A Vehicle Maintenance etc,Transport-Contract Hire,J01374,Transport Related Expenditure ,Contract Hire and Op Leasing  ,CC64,HIRING TRANSPORT SEN CABS               ,684,30/11/2013,R,CAPITAL CARS                  
625,CS -Oth Operating Inc & Expend,T/A Vehicle Maintenance etc,Transport-Contract Hire,J01374,Transport Related Expenditure ,Contract Hire and Op Leasing  ,CC64,HIRING TRANSPORT SEN CABS               ,770,30/11/2013,R,GALPINS SERVICE               
626,CS -Oth Operating Inc & Expend,T/A Vehicle Maintenance etc,Transport-Contract Hire,J01374,Transport Related Expenditure ,Contract Hire and Op Leasing  ,CC64,HIRING TRANSPORT SEN CABS               ,"1,620.00",30/11/2013,R,NVCAR HIRE LTD                
627,CS -Oth Operating Inc & Expend,T/A Vehicle Maintenance etc,Transport-Contract Hire,J01374,Transport Related Expenditure ,Contract Hire and Op Leasing  ,CC64,HIRING TRANSPORT SEN CABS               ,"3,800.00",30/11/2013,R,BARCLAYS ASSET & SALES FINANCE
628,CS -Oth Operating Inc & Expend,T/A Vehicle Maintenance etc,Transport-Contract Hire,J01374,Transport Related Expenditure ,Contract Hire and Op Leasing  ,CC64,HIRING TRANSPORT SEN CABS               ,980.5,30/11/2013,R,SHERWOOD TRANSPORT GROUP      
629,CS -Oth Operating Inc & Expend,T/A Vehicle Maintenance etc,Transport-Contract Hire,J01374,Transport Related Expenditure ,Contract Hire and Op Leasing  ,CC64,HIRING TRANSPORT SEN CABS               ,"1,559.60",30/11/2013,R,KINGSTON ACCESSIBILITY TRAN LT
630,CS -Oth Operating Inc & Expend,T/A Vehicle Maintenance etc,Transport-Contract Hire,J01374,Transport Related Expenditure ,Contract Hire and Op Leasing  ,CC64,HIRING TRANSPORT SEN CABS               ,"2,480.00",30/11/2013,R,KINGSTON ACCESSIBILITY TRAN LT
631,CS -Oth Operating Inc & Expend,T/A Vehicle Maintenance etc,Transport-Contract Hire,J01374,Transport Related Expenditure ,Contract Hire and Op Leasing  ,CC64,HIRING TRANSPORT SEN CABS               ,731.88,30/11/2013,R,BARCLAYS ASSET & SALES FINANCE
632,CS -Oth Operating Inc & Expend,T/A Vehicle Maintenance etc,Transport-Contract Hire,J01374,Transport Related Expenditure ,Contract Hire and Op Leasing  ,CC64,HIRING TRANSPORT SEN CABS               ,"3,180.00",30/11/2013,R,SHERWOOD TRANSPORT GROUP      
633,CS -Oth Operating Inc & Expend,T/A Vehicle Maintenance etc,Transport-Contract Hire,J01374,Transport Related Expenditure ,Contract Hire and Op Leasing  ,CC64,HIRING TRANSPORT SEN CABS               ,"1,878.00",30/11/2013,R,KINGSTON ACCESSIBILITY TRAN LT
634,CS -Oth Operating Inc & Expend,T/A Vehicle Maintenance etc,Transport-Contract Hire,J01374,Transport Related Expenditure ,Contract Hire and Op Leasing  ,CC64,HIRING TRANSPORT SEN CABS               ,773.33,30/11/2013,R,GALPINS SERVICE               
635,CS -Oth Operating Inc & Expend,T/A Vehicle Maintenance etc,Transport-Contract Hire,J01374,Transport Related Expenditure ,Contract Hire and Op Leasing  ,CC64,HIRING TRANSPORT SEN CABS               ,840,30/11/2013,R,NVCAR HIRE LTD                
636,CS -Oth Operating Inc & Expend,T/A Vehicle Maintenance etc,Transport-Contract Hire,J01374,Transport Related Expenditure ,Contract Hire and Op Leasing  ,CC64,HIRING TRANSPORT SEN CABS               ,"1,920.00",30/11/2013,R,SILVERBURN FINANCE (UK) LTD   
637,CS -Oth Operating Inc & Expend,T/A Vehicle Maintenance etc,Transport-Contract Hire,J01374,Transport Related Expenditure ,Contract Hire and Op Leasing  ,CC64,HIRING TRANSPORT SEN CABS               ,"1,936.00",30/11/2013,R,CAPITAL CARS                  
638,CS -Oth Operating Inc & Expend,T/A Vehicle Maintenance etc,Transport-Contract Hire,J01374,Transport Related Expenditure ,Contract Hire and Op Leasing  ,CC64,HIRING TRANSPORT SEN CABS               ,"2,991.36",30/11/2013,R,SILVERBURN FINANCE (UK) LTD   
639,CS -Oth Operating Inc & Expend,T/A Vehicle Maintenance etc,Transport-Contract Hire,J01374,Transport Related Expenditure ,Contract Hire and Op Leasing  ,CC64,HIRING TRANSPORT SEN CABS               ,"2,056.00",30/11/2013,R,KINGSTON ACCESSIBILITY TRAN LT
640,CS -Oth Operating Inc & Expend,T/A Vehicle Maintenance etc,Transport-Contract Hire,J01374,Transport Related Expenditure ,Contract Hire and Op Leasing  ,CC64,HIRING TRANSPORT SEN CABS               ,"1,200.00",30/11/2013,R,SILVERBURN FINANCE (UK) LTD   
641,CS -Oth Operating Inc & Expend,T/A Vehicle Maintenance etc,Transport-Contract Hire,J01374,Transport Related Expenditure ,Contract Hire and Op Leasing  ,CC64,HIRING TRANSPORT SEN CABS               ,"2,736.00",30/11/2013,R,CAPITAL CARS                  
642,CS -Oth Operating Inc & Expend,T/A Vehicle Maintenance etc,Transport-Contract Hire,J01374,Transport Related Expenditure ,Contract Hire and Op Leasing  ,CC64,HIRING TRANSPORT SEN CABS               ,608,30/11/2013,R,SILVERBURN FINANCE (UK) LTD   
643,CS -Oth Operating Inc & Expend,T/A Vehicle Maintenance etc,Transport-Contract Hire,J01374,Transport Related Expenditure ,Contract Hire and Op Leasing  ,CC64,HIRING TRANSPORT SEN CABS               ,"1,520.00",30/11/2013,R,CAPITAL CARS                  
644,CS -Oth Operating Inc & Expend,T/A Vehicle Maintenance etc,Transport-Contract Hire,J01374,Transport Related Expenditure ,Contract Hire and Op Leasing  ,CC64,HIRING TRANSPORT SEN CABS               ,"1,680.00",30/11/2013,R,SILVERBURN FINANCE (UK) LTD   
645,CS -Oth Operating Inc & Expend,T/A Vehicle Maintenance etc,Transport-Contract Hire,J01374,Transport Related Expenditure ,Contract Hire and Op Leasing  ,CC64,HIRING TRANSPORT SEN CABS               ,840,30/11/2013,R,CAPITAL CARS                  
646,CS -Oth Operating Inc & Expend,T/A Vehicle Maintenance etc,Transport-Contract Hire,J01374,Transport Related Expenditure ,Contract Hire and Op Leasing  ,CC64,HIRING TRANSPORT SEN CABS               ,810,30/11/2013,R,KINGSTON ACCESSIBILITY TRAN LT
647,CS -Oth Operating Inc & Expend,T/A Vehicle Maintenance etc,Transport-Contract Hire,J01374,Transport Related Expenditure ,Contract Hire and Op Leasing  ,CC64,HIRING TRANSPORT SEN CABS               ,"2,760.00",30/11/2013,R,BARCLAYS ASSET & SALES FINANCE
648,CS -Oth Operating Inc & Expend,T/A Vehicle Maintenance etc,Transport-Contract Hire,J01374,Transport Related Expenditure ,Contract Hire and Op Leasing  ,CC64,HIRING TRANSPORT SEN CABS               ,"1,240.00",30/11/2013,R,A STAR TRANSPORT LIMITED      
649,CS -Oth Operating Inc & Expend,T/A Vehicle Maintenance etc,Transport-Contract Hire,J01374,Transport Related Expenditure ,Contract Hire and Op Leasing  ,CC64,HIRING TRANSPORT SEN CABS               ,"2,380.00",30/11/2013,R,SHERWOOD TRANSPORT GROUP      
650,CS -Oth Operating Inc & Expend,T/A Vehicle Maintenance etc,Transport-Contract Hire,J01374,Transport Related Expenditure ,Contract Hire and Op Leasing  ,CC64,HIRING TRANSPORT SEN CABS               ,"2,800.00",30/11/2013,R,BARCLAYS ASSET & SALES FINANCE
651,CS -Oth Operating Inc & Expend,T/A Vehicle Maintenance etc,Transport-Contract Hire,J01374,Transport Related Expenditure ,Contract Hire and Op Leasing  ,CC64,HIRING TRANSPORT SEN CABS               ,988,30/11/2013,R,NVCAR HIRE LTD                
652,CS -Oth Operating Inc & Expend,T/A Vehicle Maintenance etc,Transport-Contract Hire,J01374,Transport Related Expenditure ,Contract Hire and Op Leasing  ,CC64,HIRING TRANSPORT SEN CABS               ,"1,400.00",30/11/2013,R,KINGSTON ACCESSIBILITY TRAN LT
653,CS -Oth Operating Inc & Expend,T/A Vehicle Maintenance etc,Transport-Contract Hire,J01374,Transport Related Expenditure ,Contract Hire and Op Leasing  ,CC64,HIRING TRANSPORT SEN CABS               ,"1,872.00",30/11/2013,R,BARCLAYS ASSET & SALES FINANCE
654,CS -Oth Operating Inc & Expend,T/A Vehicle Maintenance etc,Transport-Contract Hire,J01374,Transport Related Expenditure ,Contract Hire and Op Leasing  ,CC64,HIRING TRANSPORT SEN CABS               ,804.4,30/11/2013,R,SILVERBURN FINANCE (UK) LTD   
655,CS -Oth Operating Inc & Expend,T/A Vehicle Maintenance etc,Transport-Contract Hire,J01374,Transport Related Expenditure ,Contract Hire and Op Leasing  ,CC64,HIRING TRANSPORT SEN CABS               ,"1,936.00",30/11/2013,R,SHERWOOD TRANSPORT GROUP      
656,CS -Oth Operating Inc & Expend,T/A Vehicle Maintenance etc,Transport-Contract Hire,J01374,Transport Related Expenditure ,Contract Hire and Op Leasing  ,CC64,HIRING TRANSPORT SEN CABS               ,"1,540.50",30/11/2013,R,SHERWOOD TRANSPORT GROUP      
657,CS -Oth Operating Inc & Expend,T/A Vehicle Maintenance etc,Transport-Contract Hire,J01374,Transport Related Expenditure ,Contract Hire and Op Leasing  ,CC64,HIRING TRANSPORT SEN CABS               ,"1,160.00",30/11/2013,R,SHERWOOD TRANSPORT GROUP      
658,CS -Oth Operating Inc & Expend,T/A Vehicle Maintenance etc,Transport-Contract Hire,J01374,Transport Related Expenditure ,Contract Hire and Op Leasing  ,CC64,HIRING TRANSPORT SEN CABS               ,"2,028.60",30/11/2013,R,KINGSTON ACCESSIBILITY TRAN LT
659,CS -Oth Operating Inc & Expend,T/A Vehicle Maintenance etc,Transport-Contract Hire,J01374,Transport Related Expenditure ,Contract Hire and Op Leasing  ,CC64,HIRING TRANSPORT SEN CABS               ,"1,947.50",30/11/2013,R,SHERWOOD TRANSPORT GROUP      
660,CS -Oth Operating Inc & Expend,T/A Vehicle Maintenance etc,Transport-Contract Hire,J01374,Transport Related Expenditure ,Contract Hire and Op Leasing  ,CC64,HIRING TRANSPORT SEN CABS               ,"1,330.00",30/11/2013,R,SHERWOOD TRANSPORT GROUP      
661,CS -Oth Operating Inc & Expend,T/A Vehicle Maintenance etc,Transport-Contract Hire,J01374,Transport Related Expenditure ,Contract Hire and Op Leasing  ,CC64,HIRING TRANSPORT SEN CABS               ,878,02/12/2013,R,AERIAL CAR SERVICES LTD       
662,CS -Oth Operating Inc & Expend,T/A Vehicle Maintenance etc,Transport-Contract Hire,J01374,Transport Related Expenditure ,Contract Hire and Op Leasing  ,CC64,HIRING TRANSPORT SEN CABS               ,940,30/11/2013,R,CAPITAL CARS                  
663,CS -Oth Operating Inc & Expend,T/A Vehicle Maintenance etc,Transport-Contract Hire,J01374,Transport Related Expenditure ,Contract Hire and Op Leasing  ,CC64,HIRING TRANSPORT SEN CABS               ,"1,680.00",30/11/2013,R,CAPITAL CARS                  
664,CS -Oth Operating Inc & Expend,T/A Vehicle Maintenance etc,Transport-Contract Hire,J01374,Transport Related Expenditure ,Contract Hire and Op Leasing  ,CC64,HIRING TRANSPORT SEN CABS               ,720,30/11/2013,R,NVCAR HIRE LTD                
665,CS -Oth Operating Inc & Expend,T/A Vehicle Maintenance etc,Transport-Contract Hire,J01374,Transport Related Expenditure ,Contract Hire and Op Leasing  ,CC64,HIRING TRANSPORT SEN CABS               ,"2,320.00",30/11/2013,R,BARCLAYS ASSET & SALES FINANCE
666,CS -Oth Operating Inc & Expend,T/A Vehicle Maintenance etc,Transport-Contract Hire,J01374,Transport Related Expenditure ,Contract Hire and Op Leasing  ,CC64,HIRING TRANSPORT SEN CABS               ,"2,520.00",30/11/2013,R,CAPITAL CARS                  
667,CS -Oth Operating Inc & Expend,T/A Vehicle Maintenance etc,Transport-Contract Hire,J01374,Transport Related Expenditure ,Contract Hire and Op Leasing  ,CC64,HIRING TRANSPORT SEN CABS               ,"1,920.00",30/11/2013,R,SILVERBURN FINANCE (UK) LTD   
668,CS -Oth Operating Inc & Expend,T/A Vehicle Maintenance etc,Transport-Contract Hire,J01374,Transport Related Expenditure ,Contract Hire and Op Leasing  ,CC64,HIRING TRANSPORT SEN CABS               ,960,30/11/2013,R,KENDALL CARS                  
669,CS -Oth Operating Inc & Expend,T/A Vehicle Maintenance etc,Transport-Contract Hire,J01374,Transport Related Expenditure ,Contract Hire and Op Leasing  ,CC64,HIRING TRANSPORT SEN CABS               ,"1,400.00",30/11/2013,R,CAPITAL CARS                  
670,CS -Oth Operating Inc & Expend,T/A Vehicle Maintenance etc,Transport-Contract Hire,J01374,Transport Related Expenditure ,Contract Hire and Op Leasing  ,CC64,HIRING TRANSPORT SEN CABS               ,"1,755.00",30/11/2013,R,SHERWOOD TRANSPORT GROUP      
671,CS -Oth Operating Inc & Expend,T/A Vehicle Maintenance etc,Transport-Contract Hire,J01374,Transport Related Expenditure ,Contract Hire and Op Leasing  ,CC64,HIRING TRANSPORT SEN CABS               ,"1,960.00",30/11/2013,R,KINGSTON ACCESSIBILITY TRAN LT
672,CS -Oth Operating Inc & Expend,T/A Vehicle Maintenance etc,Transport-Contract Hire,J01374,Transport Related Expenditure ,Contract Hire and Op Leasing  ,CC64,HIRING TRANSPORT SEN CABS               ,"1,330.00",30/11/2013,R,SHERWOOD TRANSPORT GROUP      
673,CS -Oth Operating Inc & Expend,T/A Vehicle Maintenance etc,Transport-Contract Hire,J01374,Transport Related Expenditure ,Contract Hire and Op Leasing  ,CC64,HIRING TRANSPORT SEN CABS               ,"-1,600.00",15/11/2013,R,KINGSTON ACCESSIBILITY TRAN LT
674,CS -Oth Operating Inc & Expend,T/A Vehicle Maintenance etc,Transport-Contract Hire,J01374,Transport Related Expenditure ,Contract Hire and Op Leasing  ,CC64,HIRING TRANSPORT SEN CABS               ,"2,862.00",30/11/2013,R,KINGSTON ACCESSIBILITY TRAN LT
675,CS -Oth Operating Inc & Expend,T/A Vehicle Maintenance etc,Transport-Contract Hire,J01374,Transport Related Expenditure ,Contract Hire and Op Leasing  ,CC64,HIRING TRANSPORT SEN CABS               ,"1,980.00",30/11/2013,R,SHERWOOD TRANSPORT GROUP      
676,CS -Oth Operating Inc & Expend,T/A Vehicle Maintenance etc,Transport-Contract Hire,J01374,Transport Related Expenditure ,Contract Hire and Op Leasing  ,CC64,HIRING TRANSPORT SEN CABS               ,"2,595.60",30/11/2013,R,KINGSTON ACCESSIBILITY TRAN LT
677,CS -Oth Operating Inc & Expend,T/A Vehicle Maintenance etc,Transport-Contract Hire,J01374,Transport Related Expenditure ,Contract Hire and Op Leasing  ,CC64,HIRING TRANSPORT SEN CABS               ,"2,080.00",30/11/2013,R,BARCLAYS ASSET & SALES FINANCE
678,CS -Oth Operating Inc & Expend,T/A Vehicle Maintenance etc,Transport-Contract Hire,J01374,Transport Related Expenditure ,Contract Hire and Op Leasing  ,CC64,HIRING TRANSPORT SEN CABS               ,"3,280.00",30/11/2013,R,BARCLAYS ASSET & SALES FINANCE
679,CS -Oth Operating Inc & Expend,T/A Vehicle Maintenance etc,Transport-Contract Hire,J01374,Transport Related Expenditure ,Contract Hire and Op Leasing  ,CC64,HIRING TRANSPORT SEN CABS               ,"1,140.00",30/11/2013,R,GALPINS SERVICE               
680,CS -Oth Operating Inc & Expend,T/A Vehicle Maintenance etc,Transport-Contract Hire,J01374,Transport Related Expenditure ,Contract Hire and Op Leasing  ,CC64,HIRING TRANSPORT SEN CABS               ,780,30/11/2013,R,NVCAR HIRE LTD                
681,CS -Oth Operating Inc & Expend,T/A Vehicle Maintenance etc,Transport-Contract Hire,J01374,Transport Related Expenditure ,Contract Hire and Op Leasing  ,CC64,HIRING TRANSPORT SEN CABS               ,"1,599.20",30/11/2013,R,KINGSTON ACCESSIBILITY TRAN LT
682,CS -Oth Operating Inc & Expend,T/A Vehicle Maintenance etc,Transport-Contract Hire,J01374,Transport Related Expenditure ,Contract Hire and Op Leasing  ,CC64,HIRING TRANSPORT SEN CABS               ,"1,640.00",30/11/2013,R,CAPITAL CARS                  
683,CS -Oth Operating Inc & Expend,T/A Vehicle Maintenance etc,Transport-Contract Hire,J01374,Transport Related Expenditure ,Contract Hire and Op Leasing  ,CC64,HIRING TRANSPORT SEN CABS               ,"1,480.00",30/11/2013,R,SILVERBURN FINANCE (UK) LTD   
684,CS -Oth Operating Inc & Expend,T/A Vehicle Maintenance etc,Transport-Contract Hire,J01374,Transport Related Expenditure ,Contract Hire and Op Leasing  ,CC64,HIRING TRANSPORT SEN CABS               ,"2,669.60",30/11/2013,R,KINGSTON ACCESSIBILITY TRAN LT
685,CS -Oth Operating Inc & Expend,T/A Vehicle Maintenance etc,Transport-Contract Hire,J01374,Transport Related Expenditure ,Contract Hire and Op Leasing  ,CC64,HIRING TRANSPORT SEN CABS               ,668.33,30/11/2013,R,GALPINS SERVICE               
686,CS -Oth Operating Inc & Expend,T/A Vehicle Maintenance etc,Transport-Contract Hire,J01374,Transport Related Expenditure ,Contract Hire and Op Leasing  ,CC64,HIRING TRANSPORT SEN CABS               ,"1,584.00",30/11/2013,R,SHERWOOD TRANSPORT GROUP      
687,CS -Oth Operating Inc & Expend,T/A Vehicle Maintenance etc,Transport-Contract Hire,J01374,Transport Related Expenditure ,Contract Hire and Op Leasing  ,CC64,HIRING TRANSPORT SEN CABS               ,"2,400.00",30/11/2013,R,GALPINS SERVICE               
688,CS -Oth Operating Inc & Expend,T/A Vehicle Maintenance etc,Transport-Contract Hire,J01374,Transport Related Expenditure ,Contract Hire and Op Leasing  ,CC64,HIRING TRANSPORT SEN CABS               ,"3,580.00",30/11/2013,R,SILVERBURN FINANCE (UK) LTD   
689,CS -Oth Operating Inc & Expend,T/A Vehicle Maintenance etc,Transport-Contract Hire,J01374,Transport Related Expenditure ,Contract Hire and Op Leasing  ,CC64,HIRING TRANSPORT SEN CABS               ,"1,000.00",30/11/2013,R,SHERWOOD TRANSPORT GROUP      
690,CS -Oth Operating Inc & Expend,T/A Vehicle Maintenance etc,Transport-Contract Hire,J01374,Transport Related Expenditure ,Contract Hire and Op Leasing  ,CC64,HIRING TRANSPORT SEN CABS               ,"2,774.00",30/11/2013,R,KINGSTON ACCESSIBILITY TRAN LT
691,CS -Oth Operating Inc & Expend,T/A Vehicle Maintenance etc,Transport-Contract Hire,J01374,Transport Related Expenditure ,Contract Hire and Op Leasing  ,CC64,HIRING TRANSPORT SEN CABS               ,"1,060.00",30/11/2013,R,BARCLAYS ASSET & SALES FINANCE
692,CS -Oth Operating Inc & Expend,T/A Vehicle Maintenance etc,Transport-Contract Hire,J01374,Transport Related Expenditure ,Contract Hire and Op Leasing  ,CC64,HIRING TRANSPORT SEN CABS               ,"1,190.00",30/11/2013,R,CAPITAL CARS                  
693,CS -Oth Operating Inc & Expend,T/A Vehicle Maintenance etc,Transport-Contract Hire,J01374,Transport Related Expenditure ,Contract Hire and Op Leasing  ,CC64,HIRING TRANSPORT SEN CABS               ,"1,385.64",30/11/2013,R,SILVERBURN FINANCE (UK) LTD   
694,CS -Oth Operating Inc & Expend,T/A Vehicle Maintenance etc,Transport-Contract Hire,J01374,Transport Related Expenditure ,Contract Hire and Op Leasing  ,CC64,HIRING TRANSPORT SEN CABS               ,"2,980.00",30/11/2013,R,SHERWOOD TRANSPORT GROUP      
695,CS -Oth Operating Inc & Expend,T/A Vehicle Maintenance etc,Transport-Contract Hire,J01374,Transport Related Expenditure ,Contract Hire and Op Leasing  ,CC64,HIRING TRANSPORT SEN CABS               ,"2,080.00",30/11/2013,R,KINGSTON ACCESSIBILITY TRAN LT
696,CS -Oth Operating Inc & Expend,T/A Vehicle Maintenance etc,Transport-Contract Hire,J01374,Transport Related Expenditure ,Contract Hire and Op Leasing  ,CC64,HIRING TRANSPORT SEN CABS               ,"3,060.00",30/11/2013,R,BARCLAYS ASSET & SALES FINANCE
697,CS -Oth Operating Inc & Expend,T/A Vehicle Maintenance etc,Transport-Contract Hire,J01374,Transport Related Expenditure ,Contract Hire and Op Leasing  ,CC64,HIRING TRANSPORT SEN CABS               ,"2,520.00",30/11/2013,R,CAPITAL CARS                  
698,CS -Oth Operating Inc & Expend,T/A Vehicle Maintenance etc,Transport-Contract Hire,J01374,Transport Related Expenditure ,Contract Hire and Op Leasing  ,CC64,HIRING TRANSPORT SEN CABS               ,"2,600.00",30/11/2013,R,BARCLAYS ASSET & SALES FINANCE
699,CS -Oth Operating Inc & Expend,T/A Vehicle Maintenance etc,Transport-Contract Hire,J01374,Transport Related Expenditure ,Contract Hire and Op Leasing  ,CC64,HIRING TRANSPORT SEN CABS               ,"1,200.00",30/11/2013,R,SILVERBURN FINANCE (UK) LTD   
700,CS -Oth Operating Inc & Expend,T/A Vehicle Maintenance etc,Transport-Contract Hire,J01374,Transport Related Expenditure ,Contract Hire and Op Leasing  ,CC64,HIRING TRANSPORT SEN CABS               ,"1,000.00",30/11/2013,R,A STAR TRANSPORT LIMITED      
701,CS -Oth Operating Inc & Expend,T/A Vehicle Maintenance etc,Transport-Contract Hire,J01374,Transport Related Expenditure ,Contract Hire and Op Leasing  ,CC64,HIRING TRANSPORT SEN CABS               ,"1,440.00",30/11/2013,R,NVCAR HIRE LTD                
702,CS -Oth Operating Inc & Expend,T/A Vehicle Maintenance etc,Transport-Contract Hire,J01374,Transport Related Expenditure ,Contract Hire and Op Leasing  ,CC64,HIRING TRANSPORT SEN CABS               ,"1,000.00",30/11/2013,R,KINGSTON ACCESSIBILITY TRAN LT
703,CS -Oth Operating Inc & Expend,T/A Vehicle Maintenance etc,Transport-Contract Hire,J01374,Transport Related Expenditure ,Contract Hire and Op Leasing  ,CC64,HIRING TRANSPORT SEN CABS               ,"1,680.00",30/11/2013,R,CAPITAL CARS                  
704,CS -Oth Operating Inc & Expend,T/A Vehicle Maintenance etc,Transport-Contract Hire,J01374,Transport Related Expenditure ,Contract Hire and Op Leasing  ,CC64,HIRING TRANSPORT SEN CABS               ,"1,440.00",30/11/2013,R,NVCAR HIRE LTD                
705,CS -Oth Operating Inc & Expend,T/A Vehicle Maintenance etc,Transport-Contract Hire,J01374,Transport Related Expenditure ,Contract Hire and Op Leasing  ,CC64,HIRING TRANSPORT SEN CABS               ,955.99,30/11/2013,R,GALPINS SERVICE               
706,CS -Oth Operating Inc & Expend,T/A Vehicle Maintenance etc,Transport-Contract Hire,J01374,Transport Related Expenditure ,Contract Hire and Op Leasing  ,CC64,HIRING TRANSPORT SEN CABS               ,"1,984.00",30/11/2013,R,CAPITAL CARS                  
707,CS -Oth Operating Inc & Expend,T/A Vehicle Maintenance etc,Transport-Contract Hire,J01374,Transport Related Expenditure ,Contract Hire and Op Leasing  ,CC64,HIRING TRANSPORT SEN CABS               ,"1,110.00",30/11/2013,R,KENDALL CARS                  
708,CS -Oth Operating Inc & Expend,T/A Vehicle Maintenance etc,Transport-Contract Hire,J01374,Transport Related Expenditure ,Contract Hire and Op Leasing  ,CC64,HIRING TRANSPORT SEN CABS               ,"1,140.00",30/11/2013,R,NVCAR HIRE LTD                
709,CS -Oth Operating Inc & Expend,T/A Vehicle Maintenance etc,Transport-Contract Hire,J01374,Transport Related Expenditure ,Contract Hire and Op Leasing  ,CC64,HIRING TRANSPORT SEN CABS               ,613.5,30/11/2013,R,SILVERBURN FINANCE (UK) LTD   
710,CS -Oth Operating Inc & Expend,T/A Vehicle Maintenance etc,Transport-Contract Hire,J01374,Transport Related Expenditure ,Contract Hire and Op Leasing  ,CC64,HIRING TRANSPORT SEN CABS               ,"2,862.00",29/11/2013,R,BRUNSWICK CARS LTD            
711,CS -Oth Operating Inc & Expend,T/A Vehicle Maintenance etc,Transport-Contract Hire,J01374,Transport Related Expenditure ,Contract Hire and Op Leasing  ,CC64,HIRING TRANSPORT SEN CABS               ,"1,287.00",30/11/2013,R,NVCAR HIRE LTD                
712,CS -Oth Operating Inc & Expend,T/A Vehicle Maintenance etc,Transport-Contract Hire,J01374,Transport Related Expenditure ,Contract Hire and Op Leasing  ,CC64,HIRING TRANSPORT SEN CABS               ,558,30/11/2013,R,CHEAM STATION CARS            
713,CS -Oth Operating Inc & Expend,T/A Vehicle Maintenance etc,Transport-Contract Hire,J01374,Transport Related Expenditure ,Contract Hire and Op Leasing  ,CC64,HIRING TRANSPORT SEN CABS               ,"3,000.00",30/11/2013,R,WALLINGTON CARS & COURIERS LTD
714,CS -Oth Operating Inc & Expend,T/A Vehicle Maintenance etc,Transport-Contract Hire,J01374,Transport Related Expenditure ,Contract Hire and Op Leasing  ,CC64,HIRING TRANSPORT SEN CABS               ,"1,480.00",30/11/2013,R,CAPITAL CARS                  
715,CS -Oth Operating Inc & Expend,T/A Vehicle Maintenance etc,Transport-Contract Hire,J01374,Transport Related Expenditure ,Contract Hire and Op Leasing  ,CC64,HIRING TRANSPORT SEN CABS               ,"1,799.40",30/11/2013,R,KINGSTON ACCESSIBILITY TRAN LT
716,CS -Oth Operating Inc & Expend,T/A Vehicle Maintenance etc,Transport-Contract Hire,J01374,Transport Related Expenditure ,Contract Hire and Op Leasing  ,CC64,HIRING TRANSPORT SEN CABS               ,"2,740.00",30/11/2013,R,NVCAR HIRE LTD                
717,CS -Oth Operating Inc & Expend,T/A Vehicle Maintenance etc,Transport-Contract Hire,J01374,Transport Related Expenditure ,Contract Hire and Op Leasing  ,CC64,HIRING TRANSPORT SEN CABS               ,"1,210.00",30/11/2013,R,CHEAM STATION CARS            
718,CS -Oth Operating Inc & Expend,T/A Vehicle Maintenance etc,Transport-Contract Hire,J01374,Transport Related Expenditure ,Contract Hire and Op Leasing  ,CC64,HIRING TRANSPORT SEN CABS               ,680,29/11/2013,R,BRUNSWICK CARS LTD            
719,CS -Oth Operating Inc & Expend,T/A Vehicle Maintenance etc,Transport-Contract Hire,J01374,Transport Related Expenditure ,Contract Hire and Op Leasing  ,CC64,HIRING TRANSPORT SEN CABS               ,"1,287.00",30/11/2013,R,NVCAR HIRE LTD                
720,CS -Oth Operating Inc & Expend,T/A Vehicle Maintenance etc,Transport-Contract Hire,J01374,Transport Related Expenditure ,Contract Hire and Op Leasing  ,CC64,HIRING TRANSPORT SEN CABS               ,"2,660.00",30/11/2013,R,BARCLAYS ASSET & SALES FINANCE
721,CS -Oth Operating Inc & Expend,T/A Vehicle Maintenance etc,Transport-Contract Hire,J01374,Transport Related Expenditure ,Contract Hire and Op Leasing  ,CC64,HIRING TRANSPORT SEN CABS               ,"1,675.60",30/11/2013,R,KINGSTON ACCESSIBILITY TRAN LT
722,CS -Oth Operating Inc & Expend,T/A Vehicle Maintenance etc,Transport-Contract Hire,J01374,Transport Related Expenditure ,Contract Hire and Op Leasing  ,CC64,HIRING TRANSPORT SEN CABS               ,"1,855.60",30/11/2013,R,KINGSTON ACCESSIBILITY TRAN LT
723,CS -Oth Operating Inc & Expend,T/A Vehicle Maintenance etc,Transport-Contract Hire,J01374,Transport Related Expenditure ,Contract Hire and Op Leasing  ,CC64,HIRING TRANSPORT SEN CABS               ,"1,386.00",30/11/2013,R,SHERWOOD TRANSPORT GROUP      
724,CS -Oth Operating Inc & Expend,T/A Vehicle Maintenance etc,Transport-Contract Hire,J01374,Transport Related Expenditure ,Contract Hire and Op Leasing  ,CC64,HIRING TRANSPORT SEN CABS               ,"2,862.00",30/11/2013,R,SHERWOOD TRANSPORT GROUP      
725,CS -Oth Operating Inc & Expend,T/A Vehicle Maintenance etc,Transport-Contract Hire,J01374,Transport Related Expenditure ,Contract Hire and Op Leasing  ,CC64,HIRING TRANSPORT SEN CABS               ,"1,200.00",30/11/2013,R,NVCAR HIRE LTD                
726,CS -Oth Operating Inc & Expend,T/A Vehicle Maintenance etc,Transport-Contract Hire,J01374,Transport Related Expenditure ,Contract Hire and Op Leasing  ,CC64,HIRING TRANSPORT SEN CABS               ,"2,660.00",30/11/2013,R,KINGSTON ACCESSIBILITY TRAN LT
727,CS -Oth Operating Inc & Expend,T/A Vehicle Maintenance etc,Transport-Contract Hire,J01374,Transport Related Expenditure ,Contract Hire and Op Leasing  ,CC64,HIRING TRANSPORT SEN CABS               ,700,02/12/2013,R,AERIAL CAR SERVICES LTD       
728,CS -Oth Operating Inc & Expend,T/A Vehicle Maintenance etc,Transport-Contract Hire,J01374,Transport Related Expenditure ,Contract Hire and Op Leasing  ,CC66,HIRING TRANSPORT H&SS CAB CHILDREN      ,804.4,30/11/2013,R,SILVERBURN FINANCE (UK) LTD   
729,CS -Oth Operating Inc & Expend,T/A Vehicle Maintenance etc,Transport-Contract Hire,J01374,Transport Related Expenditure ,Contract Hire and Op Leasing  ,CC66,HIRING TRANSPORT H&SS CAB CHILDREN      ,"1,258.00",30/11/2013,R,BARCLAYS ASSET & SALES FINANCE
730,CS -Oth Operating Inc & Expend,T/A Vehicle Maintenance etc,Transport-Contract Hire,J01374,Transport Related Expenditure ,Contract Hire and Op Leasing  ,CC66,HIRING TRANSPORT H&SS CAB CHILDREN      ,720,30/11/2013,R,NVCAR HIRE LTD                
731,CS -Oth Operating Inc & Expend,T/A Vehicle Maintenance etc,Transport-Contract Hire,J01374,Transport Related Expenditure ,Contract Hire and Op Leasing  ,CC66,HIRING TRANSPORT H&SS CAB CHILDREN      ,"2,519.58",30/11/2013,R,KINGSTON ACCESSIBILITY TRAN LT
732,CS -Oth Operating Inc & Expend,T/A Vehicle Maintenance etc,Transport-Contract Hire,J01374,Transport Related Expenditure ,Contract Hire and Op Leasing  ,CC66,HIRING TRANSPORT H&SS CAB CHILDREN      ,"1,440.00",30/11/2013,R,NVCAR HIRE LTD                
733,CS -Oth Operating Inc & Expend,T/A Vehicle Maintenance etc,Transport-Contract Hire,J01374,Transport Related Expenditure ,Contract Hire and Op Leasing  ,CC66,HIRING TRANSPORT H&SS CAB CHILDREN      ,765,30/11/2013,R,BARCLAYS ASSET & SALES FINANCE
734,CS -Oth Operating Inc & Expend,T/A Vehicle Maintenance etc,Transport-Contract Hire,J01374,Transport Related Expenditure ,Contract Hire and Op Leasing  ,CC66,HIRING TRANSPORT H&SS CAB CHILDREN      ,"1,200.00",30/11/2013,R,CHEAM STATION CARS            
735,CS -Oth Operating Inc & Expend,T/A Vehicle Maintenance etc,Transport-Contract Hire,J01374,Transport Related Expenditure ,Contract Hire and Op Leasing  ,CC66,HIRING TRANSPORT H&SS CAB CHILDREN      ,"1,278.00",30/11/2013,R,SILVERBURN FINANCE (UK) LTD   
736,CS -Oth Operating Inc & Expend,T/A Vehicle Maintenance etc,Transport-Contract Hire,J01374,Transport Related Expenditure ,Contract Hire and Op Leasing  ,CC66,HIRING TRANSPORT H&SS CAB CHILDREN      ,"2,040.00",30/11/2013,R,KINGSTON ACCESSIBILITY TRAN LT
737,CS -Oth Operating Inc & Expend,T/A Vehicle Maintenance etc,Transport-Contract Hire,J01374,Transport Related Expenditure ,Contract Hire and Op Leasing  ,CC67,HIRING TRANSPORT H&SS CAB ADULTS        ,"1,024.00",30/11/2013,R,A STAR TRANSPORT LIMITED      
738,CS -Oth Operating Inc & Expend,T/A Vehicle Maintenance etc,Transport-Contract Hire,J01374,Transport Related Expenditure ,Contract Hire and Op Leasing  ,CC67,HIRING TRANSPORT H&SS CAB ADULTS        ,"1,795.60",30/11/2013,R,KINGSTON ACCESSIBILITY TRAN LT
739,CS -Oth Operating Inc & Expend,T/A Vehicle Maintenance etc,Transport-Contract Hire,J01374,Transport Related Expenditure ,Contract Hire and Op Leasing  ,CC67,HIRING TRANSPORT H&SS CAB ADULTS        ,840,30/11/2013,R,KINGSTON ACCESSIBILITY TRAN LT
740,CS -Oth Operating Inc & Expend,T/A Vehicle Maintenance etc,Transport-Contract Hire,J01374,Transport Related Expenditure ,Contract Hire and Op Leasing  ,CC67,HIRING TRANSPORT H&SS CAB ADULTS        ,"1,152.00",29/11/2013,R,CALVERTON FACTORS LTD         
741,CS -Oth Operating Inc & Expend,T/A Vehicle Maintenance etc,Transport-Contract Hire,J01374,Transport Related Expenditure ,Contract Hire and Op Leasing  ,CC67,HIRING TRANSPORT H&SS CAB ADULTS        ,"1,180.00",30/11/2013,R,CAPITAL CARS                  
742,CS -Oth Operating Inc & Expend,T/A Vehicle Maintenance etc,Transport-Contract Hire,J01374,Transport Related Expenditure ,Contract Hire and Op Leasing  ,CC67,HIRING TRANSPORT H&SS CAB ADULTS        ,750,30/11/2013,R,NVCAR HIRE LTD                
743,CS -Oth Operating Inc & Expend,T/A Vehicle Maintenance etc,Transport-Contract Hire,J01374,Transport Related Expenditure ,Contract Hire and Op Leasing  ,CC67,HIRING TRANSPORT H&SS CAB ADULTS        ,"1,338.00",30/11/2013,R,NVCAR HIRE LTD                
744,CS -Oth Operating Inc & Expend,T/A Vehicle Maintenance etc,Transport-Contract Hire,J01374,Transport Related Expenditure ,Contract Hire and Op Leasing  ,CC67,HIRING TRANSPORT H&SS CAB ADULTS        ,798,30/11/2013,R,WALLINGTON CARS & COURIERS LTD
745,CS -Oth Operating Inc & Expend,T/A Vehicle Maintenance etc,Transport-Contract Hire,J01374,Transport Related Expenditure ,Contract Hire and Op Leasing  ,CC67,HIRING TRANSPORT H&SS CAB ADULTS        ,896,30/11/2013,R,NVCAR HIRE LTD                
746,CS -Oth Operating Inc & Expend,T/A Vehicle Maintenance etc,Transport-Contract Hire,J01374,Transport Related Expenditure ,Contract Hire and Op Leasing  ,CC67,HIRING TRANSPORT H&SS CAB ADULTS        ,720,30/11/2013,R,CAPITAL CARS                  
747,CS -Oth Operating Inc & Expend,T/A Vehicle Maintenance etc,Transport-Contract Hire,J01374,Transport Related Expenditure ,Contract Hire and Op Leasing  ,CC67,HIRING TRANSPORT H&SS CAB ADULTS        ,840,02/12/2013,R,AERIAL CAR SERVICES LTD       
748,CS -Oth Operating Inc & Expend,T/A Vehicle Maintenance etc,Transport-Contract Hire,J01374,Transport Related Expenditure ,Contract Hire and Op Leasing  ,CC67,HIRING TRANSPORT H&SS CAB ADULTS        ,"1,440.00",30/11/2013,R,KINGSTON ACCESSIBILITY TRAN LT
749,CS -Oth Operating Inc & Expend,T/A Vehicle Maintenance etc,Transport-Contract Hire,J01374,Transport Related Expenditure ,Contract Hire and Op Leasing  ,CC67,HIRING TRANSPORT H&SS CAB ADULTS        ,564,30/11/2013,R,CAPITAL CARS                  
750,CS -Oth Operating Inc & Expend,T/A Vehicle Maintenance etc,Transport-Contract Hire,J01374,Transport Related Expenditure ,Contract Hire and Op Leasing  ,CC67,HIRING TRANSPORT H&SS CAB ADULTS        ,616,03/12/2013,R,BARCLAYS ASSET & SALES FINANCE
751,CS -Oth Operating Inc & Expend,T/A Vehicle Maintenance etc,Transport-Contract Hire,J01374,Transport Related Expenditure ,Contract Hire and Op Leasing  ,CC67,HIRING TRANSPORT H&SS CAB ADULTS        ,722,30/11/2013,R,NVCAR HIRE LTD                
752,CS -Oth Operating Inc & Expend,T/A Vehicle Maintenance etc,Transport-Contract Hire,J01374,Transport Related Expenditure ,Contract Hire and Op Leasing  ,CC67,HIRING TRANSPORT H&SS CAB ADULTS        ,703,30/11/2013,R,CAPITAL CARS                  
753,CS -Oth Operating Inc & Expend,T/A Vehicle Maintenance etc,Transport-Contract Hire,J01374,Transport Related Expenditure ,Contract Hire and Op Leasing  ,CC67,HIRING TRANSPORT H&SS CAB ADULTS        ,"2,297.20",30/11/2013,R,BARCLAYS ASSET & SALES FINANCE
754,CS -Oth Operating Inc & Expend,T/A Vehicle Maintenance etc,Transport-Contract Hire,J01374,Transport Related Expenditure ,Contract Hire and Op Leasing  ,CC67,HIRING TRANSPORT H&SS CAB ADULTS        ,"1,360.00",30/11/2013,R,CAPITAL CARS                  
755,CS -Oth Operating Inc & Expend,T/A Vehicle Maintenance etc,Transport-Contract Hire,J01374,Transport Related Expenditure ,Contract Hire and Op Leasing  ,CC67,HIRING TRANSPORT H&SS CAB ADULTS        ,"1,360.00",30/11/2013,R,SILVERBURN FINANCE (UK) LTD   
756,CS -Oth Operating Inc & Expend,T/A Vehicle Maintenance etc,Transport-Contract Hire,J01374,Transport Related Expenditure ,Contract Hire and Op Leasing  ,CC67,HIRING TRANSPORT H&SS CAB ADULTS        ,650,30/11/2013,R,CAPITAL CARS                  
757,CS -Oth Operating Inc & Expend,T/A Vehicle Maintenance etc,Transport-Contract Hire,J01374,Transport Related Expenditure ,Contract Hire and Op Leasing  ,CC67,HIRING TRANSPORT H&SS CAB ADULTS        ,576,30/11/2013,R,A STAR TRANSPORT LIMITED      
758,CS -Oth Operating Inc & Expend,T/A Vehicle Maintenance etc,Transport-Contract Hire,J01374,Transport Related Expenditure ,Contract Hire and Op Leasing  ,CC67,HIRING TRANSPORT H&SS CAB ADULTS        ,540,30/11/2013,R,SILVERBURN FINANCE (UK) LTD   
759,CS -Oth Operating Inc & Expend,T/A Vehicle Maintenance etc,Transport-Contract Hire,J01374,Transport Related Expenditure ,Contract Hire and Op Leasing  ,CC67,HIRING TRANSPORT H&SS CAB ADULTS        ,720,30/11/2013,R,CAPITAL CARS                  
760,CS -Oth Operating Inc & Expend,T/A Vehicle Maintenance etc,Transport-Contract Hire,J01374,Transport Related Expenditure ,Contract Hire and Op Leasing  ,CC67,HIRING TRANSPORT H&SS CAB ADULTS        ,"1,328.80",30/11/2013,R,KINGSTON ACCESSIBILITY TRAN LT
761,CS -Oth Operating Inc & Expend,T/A Vehicle Maintenance etc,Transport-Contract Hire,J01374,Transport Related Expenditure ,Contract Hire and Op Leasing  ,CC67,HIRING TRANSPORT H&SS CAB ADULTS        ,608,30/11/2013,R,NVCAR HIRE LTD                
762,CS -Oth Operating Inc & Expend,T/A Vehicle Maintenance etc,Transport-Contract Hire,J01374,Transport Related Expenditure ,Contract Hire and Op Leasing  ,CC67,HIRING TRANSPORT H&SS CAB ADULTS        ,528,30/11/2013,R,NVCAR HIRE LTD                
763,CS -Oth Operating Inc & Expend,T/A Vehicle Maintenance etc,Transport-Contract Hire,J01374,Transport Related Expenditure ,Contract Hire and Op Leasing  ,CC67,HIRING TRANSPORT H&SS CAB ADULTS        ,"1,192.80",30/11/2013,R,BARCLAYS ASSET & SALES FINANCE
764,CS -Oth Operating Inc & Expend,T/A Vehicle Maintenance etc,Transport-Contract Hire,J01374,Transport Related Expenditure ,Contract Hire and Op Leasing  ,CC67,HIRING TRANSPORT H&SS CAB ADULTS        ,"1,360.00",30/11/2013,R,BARCLAYS ASSET & SALES FINANCE
765,CS -Oth Operating Inc & Expend,T/A Vehicle Maintenance etc,Transport-Contract Hire,J01374,Transport Related Expenditure ,Contract Hire and Op Leasing  ,CC67,HIRING TRANSPORT H&SS CAB ADULTS        ,624,30/11/2013,R,BARCLAYS ASSET & SALES FINANCE
766,CS -Oth Operating Inc & Expend,T/A Vehicle Maintenance etc,Transport-Contract Hire,J01374,Transport Related Expenditure ,Contract Hire and Op Leasing  ,CC67,HIRING TRANSPORT H&SS CAB ADULTS        ,"1,559.52",30/11/2013,R,KINGSTON ACCESSIBILITY TRAN LT
767,CS -Oth Operating Inc & Expend,T/A Vehicle Maintenance etc,Transport-Contract Hire,J01374,Transport Related Expenditure ,Contract Hire and Op Leasing  ,CC68,HIRING TRANSPORT SEN COLLEGES CABS      ,"1,280.00",30/11/2013,R,CAPITAL CARS                  
768,CS -Oth Operating Inc & Expend,T/A Vehicle Maintenance etc,Transport-Contract Hire,J01374,Transport Related Expenditure ,Contract Hire and Op Leasing  ,CC68,HIRING TRANSPORT SEN COLLEGES CABS      ,"3,100.12",30/11/2013,R,KINGSTON ACCESSIBILITY TRAN LT
769,CS -Oth Operating Inc & Expend,T/A Vehicle Maintenance etc,Transport-Contract Hire,J01374,Transport Related Expenditure ,Contract Hire and Op Leasing  ,CC68,HIRING TRANSPORT SEN COLLEGES CABS      ,"1,258.00",30/11/2013,R,BARCLAYS ASSET & SALES FINANCE
770,CS -Oth Operating Inc & Expend,T/A Vehicle Maintenance etc,Transport-Contract Hire,J01374,Transport Related Expenditure ,Contract Hire and Op Leasing  ,CC68,HIRING TRANSPORT SEN COLLEGES CABS      ,650,30/11/2013,R,CAPITAL CARS                  
771,CS -Oth Operating Inc & Expend,T/A Vehicle Maintenance etc,Transport-Contract Hire,J01374,Transport Related Expenditure ,Contract Hire and Op Leasing  ,CC68,HIRING TRANSPORT SEN COLLEGES CABS      ,"2,495.60",30/11/2013,R,KINGSTON ACCESSIBILITY TRAN LT
772,CS -Oth Operating Inc & Expend,T/A Vehicle Maintenance etc,Transport-Contract Hire,J01374,Transport Related Expenditure ,Contract Hire and Op Leasing  ,CC68,HIRING TRANSPORT SEN COLLEGES CABS      ,"1,680.00",30/11/2013,R,CAPITAL CARS                  
773,CS -Oth Operating Inc & Expend,T/A Vehicle Maintenance etc,Transport-Contract Hire,J01374,Transport Related Expenditure ,Contract Hire and Op Leasing  ,CC68,HIRING TRANSPORT SEN COLLEGES CABS      ,780,30/11/2013,R,CAPITAL CARS                  
774,CS -Oth Operating Inc & Expend,T/A Vehicle Maintenance etc,Transport-Contract Hire,J01374,Transport Related Expenditure ,Contract Hire and Op Leasing  ,CC68,HIRING TRANSPORT SEN COLLEGES CABS      ,"2,287.20",30/11/2013,R,BARCLAYS ASSET & SALES FINANCE
775,CS -Oth Operating Inc & Expend,T/A Vehicle Maintenance etc,Transport-Contract Hire,J01374,Transport Related Expenditure ,Contract Hire and Op Leasing  ,CC68,HIRING TRANSPORT SEN COLLEGES CABS      ,664.4,30/11/2013,R,KINGSTON ACCESSIBILITY TRAN LT
776,CS -Oth Operating Inc & Expend,T/A Vehicle Maintenance etc,Transport-Contract Hire,J01374,Transport Related Expenditure ,Contract Hire and Op Leasing  ,CC68,HIRING TRANSPORT SEN COLLEGES CABS      ,"1,039.68",30/11/2013,R,KINGSTON ACCESSIBILITY TRAN LT
777,CS -Oth Operating Inc & Expend,T/A Vehicle Maintenance etc,Transport-Contract Hire,J01374,Supplies & Services           ,Equip Furniture/Materials     ,DA01,Equipment - R & M                       ,692.54,30/11/2013,R,THE COMPRESSED AIR CENTRE LTD 
778,CS -Oth Operating Inc & Expend,T/A Vehicle Maintenance etc,Transport-Workshop,J01376,Transport Related Expenditure ,Direct Transport Costs        ,CA04,R & M of Veh - General                  ,"1,044.72",29/11/2013,R,FREIGHT TRANSPORT ASSOCIATION 
779,CS -Oth Operating Inc & Expend,T/A Vehicle Maintenance etc,Transport-Workshop,J01376,Transport Related Expenditure ,Direct Transport Costs        ,CA04,R & M of Veh - General                  ,"1,034.60",25/10/2013,R,FREIGHT TRANSPORT ASSOCIATION 
780,CS -Oth Operating Inc & Expend,T/A Vehicle Maintenance etc,Transport-Workshop,J01376,Transport Related Expenditure ,Contract Hire and Op Leasing  ,CC60,Vehicle Hire for LB Sutton              ,"1,960.00",30/11/2013,R,BARCLAYS ASSET & SALES FINANCE
781,CS -Oth Operating Inc & Expend,T/A Vehicle Maintenance etc,Transport-Workshop,J01376,Transport Related Expenditure ,Contract Hire and Op Leasing  ,CC60,Vehicle Hire for LB Sutton              ,960,29/10/2013,R,CALVERTON FACTORS LTD         
782,CS -Oth Operating Inc & Expend,T/A Vehicle Maintenance etc,Transport-Workshop,J01376,Transport Related Expenditure ,Contract Hire and Op Leasing  ,CC60,Vehicle Hire for LB Sutton              ,"1,720.00",30/11/2013,R,BARCLAYS ASSET & SALES FINANCE
783,CS -Oth Operating Inc & Expend,T/A Vehicle Maintenance etc,Transport-Workshop,J01376,Transport Related Expenditure ,Contract Hire and Op Leasing  ,CC60,Vehicle Hire for LB Sutton              ,"1,084.00",29/10/2013,R,CALVERTON FACTORS LTD         
784,CS -Oth Operating Inc & Expend,T/A Vehicle Maintenance etc,Transport-Workshop,J01376,Transport Related Expenditure ,Contract Hire and Op Leasing  ,CC60,Vehicle Hire for LB Sutton              ,525,30/11/2013,R,BARCLAYS ASSET & SALES FINANCE
785,CS -Oth Operating Inc & Expend,T/A Vehicle Maintenance etc,Transport-Workshop,J01376,Transport Related Expenditure ,Contract Hire and Op Leasing  ,CC60,Vehicle Hire for LB Sutton              ,"5,208.00",30/11/2013,R,BARCLAYS ASSET & SALES FINANCE
786,CS -Oth Operating Inc & Expend,T/A Vehicle Maintenance etc,Transport-Workshop,J01376,Transport Related Expenditure ,Contract Hire and Op Leasing  ,CC60,Vehicle Hire for LB Sutton              ,"1,950.00",29/11/2013,R,CALVERTON FACTORS LTD         
787,CS -Oth Operating Inc & Expend,T/A Vehicle Maintenance etc,Transport-Workshop,J01376,Transport Related Expenditure ,Contract Hire and Op Leasing  ,CC60,Vehicle Hire for LB Sutton              ,"2,660.00",29/11/2013,R,BRUNSWICK CARS LTD            
788,CS -Oth Operating Inc & Expend,T/A Vehicle Maintenance etc,Transport-Workshop,J01376,Transport Related Expenditure ,Contract Hire and Op Leasing  ,CC60,Vehicle Hire for LB Sutton              ,"2,060.00",29/11/2013,R,BRUNSWICK CARS LTD            
789,CS -Oth Operating Inc & Expend,T/A Vehicle Maintenance etc,Transport-Workshop,J01376,Transport Related Expenditure ,Contract Hire and Op Leasing  ,CC60,Vehicle Hire for LB Sutton              ,"1,112.00",30/11/2013,R,BARCLAYS ASSET & SALES FINANCE
790,CS -Oth Operating Inc & Expend,T/A Vehicle Maintenance etc,Transport-Workshop,J01376,Transport Related Expenditure ,Contract Hire and Op Leasing  ,CC60,Vehicle Hire for LB Sutton              ,960,29/11/2013,R,CALVERTON FACTORS LTD         
791,CS -Oth Operating Inc & Expend,T/A Vehicle Maintenance etc,Transport-Workshop,J01376,Transport Related Expenditure ,Contract Hire and Op Leasing  ,CC60,Vehicle Hire for LB Sutton              ,"2,240.00",30/11/2013,R,BARCLAYS ASSET & SALES FINANCE
792,CS -Oth Operating Inc & Expend,T/A Vehicle Maintenance etc,Transport-Workshop,J01376,Transport Related Expenditure ,Contract Hire and Op Leasing  ,CC60,Vehicle Hire for LB Sutton              ,"1,800.00",29/10/2013,R,CALVERTON FACTORS LTD         
793,CS -Oth Operating Inc & Expend,T/A Vehicle Maintenance etc,Transport-Workshop,J01376,Transport Related Expenditure ,Contract Hire and Op Leasing  ,CC60,Vehicle Hire for LB Sutton              ,599.8,30/11/2013,R,KINGSTON ACCESSIBILITY TRAN LT
794,CS -Oth Operating Inc & Expend,T/A Vehicle Maintenance etc,Transport-Workshop,J01376,Transport Related Expenditure ,Contract Hire and Op Leasing  ,CC65,Vehicle Hire for Education              ,740,30/11/2013,R,CAPITAL CARS                  
795,CS -Oth Operating Inc & Expend,T/A Vehicle Maintenance etc,Transport-Workshop,J01376,Transport Related Expenditure ,Contract Hire and Op Leasing  ,CC65,Vehicle Hire for Education              ,792,30/11/2013,R,CAPITAL CARS                  
796,CS -Oth Operating Inc & Expend,T/A Vehicle Maintenance etc,Transport-Workshop,J01376,Supplies & Services           ,Equip Furniture/Materials     ,DA01,Equipment - R & M                       ,590,05/11/2013,R,V L TEST SYSTEMS LTD          
797,Cultural Env Reg&Plan Services,Mgt & Support (Env),Estates Mgt,J01420,Supplies & Services           ,Services                      ,DF03,CONSULTANTS                             ,"22,841.76",29/11/2013,R,DTZ DEBENHAM TIE LEUNG        
798,Cultural Env Reg&Plan Services,Mgt & Support (Env),Estates Mgt,J01420,Supplies & Services           ,Services                      ,DF03,CONSULTANTS                             ,"2,250.00",12/11/2013,R,QUINTON SCOTT                 
799,Cultural Env Reg&Plan Services,Mgt & Support (Env),Estates Mgt,J01420,Supplies & Services           ,Services                      ,DF03,CONSULTANTS                             ,"1,900.00",20/11/2013,R,VALUATION OFFICE AGENCY       
800,CS -Oth Operating Inc & Expend,Extraordinary Items & PY Adj.,Housing Shops,J01533,Premises Related Expenditure  ,RepairsAlterations&MtceOfBldgs,BA01,Housing Shops                 -DDM - Gen,"4,953.00",12/11/2013,R,SALTASH ENTERPRISES LTD       
801,CS -Oth Operating Inc & Expend,Extraordinary Items & PY Adj.,Housing Shops,J01533,Premises Related Expenditure  ,RepairsAlterations&MtceOfBldgs,BA06,Housing Shops                 -Repairs &,"11,364.00",12/11/2013,R,SALTASH ENTERPRISES LTD       
802,Central Services,NDC Unused Office Accomodation,Montgomery Close,J02044,Premises Related Expenditure  ,RepairsAlterations&MtceOfBldgs,BA03,DDM - MECHANICAL                        ,620.33,26/11/2013,R,COFELY LIMITED                
803,CS -Oth Operating Inc & Expend,Extraordinary Items & PY Adj.,33 Greenwood Close,J03203,Premises Related Expenditure  ,RepairsAlterations&MtceOfBldgs,BA01,DDM - General Building                  ,761,25/11/2013,R,SCOTIA GAS NETWORKS CO.       
804,CS -Oth Operating Inc & Expend,Extraordinary Items & PY Adj.,Pollards Hill Comm Cntre,J08074,Premises Related Expenditure  ,RepairsAlterations&MtceOfBldgs,BA03,DDM - Mechanical                        ,695.47,26/11/2013,R,COFELY LIMITED                
805,Childrens & Education Services,Statutory & Regulatory Duties,Senior Mngt & Support Services,K01005,Supplies & Services           ,Services                      ,DF11,Counsel's Fees                          ,520,03/12/2013,R,REDACTED
806,Childrens & Education Services,Statutory & Regulatory Duties,Senior Mngt & Support Services,K01005,Supplies & Services           ,Services                      ,DF11,Counsel's Fees                          ,520,14/11/2013,R,REDACTED
807,Childrens & Education Services,Statutory & Regulatory Duties,Senior Mngt & Support Services,K01005,Supplies & Services           ,Services                      ,DF11,Counsel's Fees                          ,"15,830.69",01/11/2013,R,LONDON BOROUGH OF LEWISHAM    
808,Childrens & Education Services,Statutory & Regulatory Duties,Senior Mngt & Support Services,K01005,Supplies & Services           ,Services                      ,DF11,Counsel's Fees                          ,"1,300.00",30/10/2013,R,REDACTED
809,Childrens & Education Services,Statutory & Regulatory Duties,Senior Mngt & Support Services,K01005,Supplies & Services           ,Services                      ,DF11,Counsel's Fees                          ,750,09/10/2013,R,REDACTED
810,Childrens & Education Services,Statutory & Regulatory Duties,Senior Mngt & Support Services,K01005,Supplies & Services           ,Services                      ,DF11,Counsel's Fees                          ,985,19/12/2013,R,REDACTED
811,Childrens & Education Services,Statutory & Regulatory Duties,Senior Mngt & Support Services,K01005,Supplies & Services           ,Services                      ,DF11,Counsel's Fees                          ,"4,735.00",07/11/2013,R,REDACTED
812,Childrens & Education Services,Statutory & Regulatory Duties,Senior Mngt & Support Services,K01005,Supplies & Services           ,Services                      ,DF11,Counsel's Fees                          ,500,17/10/2013,R,REDACTED
813,Childrens & Education Services,Statutory & Regulatory Duties,Senior Mngt & Support Services,K01005,Supplies & Services           ,Services                      ,DF11,Counsel's Fees                          ,755,17/10/2013,R,REDACTED
814,Childrens & Education Services,Statutory & Regulatory Duties,Senior Mngt & Support Services,K01005,Supplies & Services           ,Services                      ,DF11,Counsel's Fees                          ,"4,040.00",27/11/2013,R,REDACTED
815,Childrens & Education Services,Statutory & Regulatory Duties,Schools IT Support,K02008,Supplies & Services           ,Equip Furniture/Materials     ,DA58,Education Materials                     ,"1,248.00",02/12/2013,R,STORMFRONT RETAIL LTD         
816,Childrens & Education Services,Statutory & Regulatory Duties,Schools IT Support,K02008,Supplies & Services           ,Services                      ,DF03,Consultants                             ,"1,300.00",27/11/2013,R,SCHOOL ANALYTICS LTD          
817,Childrens & Education Services,Statutory & Regulatory Duties,Commissioning Manager,K03001,Supplies & Services           ,Services                      ,DF03,Consultants                             ,"3,600.00",17/11/2013,R,WARD MANAGEMENT CONSULTING LTD
818,Childrens & Education Services,Statutory & Regulatory Duties,Commissioning Manager,K03001,Supplies & Services           ,Grants and Subscriptions      ,DJ01,Grants                                  ,"8,800.00",05/12/2013,R,THEATRE ADAD                  
819,Childrens & Education Services,Asset Management,PFI Unitary Charges,K03023,Third Party Payments          ,Private Contractors           ,EH02,Miscellaneous Hired Services            ,"5,100.64",25/10/2013,R,NEWSCHOOLS (MERTON) LIMITED   
820,Childrens & Education Services,Asset Management,PFI Unitary Charges,K03023,Third Party Payments          ,Private Contractors           ,EH02,Miscellaneous Hired Services            ,"2,831.32",02/12/2013,R,TRITON BUILDING CONSERVATION  
821,Childrens & Education Services,Asset Management,PFI Unitary Charges,K03023,Third Party Payments          ,Private Contractors           ,EH02,Miscellaneous Hired Services            ,"4,495.54",02/12/2013,R,TRITON BUILDING CONSERVATION  
822,Childrens & Education Services,Asset Management,PFI Unitary Charges,K03023,Third Party Payments          ,Private Contractors           ,EH02,Miscellaneous Hired Services            ,"2,896.30",17/07/2013,R,NEWSCHOOLS (MERTON) LIMITED   
823,Childrens & Education Services,Asset Management,PFI Unitary Charges,K03023,Third Party Payments          ,Private Contractors           ,EH10,Contract Payments                       ,"1,027,572.42",02/12/2013,R,NEWSCHOOLS (MERTON) LIMITED   
824,Childrens & Education Services,Statutory & Regulatory Duties,Head of Special Educatn Needs,K04017,Supplies & Services           ,Services                      ,DF03,Consultants                             ,"2,250.00",18/11/2013,R,ANAIRO SOLUTIONS LIMITED      
825,Childrens & Education Services,Statutory & Regulatory Duties,Head of Special Educatn Needs,K04017,Supplies & Services           ,Services                      ,DF03,Consultants                             ,637.5,16/12/2013,R,ANAIRO SOLUTIONS LIMITED      
826,Childrens & Education Services,Statutory & Regulatory Duties,Head of Special Educatn Needs,K04017,Supplies & Services           ,Services                      ,DF03,Consultants                             ,"1,012.50",16/12/2013,R,ANAIRO SOLUTIONS LIMITED      
827,Childrens & Education Services,Statutory & Regulatory Duties,Head of Special Educatn Needs,K04017,Supplies & Services           ,Services                      ,DF03,Consultants                             ,"2,025.00",25/11/2013,R,ANAIRO SOLUTIONS LIMITED      
828,Childrens & Education Services,Statutory & Regulatory Duties,Head of Special Educatn Needs,K04017,Supplies & Services           ,Services                      ,DF03,Consultants                             ,"12,000.00",01/11/2013,R,REDACTED
829,Childrens & Education Services,Statutory & Regulatory Duties,Head of Special Educatn Needs,K04017,Supplies & Services           ,Services                      ,DF03,Consultants                             ,600,16/12/2013,R,ANAIRO SOLUTIONS LIMITED      
830,Childrens & Education Services,Statutory & Regulatory Duties,Head of Special Educatn Needs,K04017,Supplies & Services           ,Services                      ,DF03,Consultants                             ,"2,250.00",09/12/2013,R,ANAIRO SOLUTIONS LIMITED      
831,Childrens & Education Services,Statutory & Regulatory Duties,Head of Special Educatn Needs,K04017,Supplies & Services           ,Services                      ,DF03,Consultants                             ,"2,250.00",02/12/2013,R,ANAIRO SOLUTIONS LIMITED      
832,Childrens & Education Services,Education Psychology Service,Education Psychology.,K04018,Employees                     ,Direct Employee Expenses      ,AA17,Agency Staff & Casual Paymts            ,937.5,26/11/2013,R,REDACTED
833,Childrens & Education Services,Education Psychology Service,Education Psychology.,K04018,Employees                     ,Direct Employee Expenses      ,AA17,Agency Staff & Casual Paymts            ,"3,375.00",01/11/2013,R,REDACTED
834,Childrens & Education Services,Education Psychology Service,Education Psychology.,K04018,Employees                     ,Direct Employee Expenses      ,AA17,Agency Staff & Casual Paymts            ,"1,312.50",19/12/2013,R,REDACTED
835,Childrens & Education Services,Education Psychology Service,Education Psychology.,K04018,Employees                     ,Direct Employee Expenses      ,AA17,Agency Staff & Casual Paymts            ,"3,000.00",31/10/2013,R,REDACTED
836,Childrens & Education Services,Education Psychology Service,Education Psychology.,K04018,Employees                     ,Direct Employee Expenses      ,AA17,Agency Staff & Casual Paymts            ,"1,312.50",30/11/2013,R,REDACTED
837,Childrens & Education Services,Support for SEN Pupils,Statementing-Transport,K04023,Transport Related Expenditure ,Public Transport              ,CD50,Home Sch/Coll Trans(Trav Exps)          ,594.72,08/11/2013,R,THE LONDON BOROUGH OF BROMLEY 
838,Childrens & Education Services,Support for SEN Pupils,Statementing-Transport,K04023,Transport Related Expenditure ,Public Transport              ,CD50,Home Sch/Coll Trans(Trav Exps)          ,"1,040.00",01/11/2013,R,REDACTED
839,Childrens & Education Services,Support for SEN Pupils,Statementing-Transport,K04023,Transport Related Expenditure ,Public Transport              ,CD50,Home Sch/Coll Trans(Trav Exps)          ,520.38,21/11/2013,R,THE LONDON BOROUGH OF BROMLEY 
840,Childrens & Education Services,Support for SEN Pupils,Statementing-Transport,K04023,Transport Related Expenditure ,Public Transport              ,CD50,Home Sch/Coll Trans(Trav Exps)          ,729,11/11/2013,R,ST MARY'S WRESTWOOD CHILDRENS 
841,Childrens & Education Services,Support for SEN Pupils,Statementing-Transport,K04023,Transport Related Expenditure ,Public Transport              ,CD50,Home Sch/Coll Trans(Trav Exps)          ,558.9,18/12/2013,R,REDACTED
842,Childrens & Education Services,Support for SEN Pupils,Statementing-Transport,K04023,Transport Related Expenditure ,Public Transport              ,CD50,Home Sch/Coll Trans(Trav Exps)          ,880,07/12/2013,R,REDACTED
843,Childrens & Education Services,Behavioural Support,Statement Support Team,K04034,Employees                     ,Direct Employee Expenses      ,AA17,Agency Staff & Casual Paymts            ,"1,921.50",30/11/2013,R,CARTHEW ASSOCIATES            
844,Childrens & Education Services,Behavioural Support,Statement Support Team,K04034,Employees                     ,Direct Employee Expenses      ,AA17,Agency Staff & Casual Paymts            ,"1,560.00",28/09/2013,R,REDACTED
845,Childrens & Education Services,Behavioural Support,Statement Support Team,K04034,Employees                     ,Direct Employee Expenses      ,AA17,Agency Staff & Casual Paymts            ,"1,700.00",08/11/2013,R,CARTHEW ASSOCIATES            
846,Childrens & Education Services,Behavioural Support,Statement Support Team,K04034,Employees                     ,Direct Employee Expenses      ,AA17,Agency Staff & Casual Paymts            ,"2,125.00",29/11/2013,R,CARTHEW ASSOCIATES            
847,Childrens & Education Services,Behavioural Support,Statement Support Team,K04034,Employees                     ,Direct Employee Expenses      ,AA17,Agency Staff & Casual Paymts            ,"1,280.00",01/11/2013,R,CARTHEW ASSOCIATES            
848,Childrens & Education Services,Behavioural Support,Statement Support Team,K04034,Employees                     ,Direct Employee Expenses      ,AA17,Agency Staff & Casual Paymts            ,"1,910.00",08/11/2013,R,CARTHEW ASSOCIATES            
849,Childrens & Education Services,Behavioural Support,Statement Support Team,K04034,Employees                     ,Direct Employee Expenses      ,AA17,Agency Staff & Casual Paymts            ,"1,485.00",22/11/2013,R,CARTHEW ASSOCIATES            
850,Childrens & Education Services,Behavioural Support,Statement Support Team,K04034,Employees                     ,Direct Employee Expenses      ,AA17,Agency Staff & Casual Paymts            ,"1,485.00",27/11/2013,R,CARTHEW ASSOCIATES            
851,Childrens & Education Services,Oth U5s Provn Not Prim or Spec,Provider Support,K05078,Supplies & Services           ,Comms and Computing           ,DG02,Software Licences                       ,"1,065.54",04/12/2013,R,CACI LIMITED                  
852,Childrens & Education Services,Pupil Referral Units,Expanded Pupil Referral Unit,K05099,Third Party Payments          ,Private Contractors           ,EH01,Miscellaneous Agency Services           ,"4,840.92",28/11/2013,R,SW LONDON ST GEORGES NHS TRUST
853,Childrens & Education Services,Pupil Referral Units,Expanded Pupil Referral Unit,K05099,Third Party Payments          ,Private Contractors           ,EH01,Miscellaneous Agency Services           ,"4,840.92",29/10/2013,R,SW LONDON ST GEORGES NHS TRUST
854,Childrens & Education Services,Oth U5s Provn Not Prim or Spec,GSSG Workforce Development,K05111,Supplies & Services           ,Services                      ,DF03,Consultants                             ,"2,200.00",01/12/2013,R,REDACTED
855,Childrens & Education Services,Nursery schools,GSSG Central Administration,K05400,Supplies & Services           ,Equip Furniture/Materials     ,DA53,Specialist Equipment                    ,"7,300.00",02/12/2013,R,REDACTED
856,Childrens & Education Services,Nursery schools,GSSG Central Administration,K05400,Supplies & Services           ,Catering                      ,DB50,Refreshment at Meetings                 ,"1,050.00",04/12/2013,R,GRENFELL HOUSING ASSOCIATION  
857,Childrens & Education Services,Nursery schools,GSSG Central Administration,K05400,Supplies & Services           ,Services                      ,DF30,Activities Programme                    ,870,09/12/2013,R,TO BABY AND BEYOND LIMITED    
858,Childrens & Education Services,GENERATED ACCOUNT,Mitcham MAT (Premises),K05412,Premises Related Expenditure  ,Cleaning and Domestic Supplies,BH03,Cleaning Services                       ,"1,186.24",01/12/2013,R,BIRKIN CLEANING SERVICES LTD  
859,Childrens & Education Services,Nursery schools,Lavender CC Non Childcare,K05415,Premises Related Expenditure  ,Cleaning and Domestic Supplies,BH03,Cleaning Services                       ,"1,189.54",01/12/2013,R,BIRKIN CLEANING SERVICES LTD  
860,Childrens & Education Services,Nursery schools,E.Years-Intergenerational Cntr,K05416,Premises Related Expenditure  ,RepairsAlterations&MtceOfBldgs,BA06,Repairs & Maintenance General           ,"1,328.00",25/11/2013,R,REDACTED
861,Childrens & Education Services,Nursery schools,E.Years-Intergenerational Cntr,K05416,Premises Related Expenditure  ,Energy Costs                  ,BB02,Electricity                             ,861.94,05/12/2013,R,SCOTTISHPOWER                 
862,Childrens & Education Services,Nursery schools,E.Years-Intergenerational Cntr,K05416,Premises Related Expenditure  ,Cleaning and Domestic Supplies,BH03,Cleaning Services                       ,796.82,01/12/2013,R,BIRKIN CLEANING SERVICES LTD  
863,Childrens & Education Services,Nursery schools,E.Years-Intergenerational Cntr,K05416,Supplies & Services           ,Services                      ,DF03,Consultants                             ,"3,085.60",09/12/2013,R,REDACTED
864,Childrens & Education Services,Vocational - Adult Education,AE-Familiy Learning,K06041,Supplies & Services           ,Services                      ,DF30,Activities Programme                    ,553,17/10/2013,R,CRICKET GREEN SCHOOL          
865,Childrens & Education Services,Vocational - Adult Education,AE-Adult Education Main,K06049,Premises Related Expenditure  ,Energy Costs                  ,BB03,Gas (incl. Butane)                      ,"1,495.30",09/12/2013,R,GAZPROM MARKETING&TRADING LTD 
866,Childrens & Education Services,Vocational - Adult Education,AE-Adult Education Main,K06049,Supplies & Services           ,Equip Furniture/Materials     ,DA01,Equipment - R & M                       ,"1,300.00",28/11/2013,R,KILNCARE LIMITED              
867,Childrens & Education Services,Vocational - Adult Education,AE-Adult Education Main,K06049,Supplies & Services           ,Prntng Stnry Gen Off Exp      ,DE22,Marketing                               ,630,31/10/2013,R,LOVE WIMBLEDON BUS.IMP.DIST   
868,Childrens & Education Services,Vocational - Adult Education,AE-Adult Education Main,K06049,Supplies & Services           ,Services                      ,DF03,Consultants                             ,"1,686.50",30/11/2013,R,TCMD LTD                      
869,Childrens & Education Services,Vocational - Adult Education,AE-Adult Education Main,K06049,Supplies & Services           ,Services                      ,DF27,Examination Fees                        ,992,21/11/2013,R,UCLES                         
870,Childrens & Education Services,Youth Centres (Residential),Youth Service,K06053,Transport Related Expenditure ,Direct Transport Costs        ,CA04,R & M of Veh - General                  ,"3,419.19",10/12/2013,R,ZURICH INSURANCE COMPANY      
871,Childrens & Education Services,Youth Centres (Residential),Youth Service,K06053,Supplies & Services           ,Expenses                      ,DH12,Young Peoples Expenses                  ,"3,000.00",13/12/2013,R,ROUGH EDGE                    
872,Childrens & Education Services,Youth Centres (Residential),PAYP Moving Forward in Life,K06092,Premises Related Expenditure  ,Energy Costs                  ,BB02,Electricity                             ,538.3,29/10/2013,R,EDF                           
873,Childrens & Education Services,Pupil Support,Careers Educ IAG Contracts,K06097,Third Party Payments          ,Private Contractors           ,EH01,Miscellaneous Agency Services           ,"15,988.20",28/11/2013,R,CASCAID LTD                   
874,Childrens & Education Services,Pupil Support,CONX - VOL. GROUP & OTHERS,K06113,Supplies & Services           ,Expenses                      ,DH12,Young Peoples Expenses                  ,500,11/12/2013,R,ENDEAVOUR CLUB                
875,Childrens & Education Services,Pupil Support,CONX - VOL. GROUP & OTHERS,K06113,Supplies & Services           ,Expenses                      ,DH12,Young Peoples Expenses                  ,500,06/12/2013,R,VOLUNTEER CENTRE MERTON       
876,Childrens & Education Services,Pupil Support,Young Person Substance Misuse,K06114,Third Party Payments          ,Private Contractors           ,EH01,Miscellaneous Agency Services           ,"3,546.33",29/08/2013,R,SW LONDON ST GEORGES NHS TRUST
877,Childrens & Education Services,Pupil Support,Young Person Substance Misuse,K06114,Third Party Payments          ,Private Contractors           ,EH01,Miscellaneous Agency Services           ,"14,185.32",23/08/2013,R,SW LONDON ST GEORGES NHS TRUST
878,Childrens & Education Services,Pupil Support,Young Person Substance Misuse,K06114,Third Party Payments          ,Private Contractors           ,EH01,Miscellaneous Agency Services           ,"3,546.33",29/10/2013,R,SW LONDON ST GEORGES NHS TRUST
879,Childrens & Education Services,Pupil Support,Young Person Substance Misuse,K06114,Third Party Payments          ,Private Contractors           ,EH01,Miscellaneous Agency Services           ,"3,546.33",27/09/2013,R,SW LONDON ST GEORGES NHS TRUST
880,Childrens & Education Services,Pupil Support,Children & Yth Participation,K06115,Supplies & Services           ,Expenses                      ,DH12,Young Peoples Expenses                  ,"1,600.80",09/12/2013,R,BRITISH AIRWAYS               
881,Childrens & Education Services,Pupil Support,Children & Yth Participation,K06115,Supplies & Services           ,Expenses                      ,DH12,Young Peoples Expenses                  ,500,05/12/2013,R,SAAMS HALL LTD                
882,Childrens & Education Services,Asset Management,Premises and Contracts,K08069,Supplies & Services           ,Services                      ,DF03,Consultants                             ,"1,190.00",29/11/2013,R,SYNERGY CPC LLP               
883,Childrens & Education Services,Asset Management,Premises and Contracts,K08069,Supplies & Services           ,Services                      ,DF95,Services from Provider                  ,"4,000.00",27/10/2013,R,DAC BEACHCROFT                
884,Childrens & Education Services,Asset Management,S106 Bid,K08077,Premises Related Expenditure  ,RepairsAlterations&MtceOfBldgs,BA79,Security of Premises                    ,"6,386.40",01/12/2013,R,SIGHT & SOUND                 
885,Childrens & Education Services,Asset Management,S106 Bid,K08077,Premises Related Expenditure  ,Rents                         ,BC01,Miscellaneous Rents                     ,"3,714.23",07/11/2013,R,BOSHIRE LTD                   
886,Childrens & Education Services,Asset Management,S106 Bid,K08077,Premises Related Expenditure  ,Rents                         ,BC03,Room/venue rental hire                  ,680.34,01/12/2013,R,PORTAKABIN LIMITED            
887,Childrens & Education Services,Asset Management,S106 Bid,K08077,Premises Related Expenditure  ,Rents                         ,BC03,Room/venue rental hire                  ,680.34,01/01/2014,R,PORTAKABIN LIMITED            
888,Childrens & Education Services,Asset Management,S106 Bid,K08077,Supplies & Services           ,Equip Furniture/Materials     ,DA03,Hire of Equipment                       ,"1,056.00",16/10/2013,R,J & U SERVICES LTD            
889,Childrens & Education Services,Asset Management,S106 Bid,K08077,Supplies & Services           ,Equip Furniture/Materials     ,DA03,Hire of Equipment                       ,"-1,544.40",26/11/2013,R,J & U SERVICES LTD            
890,Childrens & Education Services,Asset Management,S106 Bid,K08077,Supplies & Services           ,Equip Furniture/Materials     ,DA03,Hire of Equipment                       ,"2,570.40",29/10/2013,R,J & U SERVICES LTD            
891,Childrens & Education Services,Asset Management,S106 Bid,K08077,Supplies & Services           ,Prntng Stnry Gen Off Exp      ,DE52,Office Removal Expenses                 ,680,31/03/2013,R,EDE'S (U.K.) LTD              
892,Childrens & Education Services,Asset Management,Centre Commissioned Servs,K08078,Supplies & Services           ,Grants and Subscriptions      ,DJ01,Grants                                  ,"7,500.00",03/12/2013,R,JIGSAW4U                      
893,Childrens & Education Services,Asset Management,Centre Commissioned Servs,K08078,Supplies & Services           ,Grants and Subscriptions      ,DJ01,Grants                                  ,"6,250.00",05/09/2013,R,SOUTH LONDON TAMIL WELFARE GRP
894,Childrens & Education Services,Asset Management,Centre Commissioned Servs,K08078,Supplies & Services           ,Grants and Subscriptions      ,DJ01,Grants                                  ,"6,250.00",05/09/2013,R,SOUTH LONDON TAMIL WELFARE GRP
895,Childrens & Education Services,Asset Management,Centre Commissioned Servs,K08078,Supplies & Services           ,Grants and Subscriptions      ,DJ01,Grants                                  ,"7,500.00",11/12/2013,R,ENDEAVOUR CLUB                
896,Childrens & Education Services,Asset Management,Centre Commissioned Servs,K08078,Supplies & Services           ,Grants and Subscriptions      ,DJ01,Grants                                  ,"1,375.00",02/12/2013,R,SOUTH LONDON REFUGEE ASSOC.   
897,Childrens & Education Services,Asset Management,Centre Commissioned Servs,K08078,Supplies & Services           ,Grants and Subscriptions      ,DJ01,Grants                                  ,"10,000.00",12/12/2013,R,BARNARDOS                     
898,Childrens & Education Services,Facilitating School Improvemnt,SSQ,K09077,Supplies & Services           ,Services                      ,DF03,Consultants                             ,"6,650.00",04/12/2013,R,REDACTED
899,Childrens & Education Services,Facilitating School Improvemnt,SSQ,K09077,Supplies & Services           ,Services                      ,DF03,Consultants                             ,"2,100.00",26/11/2013,R,REDACTED
900,Childrens & Education Services,Facilitating School Improvemnt,SSQ,K09077,Supplies & Services           ,Services                      ,DF03,Consultants                             ,800,27/11/2013,R,REDACTED
901,Childrens & Education Services,Asset Management,Stouthall,K09082,Premises Related Expenditure  ,Rents                         ,BC01,Miscellaneous Rents                     ,"4,125.00",23/12/2013,R,ROBERT MORGAN & SONS LTD      
902,Childrens & Education Services,Statutory & Regulatory Duties,Profess Develop Cntre,K09084,Premises Related Expenditure  ,Energy Costs                  ,BB03,Gas (incl. Butane)                      ,652.49,12/11/2013,R,GAZPROM MARKETING&TRADING LTD 
903,Childrens & Education Services,Statutory & Regulatory Duties,Profess Develop Cntre,K09084,Premises Related Expenditure  ,Energy Costs                  ,BB03,Gas (incl. Butane)                      ,"3,036.70",06/11/2013,R,GAZPROM MARKETING&TRADING LTD 
904,Childrens & Education Services,Statutory & Regulatory Duties,Profess Develop Cntre,K09084,Premises Related Expenditure  ,Energy Costs                  ,BB03,Gas (incl. Butane)                      ,"1,218.73",09/12/2013,R,GAZPROM MARKETING&TRADING LTD 
905,Childrens & Education Services,Statutory & Regulatory Duties,Profess Develop Cntre,K09084,Premises Related Expenditure  ,Energy Costs                  ,BB03,Gas (incl. Butane)                      ,"-1,177.46",21/08/2013,R,GAZPROM MARKETING&TRADING LTD 
906,Childrens & Education Services,Statutory & Regulatory Duties,Profess Develop Cntre,K09084,Premises Related Expenditure  ,Energy Costs                  ,BB03,Gas (incl. Butane)                      ,"-2,326.24",06/11/2013,R,GAZPROM MARKETING&TRADING LTD 
907,Childrens & Education Services,Statutory & Regulatory Duties,Profess Develop Cntre,K09084,Premises Related Expenditure  ,Cleaning and Domestic Supplies,BH03,Cleaning Services                       ,"2,718.68",25/11/2013,R,JULIUS RUTHERFOORD & CO LTD   
908,Childrens & Education Services,Admissions & Planning Sch Prov,Schools Admin & Pupil Benefits,K90001,Supplies & Services           ,Comms and Computing           ,DG09,Computer Purchases - Misc               ,966,12/12/2013,R,VIGLEN LIMITED                
909,Childrens & Education Services,Sch Meals & Milk-Not Delegated,Free School Meals,K90002,Premises Related Expenditure  ,RepairsAlterations&MtceOfBldgs,BA01,DDM - General Building                  ,761.75,25/11/2013,R,CATERCRAFT SUPPLIES LTD       
910,Childrens & Education Services,Ensuring Attendance At School,Behaviour Support,K90004,Employees                     ,Indirect Employee Expenses    ,AB57,External Training Costs                 ,"1,050.00",09/11/2013,R,RESTORATIVE JUSTICE 4 SCHOOLS 
911,Childrens & Education Services,Facilitating School Improvemnt,Virtual Schools - PEA's,K90016,Supplies & Services           ,Expenses                      ,DH12,Young Peoples Expenses                  ,"1,718.28",05/12/2013,R,SMART CENTRE                  
912,Childrens & Education Services,Support for SEN Pupils,Non-Delegated Statements,K90024,Employees                     ,Direct Employee Expenses      ,AA17,Agency Staff & Casual Paymts            ,900,02/12/2013,R,REDACTED
913,Childrens & Education Services,Support for SEN Pupils,Non-Delegated Statements,K90024,Employees                     ,Direct Employee Expenses      ,AA17,Agency Staff & Casual Paymts            ,560,05/11/2013,R,REDACTED
914,Childrens & Education Services,Support for SEN Pupils,Non-Delegated Statements,K90024,Employees                     ,Direct Employee Expenses      ,AA17,Agency Staff & Casual Paymts            ,520,31/10/2013,R,REDACTED
915,Childrens & Education Services,Support for SEN Pupils,Non-Delegated Statements,K90024,Employees                     ,Direct Employee Expenses      ,AA17,Agency Staff & Casual Paymts            ,720,17/12/2013,R,REDACTED
916,Childrens & Education Services,Support for SEN Pupils,Non-Delegated Statements,K90024,Employees                     ,Direct Employee Expenses      ,AA17,Agency Staff & Casual Paymts            ,560,18/12/2013,R,REDACTED
917,Childrens & Education Services,Support for SEN Pupils,Non-Delegated Statements,K90024,Employees                     ,Direct Employee Expenses      ,AA17,Agency Staff & Casual Paymts            ,"1,711.52",30/11/2013,R,REDACTED
918,Childrens & Education Services,Support for SEN Pupils,Non-Delegated Statements,K90024,Employees                     ,Direct Employee Expenses      ,AA17,Agency Staff & Casual Paymts            ,"2,400.00",02/12/2013,R,REDACTED
919,Childrens & Education Services,Support for SEN Pupils,Non-Delegated Statements,K90024,Employees                     ,Direct Employee Expenses      ,AA17,Agency Staff & Casual Paymts            ,650,02/12/2013,R,REDACTED
920,Childrens & Education Services,Support for SEN Pupils,Non-Delegated Statements,K90024,Employees                     ,Direct Employee Expenses      ,AA17,Agency Staff & Casual Paymts            ,945,03/12/2013,R,REDACTED
921,Childrens & Education Services,Support for SEN Pupils,Non-Delegated Statements,K90024,Supplies & Services           ,Services                      ,DF09,Miscellaneous Fees                      ,600,11/09/2013,R,PROTOCOL EDUCATION LTD        
922,Childrens & Education Services,Support for SEN Pupils,Non-Delegated Statements,K90024,Supplies & Services           ,Services                      ,DF09,Miscellaneous Fees                      ,600,09/10/2013,R,PROTOCOL EDUCATION LTD        
923,Childrens & Education Services,Support for SEN Pupils,Non-Delegated Statements,K90024,Supplies & Services           ,Services                      ,DF09,Miscellaneous Fees                      ,600,25/09/2013,R,PROTOCOL EDUCATION LTD        
924,Childrens & Education Services,Support for SEN Pupils,Non-Delegated Statements,K90024,Supplies & Services           ,Services                      ,DF09,Miscellaneous Fees                      ,"1,105.08",30/11/2013,R,DEEPSTORE LTD                 
925,Childrens & Education Services,Support for SEN Pupils,Non-Delegated Statements,K90024,Supplies & Services           ,Services                      ,DF09,Miscellaneous Fees                      ,"2,559.00",01/11/2013,R,INDEPENDENT BUSINESS SERV.LTD 
926,Childrens & Education Services,Support for SEN Pupils,Non-Delegated Statements,K90024,Supplies & Services           ,Services                      ,DF09,Miscellaneous Fees                      ,600,23/10/2013,R,PROTOCOL EDUCATION LTD        
927,Childrens & Education Services,Support for SEN Pupils,Non-Delegated Statements,K90024,Supplies & Services           ,Services                      ,DF09,Miscellaneous Fees                      ,575,30/10/2013,R,TEACHING PERSONNEL            
928,Childrens & Education Services,Support for SEN Pupils,Non-Delegated Statements,K90024,Supplies & Services           ,Services                      ,DF09,Miscellaneous Fees                      ,600,18/09/2013,R,PROTOCOL EDUCATION LTD        
929,Childrens & Education Services,Support for SEN Pupils,Non-Delegated Statements,K90024,Supplies & Services           ,Services                      ,DF09,Miscellaneous Fees                      ,"3,320.33",07/11/2013,R,SUTTON HIGH SCHOOL            
930,Childrens & Education Services,Support for SEN Pupils,Non-Delegated Statements,K90024,Supplies & Services           ,Services                      ,DF09,Miscellaneous Fees                      ,"5,094.00",25/11/2013,R,CLIFTON HILL SCHOOL           
931,Childrens & Education Services,Support for SEN Pupils,Non-Delegated Statements,K90024,Supplies & Services           ,Services                      ,DF09,Miscellaneous Fees                      ,600,16/10/2013,R,PROTOCOL EDUCATION LTD        
932,Childrens & Education Services,Support for SEN Pupils,Non-Delegated Statements,K90024,Supplies & Services           ,Services                      ,DF11,Counsel's Fees                          ,"3,035.00",24/06/2013,R,REDACTED
933,Childrens & Education Services,Support for SEN Pupils,Non-Delegated Statements,K90024,Supplies & Services           ,Services                      ,DF11,Counsel's Fees                          ,"2,500.00",02/09/2013,R,REDACTED
934,Childrens & Education Services,Support for SEN Pupils,Non-Delegated Statements,K90024,Supplies & Services           ,Services                      ,DF11,Counsel's Fees                          ,"1,560.00",21/11/2013,R,REDACTED
935,Childrens & Education Services,Support for SEN Pupils,Non-Delegated Statements,K90024,Supplies & Services           ,Services                      ,DF11,Counsel's Fees                          ,"1,612.50",01/11/2013,R,REDACTED
936,Childrens & Education Services,Support for SEN Pupils,Non-Delegated Statements,K90024,Supplies & Services           ,Services                      ,DF11,Counsel's Fees                          ,"1,400.00",10/10/2013,R,REDACTED
937,Childrens & Education Services,Support for SEN Pupils,Non-Delegated Statements,K90024,Supplies & Services           ,Services                      ,DF11,Counsel's Fees                          ,"1,125.00",25/11/2013,R,REDACTED
938,Childrens & Education Services,Support for SEN Pupils,Non-Delegated Statements,K90024,Supplies & Services           ,Services                      ,DF11,Counsel's Fees                          ,"1,275.00",21/11/2013,R,REDACTED
939,Childrens & Education Services,Support for SEN Pupils,Non-Delegated Statements,K90024,Third Party Payments          ,Other Local Authorities       ,EB48,OLA PAYMENTS-STATEMENTS                 ,"1,660.17",02/12/2013,R,ABBEY PRIMARY SCHOOL          
940,Childrens & Education Services,Support for SEN Pupils,Non-Delegated Statements,K90024,Third Party Payments          ,Other Local Authorities       ,EB48,OLA PAYMENTS-STATEMENTS                 ,"13,875.70",01/12/2013,R,GLENTHORNE HIGH SCHOOL        
941,Childrens & Education Services,Support for SEN Pupils,Non-Delegated Statements,K90024,Third Party Payments          ,Other Local Authorities       ,EB48,OLA PAYMENTS-STATEMENTS                 ,"2,964.50",01/12/2013,R,SWAFFIELD PRIMARY SCHOOL      
